Service Area,Service Division,Expense Type,Expense Code,Detailed Expense Type,Payment Date,Transaction Number,Amount Exc Vat,Supplier Name
Children and Adult Services,Childrens Services,Employees,080025,Agency Staff,04-Jan-2016,3069029-329218,"77,292.83",DE POEL MANAGED SERVICES LTD.
Children and Adult Services,Childrens Services,Employees,080025,Agency Staff,04-Jan-2016,3069154-0228967931,780.00,REED PERSONNEL SERVICES PLC.
Regeneration & Economic Development,Economic Development and Housing,Cap Exp on Grants & Other Financial Assistance (REFCUS),918401,Capital grants,04-Jan-2016,3069021-172,"4,737.00",CRAIG PATTERSON T/A LET ME GET YOU WET.
Regeneration & Economic Development,Economic Development and Housing,Cap Exp on Grants & Other Financial Assistance (REFCUS),918401,Capital grants,04-Jan-2016,3069023-111,"2,483.29",CUMMINGS CONTRACTORS.
Regeneration & Economic Development,Economic Development and Housing,Cap Exp on Grants & Other Financial Assistance (REFCUS),918401,Capital grants,04-Jan-2016,3069142-173,"1,098.00",PEART ACCESS RAMPS.
Regeneration & Economic Development,Economic Development and Housing,Cap Exp on Grants & Other Financial Assistance (REFCUS),918401,Capital grants,04-Jan-2016,3069153-176,750.00,REDGATE ARCHITECTURAL DESIGN.
Regeneration & Economic Development,Economic Development and Housing,Cap Exp on Grants & Other Financial Assistance (REFCUS),918401,Capital grants,04-Jan-2016,3069191-177,"1,470.00",THYSSENKRUPP ENCASA A DIVISION OF THYSSENKRUPP ACCESS LTD.
Regeneration & Economic Development,Economic Development and Housing,Cap Exp on Grants & Other Financial Assistance (REFCUS),918401,Capital grants,04-Jan-2016,3069191-178,"5,112.21",THYSSENKRUPP ENCASA A DIVISION OF THYSSENKRUPP ACCESS LTD.
Regeneration & Economic Development,Economic Development and Housing,Cap Exp on Grants & Other Financial Assistance (REFCUS),918401,Capital grants,04-Jan-2016,3069194-171,"3,308.75",TOTAL HYGIENE LTD.
Neighbourhood Services,Culture & Sport,Construction Work,908105,Construction work,04-Jan-2016,3069060-G1054,"24,104.48",GROUNDWORK & LEISURE SERVICES LTD.
Neighbourhood Services,Technical Services,Construction Work,908105,Construction work,04-Jan-2016,3069150-137568,"2,260.00",PREMIER TRAFFIC MANAGEMENT LTD.
Neighbourhood Services,Technical Services,Construction Work,908105,Construction work,04-Jan-2016,3069150-137569,"2,260.00",PREMIER TRAFFIC MANAGEMENT LTD.
Children and Adult Services,Head of Adults,Transport,230005,Contract Hire,04-Jan-2016,3068971-DCC6NOV15,"3,459.75",ATLAS TAXIS BISHOP AUCKLAND.
Children and Adult Services,Head of Adults,Transport,230005,Contract Hire,04-Jan-2016,3068971-DCC6OCT15,"2,800.75",ATLAS TAXIS BISHOP AUCKLAND.
Children and Adult Services,Public Health,Third Party Payments,460802,Contract Payments,04-Jan-2016,3068993-FKP88,855.72,BOOTS THE CHEMISTS LTD.
Children and Adult Services,Public Health,Third Party Payments,460802,Contract Payments,04-Jan-2016,3068996-FYR53,"3,351.57",BOOTS THE CHEMISTS LTD.
Children and Adult Services,Public Health,Third Party Payments,460802,Contract Payments,04-Jan-2016,3069033-A83076/Q2IUCD2015,835.13,DIPTON SURGERY.
Children and Adult Services,Public Health,Third Party Payments,460802,Contract Payments,04-Jan-2016,3069051-A83061/Q2IUCD2015,"2,553.41",GAINFORD SURGERY.
Children and Adult Services,Public Health,Third Party Payments,460802,Contract Payments,04-Jan-2016,3069058-A83029,"3,133.01",GREAT LUMLEY SURGERY.
Children and Adult Services,Public Health,Third Party Payments,460802,Contract Payments,04-Jan-2016,3069058-A83029/DECIUCD2014,"1,050.24",GREAT LUMLEY SURGERY.
Children and Adult Services,Public Health,Third Party Payments,460802,Contract Payments,04-Jan-2016,3069058-A83029/JULY,"3,571.60",GREAT LUMLEY SURGERY.
Children and Adult Services,Public Health,Third Party Payments,460802,Contract Payments,04-Jan-2016,3069058-A83029/MARCH,"4,639.34",GREAT LUMLEY SURGERY.
Children and Adult Services,Public Health,Third Party Payments,460802,Contract Payments,04-Jan-2016,3069121-A83041/Q1IUCD2015,"2,325.80",MURTON MEDICAL GROUP.
Children and Adult Services,Public Health,Third Party Payments,460802,Contract Payments,04-Jan-2016,3069121-A83041/Q2IUCD2015,"1,974.55",MURTON MEDICAL GROUP.
Children and Adult Services,Public Health,Third Party Payments,460802,Contract Payments,04-Jan-2016,3069136-A836186/Q2IUCD2015,"1,251.65",OAKFIELDS HEALTH CENTRE.
Children and Adult Services,Public Health,Third Party Payments,460802,Contract Payments,04-Jan-2016,3069143-A83033/Q2IUCD2015.,"1,141.98",PELTON & FELLROSE MEDICAL GROUP.
Children and Adult Services,Public Health,Third Party Payments,460802,Contract Payments,04-Jan-2016,3069174-A83023/Q1IUCD2015,"1,317.18",STANLEY MEDICAL GROUP.
Children and Adult Services,Public Health,Third Party Payments,460802,Contract Payments,04-Jan-2016,3069174-A83023/Q2IUCD2015,"1,857.79",STANLEY MEDICAL GROUP.
Children and Adult Services,Public Health,Third Party Payments,460802,Contract Payments,04-Jan-2016,3069182-FRK79,618.02,T & J HEALTHCARE LTD T/A STATION ROAD PHARMACY..
Children and Adult Services,Public Health,Third Party Payments,460802,Contract Payments,04-Jan-2016,3069204-A83024/Q2IUCD2015,"2,705.31",WEST RAINTON SURGERY.
Children and Adult Services,Public Health,Third Party Payments,460802,Contract Payments,04-Jan-2016,3069204-A83024/Q4IUCD2015,"2,636.13",WEST RAINTON SURGERY.
Regeneration & Economic Development,Transport and Contracted Services,Third Party Payments,460160,Contract Payments,04-Jan-2016,3069002-43268,701.00,BRITISH PARKING ASSOCIATION.
Regeneration & Economic Development,Economic Development and Housing,Premises,120009,Energy Costs,04-Jan-2016,3069135-NNO7RQY7,"1,293.10",NPOWER.
Neighbourhood Services,Culture & Sport,Supplies and Services,304221,Equipment and Materials,04-Jan-2016,3068959-IN16663,"3,070.00",AIRQUEE LTD.
Neighbourhood Services,Direct Services,Supplies and Services,304221,Equipment and Materials,04-Jan-2016,3069022-INV0104679,"1,884.43",CROMWELL POLYTHENE LTD.
Neighbourhood Services,Technical Services,Supplies and Services,304221,Equipment and Materials,04-Jan-2016,3069084-CNI23604/D,777.10,JT DOVE LTD.
Neighbourhood Services,Projects and Business services,Supplies and Services,304357,Equipment and Materials,04-Jan-2016,3069099-30,960.00,M & E & MR WALTON.
Neighbourhood Services,Technical Services,Supplies and Services,304221,Equipment and Materials,04-Jan-2016,3069108-37430,"1,235.32",MAY GURNEY LTD.
Neighbourhood Services,Direct Services,Supplies and Services,304221,Equipment and Materials,04-Jan-2016,3069111-0000061310,"8,865.48",MIKROFILL SYSTEMS LTD.
Neighbourhood Services,Technical Services,Supplies and Services,304047,Equipment and Materials,04-Jan-2016,3069132-DI20230960,"7,795.97",NORTHERN POWERGRID (NORTHEAST) LTD.
Neighbourhood Services,Technical Services,Supplies and Services,304047,Equipment and Materials,04-Jan-2016,3069132-DI20230961,"3,801.93",NORTHERN POWERGRID (NORTHEAST) LTD.
Neighbourhood Services,Technical Services,Supplies and Services,304221,Equipment and Materials,04-Jan-2016,3069132-DI20230965,"4,085.92",NORTHERN POWERGRID (NORTHEAST) LTD.
Neighbourhood Services,Culture & Sport,Supplies and Services,304252,Equipment and Materials,04-Jan-2016,3069138-INV12708,"1,100.00",OMNEX PRO FILM LTD.
Neighbourhood Services,Direct Services,Supplies and Services,304221,Equipment and Materials,04-Jan-2016,3069183-1814843,922.47,T CROSSLING & CO LTD.
Neighbourhood Services,Direct Services,Supplies and Services,304221,Equipment and Materials,04-Jan-2016,3069199-6890202181,"1,997.63",VIESSMANN LTD.
Children and Adult Services,Childrens Services,Supplies and Services,384540,Miscellaneous Expenses,04-Jan-2016,3068965-4109,500.00,ARC ENTERTAINMENTS.
Children and Adult Services,Childrens Services,Supplies and Services,384199,Miscellaneous Expenses,04-Jan-2016,3069210-26163,758.58,WRIXON SECURITY SERVICES LTD T/A WRIXON CARE.
Children and Adult Services,Education,Supplies and Services,384199,Miscellaneous Expenses,04-Jan-2016,3069034-336/16/1259,"2,662.00",DISC LTD.
Children and Adult Services,Planning & Service Strategy,Supplies and Services,384197,Miscellaneous Expenses,04-Jan-2016,3069070-9297,"3,620.00",INGRAMS REMOVERS & STORERS.
Neighbourhood Services,EnvironmentHealth & Consumer Protection,Supplies and Services,384199,Miscellaneous Expenses,04-Jan-2016,3069151-IN-15-WP-000899,"1,020.00",PUBLIC ANALYST SCIENTIFIC SERVICES LTD.
Resources,Legal & Democratic Services,Supplies and Services,384965,Miscellaneous Expenses,04-Jan-2016,3068972-1499,"1,245.00",AUTO ITEMS LTD.
Children and Adult Services,Education,Third Party Payments,440999,Other Third Party Payments,04-Jan-2016,3068979-SINV23084,"11,774.38",BISHOP AUCKLAND COLLEGE.
Children and Adult Services,Education,Third Party Payments,440999,Other Third Party Payments,04-Jan-2016,3069044-4427,"2,100.00",FANE LTD.
Children and Adult Services,Education,Third Party Payments,440999,Other Third Party Payments,04-Jan-2016,3069192-3675,"4,347.00",TIN ARTS.
Regeneration & Economic Development,Spatial Policy Planning Assets & Environment,Third Party Payments,440999,Other Third Party Payments,04-Jan-2016,3069110-3956,"7,606.34",MICROCOPY SYSTEMS LTD.
Resources,I.C.T. Services,Supplies and Services,340001,Postages,04-Jan-2016,3069159-9051100686,"14,259.21",ROYAL MAIL GROUP PLC.
Resources,I.C.T. Services,Supplies and Services,340001,Postages,04-Jan-2016,3069159-9051139323,"11,489.25",ROYAL MAIL GROUP PLC.
Children and Adult Services,Commissioning inc Supporting People,Third Party Payments,479111,Purchase of Care,04-Jan-2016,3069039-DCC024,"4,614.78",DURHAM DEAFENED SUPPORT.
Children and Adult Services,Education,Employees,040001,Recruitment Instruction and Training,04-Jan-2016,3069187-TARINV/15398300,710.10,TES GLOBAL LTD.
Neighbourhood Services,Technical Services,Third Party Payments,430127,Rendered by Private Contractors,04-Jan-2016,3069064-4457,"2,580.50",HAWTHORN PLANT HIRE.
Neighbourhood Services,Projects and Business services,Third Party Payments,430114,Rendered by Private Contractors,04-Jan-2016,3069075-100160,"17,587.50",J & B RECYCLING LTD.
Neighbourhood Services,Technical Services,Third Party Payments,430100,Rendered by Private Contractors,04-Jan-2016,3069077-11996,576.18,JACK COUPE & SONS LTD T/A COUPE LINE.
Neighbourhood Services,Technical Services,Third Party Payments,430100,Rendered by Private Contractors,04-Jan-2016,3069077-11997,809.18,JACK COUPE & SONS LTD T/A COUPE LINE.
Neighbourhood Services,Technical Services,Third Party Payments,430100,Rendered by Private Contractors,04-Jan-2016,3069124-NC4/C423/BW,"12,346.66",NEDCO CONTRACTS (NE) LTD.
Neighbourhood Services,Technical Services,Third Party Payments,430100,Rendered by Private Contractors,04-Jan-2016,3069124-NC7/C423/BW,745.63,NEDCO CONTRACTS (NE) LTD.
Neighbourhood Services,Technical Services,Third Party Payments,430100,Rendered by Private Contractors,04-Jan-2016,3069132-DI20230978,"3,054.39",NORTHERN POWERGRID (NORTHEAST) LTD.
Neighbourhood Services,Direct Services,Third Party Payments,430100,Rendered by Private Contractors,04-Jan-2016,3069146-17202,"1,738.32",POLAR (NE) LTD.
Neighbourhood Services,Technical Services,Third Party Payments,430100,Rendered by Private Contractors,04-Jan-2016,3069150-137570,"20,272.75",PREMIER TRAFFIC MANAGEMENT LTD.
Neighbourhood Services,Direct Services,Third Party Payments,430100,Rendered by Private Contractors,04-Jan-2016,3069198-1859/15,"1,120.00",UK VENTILATON LTD.
Neighbourhood Services,Direct Services,Third Party Payments,430100,Rendered by Private Contractors,04-Jan-2016,3069198-1860/15,"1,396.00",UK VENTILATON LTD.
Neighbourhood Services,Direct Services,Transport,215005,Running Costs of Vehicles,04-Jan-2016,3069063-561526,"27,989.18",HARVEST ENERGY LTD.
Neighbourhood Services,Direct Services,Transport,215022,Running Costs of Vehicles,04-Jan-2016,3069063-561986,"1,187.40",HARVEST ENERGY LTD.
Neighbourhood Services,Direct Services,Transport,215005,Running Costs of Vehicles,04-Jan-2016,3069063-561987,"10,287.09",HARVEST ENERGY LTD.
Neighbourhood Services,Direct Services,Transport,215022,Running Costs of Vehicles,04-Jan-2016,3069063-561988,"3,105.90",HARVEST ENERGY LTD.
Neighbourhood Services,Direct Services,Transport,215005,Running Costs of Vehicles,04-Jan-2016,3069063-561989,"15,539.02",HARVEST ENERGY LTD.
Neighbourhood Services,Direct Services,Transport,215005,Running Costs of Vehicles,04-Jan-2016,3069063-563528,"14,178.53",HARVEST ENERGY LTD.
Neighbourhood Services,Direct Services,Transport,215005,Running Costs of Vehicles,04-Jan-2016,3069063-564487,"15,363.91",HARVEST ENERGY LTD.
Neighbourhood Services,Direct Services,Transport,215005,Running Costs of Vehicles,04-Jan-2016,3069063-564489,"5,109.60",HARVEST ENERGY LTD.
Children and Adult Services,Education,Transfer Payments,510026,School Children,04-Jan-2016,3069017-DCC031,999.00,CLEVER CLOGS DAY NURSERIES LTD.
Children and Adult Services,Education,Supplies and Services,338035,Services,04-Jan-2016,3069122-INV209841,"1,430.00",NCFE-CACHE.
Neighbourhood Services,Technical Services,Supplies and Services,338066,Services,04-Jan-2016,3069126-492,"80,173.36",NEPRO LTD.
Neighbourhood Services,Culture & Sport,Supplies and Services,338047,Services,04-Jan-2016,3069189-57597,"2,751.13",THEATRE HULLABALOO.
Resources,Legal & Democratic Services,Supplies and Services,338042,Services,04-Jan-2016,3069031-317741/INVCSM177,"1,300.00",DERE STREET BARRISTERS.
Resources,Legal & Democratic Services,Supplies and Services,338057,Services,04-Jan-2016,3069114-MGW,950.00,MR MICHAEL G WYATT.
Resources,Legal & Democratic Services,Supplies and Services,338057,Services,04-Jan-2016,3069118-MGW,"1,200.00",REDACTED - PAYMENT TO INDIVIDUAL
Resources,Legal & Democratic Services,Supplies and Services,338057,Services,04-Jan-2016,3069157-0000022058,965.00,ROAR FORENSICS LTD.
Neighbourhood Services,Technical Services,Stock,926900,Stock in hand-Inventory system,04-Jan-2016,3069010-9950/01677097,"1,013.88",CERAMIC TILE DISTRIBUTORS (CTD).
Neighbourhood Services,Technical Services,Stock,926900,Stock in hand-Inventory system,04-Jan-2016,3069084-STI430356,626.78,JT DOVE LTD.
Neighbourhood Services,Technical Services,Stock,926900,Stock in hand-Inventory system,04-Jan-2016,3069133-1820180,819.00,NORTHERN TOOLS & ACCESSORIES.
Neighbourhood Services,Technical Services,Stock,926900,Stock in hand-Inventory system,04-Jan-2016,3069141-XL160051,"1,007.46",PARK ELECTRICAL DISTRIBUTORS LTD.
Neighbourhood Services,Technical Services,Stock,926900,Stock in hand-Inventory system,04-Jan-2016,3069141-XL160212,773.30,PARK ELECTRICAL DISTRIBUTORS LTD.
Neighbourhood Services,Technical Services,Stock,926900,Stock in hand-Inventory system,04-Jan-2016,3069166-39764,"4,048.00",SG BAKER LTD.
Neighbourhood Services,Technical Services,Stock,926900,Stock in hand-Inventory system,04-Jan-2016,3069170-SI15011657,"1,051.00",SOLON SECURITY LTD.
Neighbourhood Services,Technical Services,Stock,926900,Stock in hand-Inventory system,04-Jan-2016,3069190-N/IN161671,884.63,THOMAS OWEN & SONS (NEWCASTLE) LTD.
Neighbourhood Services,Technical Services,Stock,926900,Stock in hand-Inventory system,04-Jan-2016,3069190-N/IN162266,913.12,THOMAS OWEN & SONS (NEWCASTLE) LTD.
Neighbourhood Services,Technical Services,Stock,926900,Stock in hand-Inventory system,04-Jan-2016,3069208-26917739,"1,270.41",WOLSELEY UK LTD.
Neighbourhood Services,Technical Services,Stock,926900,Stock in hand-Inventory system,04-Jan-2016,3069208-28399608,959.47,WOLSELEY UK LTD.
Neighbourhood Services,Technical Services,Stock,926900,Stock in hand-Inventory system,04-Jan-2016,3069208-28399614,829.30,WOLSELEY UK LTD.
Neighbourhood Services,Technical Services,Stock,926900,Stock in hand-Inventory system,04-Jan-2016,3069208-28490278,525.78,WOLSELEY UK LTD.
Neighbourhood Services,Technical Services,Stock,926900,Stock in hand-Inventory system,04-Jan-2016,3069208-28490285,"2,024.03",WOLSELEY UK LTD.
Neighbourhood Services,Technical Services,Stock,926900,Stock in hand-Inventory system,04-Jan-2016,3069208-28490286,961.71,WOLSELEY UK LTD.
Neighbourhood Services,Direct Services,Supplies and Services,372009,Subscriptions,04-Jan-2016,3068973-116256,"3,315.00",AUTOCRAFT EQUIPMENT LTD.
Regeneration & Economic Development,Economic Development and Housing,Supplies and Services,372009,Subscriptions,04-Jan-2016,3068981-SKI23581,510.50,BKSB LTD.
Children and Adult Services,Childrens Services,Employees,080025,Agency Staff,05-Jan-2016,3069912-2318369,"1,109.00",CELSIAN.
Neighbourhood Services,Technical Services,Employees,080025,Agency Staff,05-Jan-2016,3069860-28240224,"8,418.50",AECOM LTD.
Regeneration & Economic Development,Economic Development and Housing,Construction Work,908113,Capital - Landscaping,05-Jan-2016,3070078-300,762.00,MR CRAIG GIBSON.
Children and Adult Services,Public Health,Premises,145009,Cleaning and Domestic Supplies,05-Jan-2016,3069886-0000021583,967.00,BETTAKLEEN LTD.
Neighbourhood Services,Direct Services,Premises,145009,Cleaning and Domestic Supplies,05-Jan-2016,3069968-1191899,657.10,FCC RECYCLING (UK)  LTD.
Dedicated Schools Grant,Dedicated Schools Grant,Transport,230010,Contract Hire,05-Jan-2016,3070037-3291,"1,459.50",LINCAB TAXIS.
Dedicated Schools Grant,Dedicated Schools Grant,Transport,230010,Contract Hire,05-Jan-2016,3070037-3292,987.00,LINCAB TAXIS.
Dedicated Schools Grant,Dedicated Schools Grant,Transport,230010,Contract Hire,05-Jan-2016,3070043-75-18/12/15,"1,055.00",LORRAINES TAXIS.
Dedicated Schools Grant,Dedicated Schools Grant,Transport,230010,Contract Hire,05-Jan-2016,3070053-221,800.00,MACS TAXIS DURHAM LTD.
Dedicated Schools Grant,Dedicated Schools Grant,Transport,230010,Contract Hire,05-Jan-2016,3070057-121502,884.00,MARK & JOHN CHISHOLM T/A (CHEVRON).
Dedicated Schools Grant,Dedicated Schools Grant,Transport,230010,Contract Hire,05-Jan-2016,3070057-121504,"1,328.00",MARK & JOHN CHISHOLM T/A (CHEVRON).
Dedicated Schools Grant,Dedicated Schools Grant,Transport,230010,Contract Hire,05-Jan-2016,3070057-121508,"1,040.00",MARK & JOHN CHISHOLM T/A (CHEVRON).
Dedicated Schools Grant,Dedicated Schools Grant,Transport,230010,Contract Hire,05-Jan-2016,3070083-QC/12/15,728.00,MR J AGAR T/A PARK TAXIS.
Dedicated Schools Grant,Dedicated Schools Grant,Transport,230010,Contract Hire,05-Jan-2016,3070226-PO64WDEC,"1,050.00",WE AR CABS.
Children and Adult Services,Education,Transport,230007,Contract Hire,05-Jan-2016,3069843-121501,994.00,24/7 TAXI SERVICES LTD.
Children and Adult Services,Education,Transport,230008,Contract Hire,05-Jan-2016,3069843-121502,"1,246.38",24/7 TAXI SERVICES LTD.
Children and Adult Services,Education,Transport,230008,Contract Hire,05-Jan-2016,3069843-121503,915.18,24/7 TAXI SERVICES LTD.
Children and Adult Services,Education,Transport,230008,Contract Hire,05-Jan-2016,3069843-121504,587.99,24/7 TAXI SERVICES LTD.
Children and Adult Services,Education,Transport,230008,Contract Hire,05-Jan-2016,3069843-121505,966.00,24/7 TAXI SERVICES LTD.
Children and Adult Services,Education,Transport,230006,Contract Hire,05-Jan-2016,3069843-121506,652.00,24/7 TAXI SERVICES LTD.
Children and Adult Services,Education,Transport,230008,Contract Hire,05-Jan-2016,3069843-121508,"1,555.45",24/7 TAXI SERVICES LTD.
Children and Adult Services,Education,Transport,230008,Contract Hire,05-Jan-2016,3069843-121509,"1,235.00",24/7 TAXI SERVICES LTD.
Children and Adult Services,Education,Transport,230008,Contract Hire,05-Jan-2016,3069847-19A,900.34,A & P TAXIS.
Children and Adult Services,Education,Transport,230008,Contract Hire,05-Jan-2016,3069850-A220770,"1,250.90",A MURRAY TRAVEL.
Children and Adult Services,Education,Transport,230007,Contract Hire,05-Jan-2016,3069862-SAS1215ESH,630.00,AIRPORT CARS DURHAM
Children and Adult Services,Education,Transport,230008,Contract Hire,05-Jan-2016,3069863-388139,560.00,ALAN SOUTHERN T/A ALANS TAXIS PELTON FELL.
Children and Adult Services,Education,Transport,230008,Contract Hire,05-Jan-2016,3069863-388239,"1,043.00",ALAN SOUTHERN T/A ALANS TAXIS PELTON FELL.
Children and Adult Services,Education,Transport,230008,Contract Hire,05-Jan-2016,3069875-516,972.58,AT TAXIS LTD.
Children and Adult Services,Education,Transport,230006,Contract Hire,05-Jan-2016,3069875-519,"1,170.00",AT TAXIS LTD.
Children and Adult Services,Education,Transport,230008,Contract Hire,05-Jan-2016,3069877-1701215,952.64,AVALON TAXIS.
Children and Adult Services,Education,Transport,230008,Contract Hire,05-Jan-2016,3069878-004,588.00,AVENUE TAXIS.
Children and Adult Services,Education,Transport,230008,Contract Hire,05-Jan-2016,3069881-10DECEMBER15,"1,195.74",BEELINE PRIVATE HIRE.
Children and Adult Services,Education,Transport,230008,Contract Hire,05-Jan-2016,3069881-DECEMBER15,984.62,BEELINE PRIVATE HIRE.
Children and Adult Services,Education,Transport,230008,Contract Hire,05-Jan-2016,3069882-51,"1,536.94",BEELINE TAXIS.
Children and Adult Services,Education,Transport,230008,Contract Hire,05-Jan-2016,3069887-119,"1,372.00",BG TAXIS.
Children and Adult Services,Education,Transport,230007,Contract Hire,05-Jan-2016,3069889-DEC15,672.00,BIG MAMMA`S EXPRESS.
Children and Adult Services,Education,Transport,230007,Contract Hire,05-Jan-2016,3069891-04,680.00,BILL`S TAXIS.
Children and Adult Services,Education,Transport,230008,Contract Hire,05-Jan-2016,3069913-14/2015,"1,170.00",CHAPMAN TRAVEL.
Children and Adult Services,Education,Transport,230007,Contract Hire,05-Jan-2016,3069920-45198,918.71,CJ GRIERSON T/A GRIERSONS COACHES.
Children and Adult Services,Education,Transport,230007,Contract Hire,05-Jan-2016,3069920-45199,"3,149.64",CJ GRIERSON T/A GRIERSONS COACHES.
Children and Adult Services,Education,Transport,230007,Contract Hire,05-Jan-2016,3069924-C/9014,"4,460.68",COCHRANES T/A KELVIN TRAVEL.
Children and Adult Services,Education,Transport,230008,Contract Hire,05-Jan-2016,3069935-69,847.98,D CROOK T/A CK TAXIS.
Children and Adult Services,Education,Transport,230007,Contract Hire,05-Jan-2016,3069961-5202/DEC/15,700.00,EMMA RAMSHAW T/A EMMA`S CABS.
Children and Adult Services,Education,Transport,230008,Contract Hire,05-Jan-2016,3069979-7001,"2,876.00",GATESHEAD CENTRAL TAXIS LTD.
Children and Adult Services,Education,Transport,230007,Contract Hire,05-Jan-2016,3069984-3051,980.00,GEM TRAVEL.
Children and Adult Services,Education,Transport,230008,Contract Hire,05-Jan-2016,3069989-000016,"1,085.00",GP TAXIS.
Children and Adult Services,Education,Transport,230008,Contract Hire,05-Jan-2016,3070000-1-DEC2015,"1,131.33",HENRYS TAXIS.
Children and Adult Services,Education,Transport,230007,Contract Hire,05-Jan-2016,3070004-013616,"1,060.92",HODGSONS COACH OPERATORS LTD.
Children and Adult Services,Education,Transport,230007,Contract Hire,05-Jan-2016,3070004-013617,707.28,HODGSONS COACH OPERATORS LTD.
Children and Adult Services,Education,Transport,230007,Contract Hire,05-Jan-2016,3070004-013653,"2,275.39",HODGSONS COACH OPERATORS LTD.
Children and Adult Services,Education,Transport,230007,Contract Hire,05-Jan-2016,3070004-013655,"2,109.45",HODGSONS COACH OPERATORS LTD.
Children and Adult Services,Education,Transport,230007,Contract Hire,05-Jan-2016,3070004-013656,"1,406.30",HODGSONS COACH OPERATORS LTD.
Children and Adult Services,Education,Transport,230007,Contract Hire,05-Jan-2016,3070004-013657,"7,737.87",HODGSONS COACH OPERATORS LTD.
Children and Adult Services,Education,Transport,230007,Contract Hire,05-Jan-2016,3070004-013658,"4,790.11",HODGSONS COACH OPERATORS LTD.
Children and Adult Services,Education,Transport,230007,Contract Hire,05-Jan-2016,3070004-013659,593.67,HODGSONS COACH OPERATORS LTD.
Children and Adult Services,Education,Transport,230007,Contract Hire,05-Jan-2016,3070004-013661,"1,021.66",HODGSONS COACH OPERATORS LTD.
Children and Adult Services,Education,Transport,230007,Contract Hire,05-Jan-2016,3070004-013662,710.72,HODGSONS COACH OPERATORS LTD.
Children and Adult Services,Education,Transport,230007,Contract Hire,05-Jan-2016,3070004-013665,"1,144.71",HODGSONS COACH OPERATORS LTD.
Children and Adult Services,Education,Transport,230007,Contract Hire,05-Jan-2016,3070004-013666,708.63,HODGSONS COACH OPERATORS LTD.
Children and Adult Services,Education,Transport,230007,Contract Hire,05-Jan-2016,3070004-013667,"1,271.97",HODGSONS COACH OPERATORS LTD.
Children and Adult Services,Education,Transport,230007,Contract Hire,05-Jan-2016,3070004-013668,787.41,HODGSONS COACH OPERATORS LTD.
Children and Adult Services,Education,Transport,230007,Contract Hire,05-Jan-2016,3070004-013669,"1,060.08",HODGSONS COACH OPERATORS LTD.
Children and Adult Services,Education,Transport,230007,Contract Hire,05-Jan-2016,3070004-013672,"2,475.39",HODGSONS COACH OPERATORS LTD.
Children and Adult Services,Education,Transport,230007,Contract Hire,05-Jan-2016,3070004-013673,"3,434.34",HODGSONS COACH OPERATORS LTD.
Children and Adult Services,Education,Transport,230007,Contract Hire,05-Jan-2016,3070004-013675,"2,289.56",HODGSONS COACH OPERATORS LTD.
Children and Adult Services,Education,Transport,230007,Contract Hire,05-Jan-2016,3070004-013676,"1,802.01",HODGSONS COACH OPERATORS LTD.
Children and Adult Services,Education,Transport,230007,Contract Hire,05-Jan-2016,3070004-013677,"1,201.34",HODGSONS COACH OPERATORS LTD.
Children and Adult Services,Education,Transport,230007,Contract Hire,05-Jan-2016,3070017-2475,"1,322.86",JEFF ANDERSON COACHES LTD.
Children and Adult Services,Education,Transport,230008,Contract Hire,05-Jan-2016,3070025-A098-DEC15,896.00,K & R TAXIS.
Children and Adult Services,Education,Transport,230008,Contract Hire,05-Jan-2016,3070027-04-DEC15,672.00,KD TAXIS.
Children and Adult Services,Education,Transport,230008,Contract Hire,05-Jan-2016,3070027-4-DEC15,"1,764.00",KD TAXIS.
Children and Adult Services,Education,Transport,230007,Contract Hire,05-Jan-2016,3070028-2004,638.00,KEN HINDS.
Children and Adult Services,Education,Transport,230006,Contract Hire,05-Jan-2016,3070033-1055,"1,505.00",LD TAXIS.
Children and Adult Services,Education,Transport,230008,Contract Hire,05-Jan-2016,3070039-2418,962.00,LOCAL TRANSPORT LTD.
Children and Adult Services,Education,Transport,230008,Contract Hire,05-Jan-2016,3070039-2420,"1,120.00",LOCAL TRANSPORT LTD.
Children and Adult Services,Education,Transport,230008,Contract Hire,05-Jan-2016,3070043-76-18/12/15,"1,173.06",LORRAINES TAXIS.
Children and Adult Services,Education,Transport,230008,Contract Hire,05-Jan-2016,3070045-34,784.00,LUMLEY TAXIS.
Children and Adult Services,Education,Transport,230008,Contract Hire,05-Jan-2016,3070049-36,975.00,M BEHAN T/A M & M`S TAXIS.
Children and Adult Services,Education,Transport,230008,Contract Hire,05-Jan-2016,3070050-91,"1,498.50",M BUTCHER T/A KIDDI CABS.
Children and Adult Services,Education,Transport,230008,Contract Hire,05-Jan-2016,3070051-DECEMBERB2,"1,120.00",MA BODDY.
Children and Adult Services,Education,Transport,230007,Contract Hire,05-Jan-2016,3070051-DECEMBERB3,"1,030.00",MA BODDY.
Children and Adult Services,Education,Transport,230008,Contract Hire,05-Jan-2016,3070055-15,980.00,MALCOLM CARR T/A CARLY CABS.
Children and Adult Services,Education,Transport,230008,Contract Hire,05-Jan-2016,3070057-121501,"2,534.50",MARK & JOHN CHISHOLM T/A (CHEVRON).
Children and Adult Services,Education,Transport,230008,Contract Hire,05-Jan-2016,3070057-121503,"1,066.00",MARK & JOHN CHISHOLM T/A (CHEVRON).
Children and Adult Services,Education,Transport,230008,Contract Hire,05-Jan-2016,3070057-121505,812.00,MARK & JOHN CHISHOLM T/A (CHEVRON).
Children and Adult Services,Education,Transport,230008,Contract Hire,05-Jan-2016,3070059-381215,"1,358.00",MARK MUSGROVE T/A MARKS TAXIS.
Children and Adult Services,Education,Transport,230008,Contract Hire,05-Jan-2016,3070059-481215,644.00,MARK MUSGROVE T/A MARKS TAXIS.
Children and Adult Services,Education,Transport,230008,Contract Hire,05-Jan-2016,3070063-17,"1,155.00",MAURICE & SONS.
Children and Adult Services,Education,Transport,230008,Contract Hire,05-Jan-2016,3070065-00801,"2,204.79",MICHAELS TRAVEL.
Children and Adult Services,Education,Transport,230008,Contract Hire,05-Jan-2016,3070065-00802,"2,245.95",MICHAELS TRAVEL.
Children and Adult Services,Education,Transport,230007,Contract Hire,05-Jan-2016,3070065-00808,975.00,MICHAELS TRAVEL.
Children and Adult Services,Education,Transport,230008,Contract Hire,05-Jan-2016,3070065-00809,"1,469.86",MICHAELS TRAVEL.
Children and Adult Services,Education,Transport,230008,Contract Hire,05-Jan-2016,3070065-00810,"1,497.30",MICHAELS TRAVEL.
Children and Adult Services,Education,Transport,230008,Contract Hire,05-Jan-2016,3070070-KDC011215,"1,750.25",MJ TIMNEY T/A KDC & C&M TAXIS.
Children and Adult Services,Education,Transport,230008,Contract Hire,05-Jan-2016,3070074-CEW27,"1,190.00",MOOR PRIVATE HIRE.
Children and Adult Services,Education,Transport,230007,Contract Hire,05-Jan-2016,3070075-004,"1,120.00",MORGAN`S TRAVEL.
Children and Adult Services,Education,Transport,230007,Contract Hire,05-Jan-2016,3070076-15,560.00,MR BW YOUNG T/A ESH TAXIS.
Children and Adult Services,Education,Transport,230008,Contract Hire,05-Jan-2016,3070079-WINDS12/15,"2,165.28",MR CT WALKER T/A COLIN`S TAXIS.
Children and Adult Services,Education,Transport,230008,Contract Hire,05-Jan-2016,3070081-66195,"1,120.60",MR GN ROBBINS T/A GNR MINIBUS HIRE.
Children and Adult Services,Education,Transport,230008,Contract Hire,05-Jan-2016,3070081-66196,999.05,MR GN ROBBINS T/A GNR MINIBUS HIRE.
Children and Adult Services,Education,Transport,230008,Contract Hire,05-Jan-2016,3070082-98Q4571,"1,525.42",MR GS ANDERSON.
Children and Adult Services,Education,Transport,230007,Contract Hire,05-Jan-2016,3070084-05A,826.00,MR KJB BOWERY T/A KJB TAXIS.
Children and Adult Services,Education,Transport,230008,Contract Hire,05-Jan-2016,3070086-N059/12/15,"1,120.00",MR M ALLISON T/A MACBETH TAXIS/COACHES.
Children and Adult Services,Education,Transport,230008,Contract Hire,05-Jan-2016,3070087-0112,"2,688.00",MR P CAHILL T/A KILEYS TAXIS.
Children and Adult Services,Education,Transport,230008,Contract Hire,05-Jan-2016,3070087-0113,"1,792.00",MR P CAHILL T/A KILEYS TAXIS.
Children and Adult Services,Education,Transport,230007,Contract Hire,05-Jan-2016,3070089-4/4076,840.00,MR REES WILKINSON T/A B & L MINIBUS HIRE.
Children and Adult Services,Education,Transport,230007,Contract Hire,05-Jan-2016,3070089-4/5194,630.00,MR REES WILKINSON T/A B & L MINIBUS HIRE.
Children and Adult Services,Education,Transport,230008,Contract Hire,05-Jan-2016,3070090-AA332,"2,108.54",MR T GUNN.
Children and Adult Services,Education,Transport,230008,Contract Hire,05-Jan-2016,3070100-015,780.00,NEIL PASSMOOR T/A NEIL`S TAXI.
Children and Adult Services,Education,Transport,230008,Contract Hire,05-Jan-2016,3070100-15,"1,105.00",NEIL PASSMOOR T/A NEIL`S TAXI.
Children and Adult Services,Education,Transport,230008,Contract Hire,05-Jan-2016,3070117-6342,"1,958.88",OVERLANDER LTD.
Children and Adult Services,Education,Transport,230008,Contract Hire,05-Jan-2016,3070117-6352,"1,305.92",OVERLANDER LTD.
Children and Adult Services,Education,Transport,230007,Contract Hire,05-Jan-2016,3070117-6354,"1,295.00",OVERLANDER LTD.
Children and Adult Services,Education,Transport,230007,Contract Hire,05-Jan-2016,3070121-1479,756.00,PAUL WATSON TRAVEL.
Children and Adult Services,Education,Transport,230007,Contract Hire,05-Jan-2016,3070121-1480,"1,680.00",PAUL WATSON TRAVEL.
Children and Adult Services,Education,Transport,230006,Contract Hire,05-Jan-2016,3070123-DCC58,668.00,PAUL`S TAXIS..
Children and Adult Services,Education,Transport,230008,Contract Hire,05-Jan-2016,3070123-DCC59,"1,125.74",PAUL`S TAXIS..
Children and Adult Services,Education,Transport,230008,Contract Hire,05-Jan-2016,3070124-DCC90,630.00,PB PRIVATE HIRE.
Children and Adult Services,Education,Transport,230008,Contract Hire,05-Jan-2016,3070124-DCC91,880.00,PB PRIVATE HIRE.
Children and Adult Services,Education,Transport,230007,Contract Hire,05-Jan-2016,3070126-33A,560.00,PETER HOLMES T/A PETERS TAXIS.
Children and Adult Services,Education,Transport,230008,Contract Hire,05-Jan-2016,3070127-0419,"1,638.00",PETER`S PRIVATE HIRE/PETER BEST.
Children and Adult Services,Education,Transport,230008,Contract Hire,05-Jan-2016,3070127-0420,"1,575.00",PETER`S PRIVATE HIRE/PETER BEST.
Children and Adult Services,Education,Transport,230008,Contract Hire,05-Jan-2016,3070127-0421,"1,330.00",PETER`S PRIVATE HIRE/PETER BEST.
Children and Adult Services,Education,Transport,230008,Contract Hire,05-Jan-2016,3070135-151261,"1,789.76",PRATTS TAXIS.
Children and Adult Services,Education,Transport,230008,Contract Hire,05-Jan-2016,3070135-151263,"1,120.00",PRATTS TAXIS.
Children and Adult Services,Education,Transport,230007,Contract Hire,05-Jan-2016,3070135-151265,"1,260.00",PRATTS TAXIS.
Children and Adult Services,Education,Transport,230007,Contract Hire,05-Jan-2016,3070137-305,"1,128.54",PREMIER PRIVATE HIRE.
Children and Adult Services,Education,Transport,230007,Contract Hire,05-Jan-2016,3070140-812,"2,240.00",PYGALL COACH HIRE.
Children and Adult Services,Education,Transport,230007,Contract Hire,05-Jan-2016,3070140-813,"1,750.00",PYGALL COACH HIRE.
Children and Adult Services,Education,Transport,230007,Contract Hire,05-Jan-2016,3070140-814,"4,420.00",PYGALL COACH HIRE.
Children and Adult Services,Education,Transport,230007,Contract Hire,05-Jan-2016,3070140-815,"2,450.00",PYGALL COACH HIRE.
Children and Adult Services,Education,Transport,230007,Contract Hire,05-Jan-2016,3070140-816,"1,869.00",PYGALL COACH HIRE.
Children and Adult Services,Education,Transport,230007,Contract Hire,05-Jan-2016,3070140-817,"1,625.00",PYGALL COACH HIRE.
Children and Adult Services,Education,Transport,230008,Contract Hire,05-Jan-2016,3070166-125,"1,463.00",SIMONS TAXIS.
Children and Adult Services,Education,Transport,230007,Contract Hire,05-Jan-2016,3070175-17280,"1,128.00",STANLEY TRAVEL (NORTH EAST) LTD.
Children and Adult Services,Education,Transport,230007,Contract Hire,05-Jan-2016,3070175-17281,"1,547.84",STANLEY TRAVEL (NORTH EAST) LTD.
Children and Adult Services,Education,Transport,230008,Contract Hire,05-Jan-2016,3070175-17282,726.60,STANLEY TRAVEL (NORTH EAST) LTD.
Children and Adult Services,Education,Transport,230007,Contract Hire,05-Jan-2016,3070179-338,"1,309.75",STEPHEN MAUDE LTD T/A MAUDES COACHES.
Children and Adult Services,Education,Transport,230007,Contract Hire,05-Jan-2016,3070179-339,"1,440.92",STEPHEN MAUDE LTD T/A MAUDES COACHES.
Children and Adult Services,Education,Transport,230007,Contract Hire,05-Jan-2016,3070179-340,"1,482.74",STEPHEN MAUDE LTD T/A MAUDES COACHES.
Children and Adult Services,Education,Transport,230008,Contract Hire,05-Jan-2016,3070211-6,"1,443.00",TRUDY`S.
Children and Adult Services,Education,Transport,230008,Contract Hire,05-Jan-2016,3070225-1038,"1,232.00",WAYNE`S TAXIS.
Children and Adult Services,Education,Transport,230008,Contract Hire,05-Jan-2016,3070225-1039,"1,400.00",WAYNE`S TAXIS.
Children and Adult Services,Education,Transport,230007,Contract Hire,05-Jan-2016,3070228-5378,"3,084.06",WEARDALE PRIVATE HIRE.
Children and Adult Services,Education,Transport,230007,Contract Hire,05-Jan-2016,3070228-5379,"2,546.46",WEARDALE PRIVATE HIRE.
Children and Adult Services,Education,Transport,230006,Contract Hire,05-Jan-2016,3070228-5381,"1,106.00",WEARDALE PRIVATE HIRE.
Children and Adult Services,Education,Transport,230008,Contract Hire,05-Jan-2016,3070230-WESTLEA181215,703.64,WESTLEA TAXIS.
Children and Adult Services,Education,Transport,230007,Contract Hire,05-Jan-2016,3070231-181215,728.00,WIL TRAVEL.
Children and Adult Services,Head of Adults,Transport,230005,Contract Hire,05-Jan-2016,3069852-K16/SM,"1,246.00",AABAT TAXIS.
Children and Adult Services,Head of Adults,Transport,230005,Contract Hire,05-Jan-2016,3069853-0284,"1,036.00",ABC & OUSTON CABS.
Children and Adult Services,Head of Adults,Transport,230005,Contract Hire,05-Jan-2016,3069855-187,666.00,ACE TAXIS..
Children and Adult Services,Head of Adults,Transport,230005,Contract Hire,05-Jan-2016,3069862-SAS1215NCL,"1,190.00",AIRPORT CARS DURHAM
Children and Adult Services,Head of Adults,Transport,230005,Contract Hire,05-Jan-2016,3069876-03372,627.00,ATLAS TAXIS CONSETT.
Children and Adult Services,Head of Adults,Transport,230005,Contract Hire,05-Jan-2016,3069934-5764,"1,186.08",CROFT BUSINESS SERVICES (UK) LTD T/A CROFT TAXIS.
Children and Adult Services,Head of Adults,Transport,230005,Contract Hire,05-Jan-2016,3069934-5773,502.96,CROFT BUSINESS SERVICES (UK) LTD T/A CROFT TAXIS.
Children and Adult Services,Head of Adults,Transport,230005,Contract Hire,05-Jan-2016,3069972-WV079-021,595.00,FERRYHILL VILLAGE TRAVEL.
Children and Adult Services,Head of Adults,Transport,230005,Contract Hire,05-Jan-2016,3070016-NUM843,640.00,JDS PRIVATE HIRE DURHAM.
Children and Adult Services,Head of Adults,Transport,230005,Contract Hire,05-Jan-2016,3070023-DM1494,616.00,JOVIAL PRIVATE HIRE.
Children and Adult Services,Head of Adults,Transport,230005,Contract Hire,05-Jan-2016,3070030-4-18/12/15,840.00,KT TAXIS.
Children and Adult Services,Head of Adults,Transport,230005,Contract Hire,05-Jan-2016,3070059-591215,910.00,MARK MUSGROVE T/A MARKS TAXIS.
Children and Adult Services,Head of Adults,Transport,230005,Contract Hire,05-Jan-2016,3070079-EDB12/15,798.00,MR CT WALKER T/A COLIN`S TAXIS.
Children and Adult Services,Head of Adults,Transport,230005,Contract Hire,05-Jan-2016,3070127-0424,792.00,PETER`S PRIVATE HIRE/PETER BEST.
Children and Adult Services,Head of Adults,Transport,230005,Contract Hire,05-Jan-2016,3070151-CLS060-4,630.00,ROUTE 1.
Children and Adult Services,Head of Adults,Transport,230005,Contract Hire,05-Jan-2016,3070166-126,592.00,SIMONS TAXIS.
Children and Adult Services,Head of Adults,Transport,230005,Contract Hire,05-Jan-2016,3070178-DCC080/SLD005,"1,106.00",STEPHEN COXON.
Children and Adult Services,Head of Adults,Transport,230005,Contract Hire,05-Jan-2016,3070226-DM166DEC,540.00,WE AR CABS.
Children and Adult Services,Public Health,Third Party Payments,460802,Contract Payments,05-Jan-2016,3070172-7710010397,"11,790.00",SOUTH TYNESIDE NHS TRUST.
Children and Adult Services,Public Health,Third Party Payments,460802,Contract Payments,05-Jan-2016,3070172-7710010398,"5,047.00",SOUTH TYNESIDE NHS TRUST.
Children and Adult Services,Public Health,Third Party Payments,460802,Contract Payments,05-Jan-2016,3070220-828Z1718,"9,874.00",VIRGIN CARE STOCKTON LLP.
Neighbourhood Services,Technical Services,Third Party Payments,460308,Contract Payments,05-Jan-2016,3069949-DBA79,674.00,DOUG O BAINTON.
Neighbourhood Services,Technical Services,Third Party Payments,460308,Contract Payments,05-Jan-2016,3069980-GHU79,560.50,GAVIN HUTCHINSON.
Children and Adult Services,Head of Adults,Supplies and Services,304252,Equipment and Materials,05-Jan-2016,3070101-1080689/P,"1,820.00",NL PAINTER AND DECORATOR.
Neighbourhood Services,Technical Services,Supplies and Services,304221,Equipment and Materials,05-Jan-2016,3069861-22393091,"1,221.28",AGGREGATE INDUSTRIES UK LTD.
Neighbourhood Services,Direct Services,Supplies and Services,304259,Equipment and Materials,05-Jan-2016,3070020-00240,"1,550.00",JN KEARTON.
Neighbourhood Services,Technical Services,Supplies and Services,304358,Equipment and Materials,05-Jan-2016,3070021-24387,785.00,JOHN R BUTTERFIELD LTD.
Neighbourhood Services,Technical Services,Supplies and Services,304358,Equipment and Materials,05-Jan-2016,3070021-24394,955.50,JOHN R BUTTERFIELD LTD.
Neighbourhood Services,Technical Services,Supplies and Services,304358,Equipment and Materials,05-Jan-2016,3070021-24415,585.00,JOHN R BUTTERFIELD LTD.
Neighbourhood Services,Technical Services,Supplies and Services,304358,Equipment and Materials,05-Jan-2016,3070021-24420,955.50,JOHN R BUTTERFIELD LTD.
Neighbourhood Services,Direct Services,Supplies and Services,304221,Equipment and Materials,05-Jan-2016,3070114-17806,865.00,OLIVERS TREE SERVICES LTD.
Neighbourhood Services,Direct Services,Supplies and Services,304358,Equipment and Materials,05-Jan-2016,3070131-PJ.2.12.15,816.00,PJ PLANT HIRE LTD.
Children and Adult Services,Childrens Services,Supplies and Services,384302,Miscellaneous Expenses,05-Jan-2016,3069932-053C,532.00,CREATIVE YOUTH OPPORTUNITIES.
Children and Adult Services,Childrens Services,Supplies and Services,384491,Miscellaneous Expenses,05-Jan-2016,3070183-11634,572.00,SUNSHINE DAY NURSERY.
Children and Adult Services,Childrens Services,Supplies and Services,384491,Miscellaneous Expenses,05-Jan-2016,3070183-11637,561.00,SUNSHINE DAY NURSERY.
Children and Adult Services,Childrens Services,Supplies and Services,384199,Miscellaneous Expenses,05-Jan-2016,3070183-11641,500.50,SUNSHINE DAY NURSERY.
Neighbourhood Services,Technical Services,Supplies and Services,384194,Miscellaneous Expenses,05-Jan-2016,3070104-52450,"1,900.00",NIRAMAX GROUP LTD.
Neighbourhood Services,Direct Services,Supplies and Services,384199,Miscellaneous Expenses,05-Jan-2016,3070223-0024516.,"4,770.00",W@TERSTONS LTD.
Children and Adult Services,Childrens Services,Third Party Payments,440027,Other Third Party Payments,05-Jan-2016,3069288-1074544,571.71,REDACTED - PAYMENT TO INDIVIDUAL
Children and Adult Services,Childrens Services,Third Party Payments,440027,Other Third Party Payments,05-Jan-2016,3069307-1073397,840.75,REDACTED - PAYMENT TO INDIVIDUAL
Children and Adult Services,Childrens Services,Third Party Payments,440001,Other Third Party Payments,05-Jan-2016,3069307-1073883,576.00,REDACTED - PAYMENT TO INDIVIDUAL
Children and Adult Services,Childrens Services,Third Party Payments,440001,Other Third Party Payments,05-Jan-2016,3069453-1074517,508.96,REDACTED - PAYMENT TO INDIVIDUAL
Children and Adult Services,Childrens Services,Third Party Payments,440001,Other Third Party Payments,05-Jan-2016,3069517-1073767,590.72,REDACTED - PAYMENT TO INDIVIDUAL
Children and Adult Services,Childrens Services,Third Party Payments,440027,Other Third Party Payments,05-Jan-2016,3069517-1074558,874.38,REDACTED - PAYMENT TO INDIVIDUAL
Children and Adult Services,Childrens Services,Third Party Payments,440016,Other Third Party Payments,05-Jan-2016,3069540-1074518,"1,656.48",REDACTED - PAYMENT TO INDIVIDUAL
Children and Adult Services,Childrens Services,Third Party Payments,440036,Other Third Party Payments,05-Jan-2016,3069608-1074489,769.65,REDACTED - PAYMENT TO INDIVIDUAL
Children and Adult Services,Childrens Services,Third Party Payments,440028,Other Third Party Payments,05-Jan-2016,3069663-1074536,"1,479.72",REDACTED - PAYMENT TO INDIVIDUAL
Children and Adult Services,Childrens Services,Third Party Payments,440001,Other Third Party Payments,05-Jan-2016,3069675-1074519,666.00,REDACTED - PAYMENT TO INDIVIDUAL
Children and Adult Services,Childrens Services,Third Party Payments,440001,Other Third Party Payments,05-Jan-2016,3069683-1074520,655.38,REDACTED - PAYMENT TO INDIVIDUAL
Children and Adult Services,Childrens Services,Third Party Payments,440001,Other Third Party Payments,05-Jan-2016,3069800-1073787,819.33,REDACTED - PAYMENT TO INDIVIDUAL
Children and Adult Services,Childrens Services,Third Party Payments,440001,Other Third Party Payments,05-Jan-2016,3069943-CAS-01-2016-003,504.00,REDACTED - PAYMENT TO INDIVIDUAL
Children and Adult Services,Commissioning inc Supporting People,Third Party Payments,440999,Other Third Party Payments,05-Jan-2016,3070145-440133779,"70,500.00",REDCAR & CLEVELAND BOROUGH COUNCIL.
Regeneration & Economic Development,Transport and Contracted Services,Third Party Payments,440999,Other Third Party Payments,05-Jan-2016,3070108-51135,"3,500.00",NORTHERN HOUSING CONSORTIUM LTD.
Children and Adult Services,Commissioning inc Supporting People,Third Party Payments,473111,Purchase of Care,05-Jan-2016,3069874-D/OP42-2015/16-Q3,"4,194.50",ASSOCIATION OF TEESDALE DAY CLUBS.
Children and Adult Services,Commissioning inc Supporting People,Third Party Payments,473111,Purchase of Care,05-Jan-2016,3070103-0025.,"6,188.05",THE HUB OF WISHES.
Children and Adult Services,Head of Adults,Third Party Payments,473101,Purchase of Care,05-Jan-2016,3070133-1583359D,760.56,PORTLAND DAY CARE.
Neighbourhood Services,Direct Services,Third Party Payments,430100,Rendered by Private Contractors,05-Jan-2016,3069910-152,"1,009.04",CEILINGS DIRECT LTD.
Neighbourhood Services,Direct Services,Third Party Payments,430100,Rendered by Private Contractors,05-Jan-2016,3069963-297087,545.40,ENTERPRISE FLEX-E-RENT T/A BURNT TREE GROUP LTD.
Neighbourhood Services,Direct Services,Third Party Payments,430100,Rendered by Private Contractors,05-Jan-2016,3069983-C03647,"1,457.24",GEESINK NORBA LTD.
Neighbourhood Services,Technical Services,Third Party Payments,430100,Rendered by Private Contractors,05-Jan-2016,3070224-19643,"7,505.80",WATERSEAL (WATERBAR & SEALANTS) LTD.
Neighbourhood Services,Direct Services,Transport,210057,Repair and Maintenance of Vehicles,05-Jan-2016,3069884-15093140,606.80,BELL TRUCK SALES LTD.
Neighbourhood Services,Direct Services,Transport,210057,Repair and Maintenance of Vehicles,05-Jan-2016,3070034-262956,711.65,IWS (INDUSTRIAL & WELDING SUPPLIES).
Neighbourhood Services,Direct Services,Transport,210057,Repair and Maintenance of Vehicles,05-Jan-2016,3070240-SI72653,508.78,ZOELLER WASTE SYSTEMS LTD.
Neighbourhood Services,Direct Services,Premises,108251,Service Repairs and Maintenance,05-Jan-2016,3070177-8485,570.00,STEADFAST SECURITY SOLUTIONS LTD.
Children and Adult Services,Head of Adults,Supplies and Services,338045,Services,05-Jan-2016,3070008-168,"1,443.70",INDEPENDENT PSYCHIATRIC REPORTS LTD.
Neighbourhood Services,Culture & Sport,Supplies and Services,338099,Services,05-Jan-2016,3069899-650083039,"2,024.00",BRITISH RED CROSS SOCIETY.
Regeneration & Economic Development,Spatial Policy Planning Assets & Environment,Supplies and Services,338066,Services,05-Jan-2016,3070158-2055-001,"3,054.00",SARAH DYER.
Neighbourhood Services,Direct Services,Stock,926004,Stock,05-Jan-2016,3070099-INVDUR00312369,655.90,NE TRUCK SPARES LTD.
Neighbourhood Services,Technical Services,Stock,926900,Stock in hand-Inventory system,05-Jan-2016,3069872-926235239,824.85,ARCO LTD.
Neighbourhood Services,Technical Services,Stock,926900,Stock in hand-Inventory system,05-Jan-2016,3069992-06/582991,"1,232.76",GREENHAM TRADING LTD.
Resources,I.C.T. Services,Stock,926900,Stock in hand-Inventory system,05-Jan-2016,3069945-7402254541,"43,600.00",DELL COMPUTER CORPORATION LTD.
Resources,I.C.T. Services,Stock,926900,Stock in hand-Inventory system,05-Jan-2016,3069945-7402254548,"3,417.00",DELL COMPUTER CORPORATION LTD.
Neighbourhood Services,Projects and Business services,Supplies and Services,336005,Advertising,06-Jan-2016,3070623-14035,"1,850.00",UR PROMOTIONS LTD.
Children and Adult Services,Childrens Services,Premises,150005,Apportioned Exps of Operational Blds,06-Jan-2016,3070620-DCC0027,873.92,TYNE VIEW PROPERTY MANAGEMENT LTD.
Children and Adult Services,Childrens Services,Premises,150005,Apportioned Exps of Operational Blds,06-Jan-2016,3070620-DCC026,782.77,TYNE VIEW PROPERTY MANAGEMENT LTD.
Regeneration & Economic Development,Economic Development and Housing,Cap Exp on Grants & Other Financial Assistance (REFCUS),918401,Capital grants,06-Jan-2016,3070274-113,"3,643.03",AVENSWAY BUILDING CONTRACTORS LTD.
Regeneration & Economic Development,Economic Development and Housing,Cap Exp on Grants & Other Financial Assistance (REFCUS),918401,Capital grants,06-Jan-2016,3070274-114,"7,855.00",AVENSWAY BUILDING CONTRACTORS LTD.
Regeneration & Economic Development,Economic Development and Housing,Cap Exp on Grants & Other Financial Assistance (REFCUS),918401,Capital grants,06-Jan-2016,3070415-117,"9,100.00",HES GROUP UK LTD.
Regeneration & Economic Development,Economic Development and Housing,Cap Exp on Grants & Other Financial Assistance (REFCUS),918401,Capital grants,06-Jan-2016,3070605-115,"3,995.00",THYSSENKRUPP ENCASA A DIVISION OF THYSSENKRUPP ACCESS LTD.
Regeneration & Economic Development,Economic Development and Housing,Cap Exp on Grants & Other Financial Assistance (REFCUS),918401,Capital grants,06-Jan-2016,3070605-116,"1,715.00",THYSSENKRUPP ENCASA A DIVISION OF THYSSENKRUPP ACCESS LTD.
Regeneration & Economic Development,Economic Development and Housing,Cap Exp on Grants & Other Financial Assistance (REFCUS),918401,Capital grants,06-Jan-2016,3070605-118,"5,009.50",THYSSENKRUPP ENCASA A DIVISION OF THYSSENKRUPP ACCESS LTD.
Regeneration & Economic Development,Economic Development and Housing,Cap Exp on Grants & Other Financial Assistance (REFCUS),918401,Capital grants,06-Jan-2016,3070636-059,"14,966.00",WHEATLEY HILL PET & CORN.
Neighbourhood Services,Technical Services,Supplies and Services,328041,Clothing Uniforms and Laundry,06-Jan-2016,3070452-128481,554.80,KELTIC LTD.
Resources,I.C.T. Services,Supplies and Services,342053,Computers and Communications,06-Jan-2016,3070568-INV01280886,812.50,SOFTCAT LTD.
Neighbourhood Services,Technical Services,Construction Work,908105,Construction work,06-Jan-2016,3070434-11929,847.47,JACK COUPE & SONS LTD T/A COUPE LINE.
Neighbourhood Services,Technical Services,Construction Work,908105,Construction work,06-Jan-2016,3070434-11930,"3,104.35",JACK COUPE & SONS LTD T/A COUPE LINE.
Neighbourhood Services,Technical Services,Construction Work,908105,Construction work,06-Jan-2016,3070434-11945,505.99,JACK COUPE & SONS LTD T/A COUPE LINE.
Neighbourhood Services,Technical Services,Construction Work,908105,Construction work,06-Jan-2016,3070434-11946,"1,527.45",JACK COUPE & SONS LTD T/A COUPE LINE.
Neighbourhood Services,Technical Services,Construction Work,908105,Construction work,06-Jan-2016,3070434-11949,"1,655.70",JACK COUPE & SONS LTD T/A COUPE LINE.
Neighbourhood Services,Technical Services,Construction Work,908105,Construction work,06-Jan-2016,3070434-11968,"1,621.00",JACK COUPE & SONS LTD T/A COUPE LINE.
Neighbourhood Services,Technical Services,Construction Work,908105,Construction work,06-Jan-2016,3070434-11969,"1,849.70",JACK COUPE & SONS LTD T/A COUPE LINE.
Neighbourhood Services,Technical Services,Construction Work,908105,Construction work,06-Jan-2016,3070434-11989,532.94,JACK COUPE & SONS LTD T/A COUPE LINE.
Neighbourhood Services,Technical Services,Construction Work,908105,Construction work,06-Jan-2016,3070434-12011,"1,634.70",JACK COUPE & SONS LTD T/A COUPE LINE.
Neighbourhood Services,Technical Services,Construction Work,908105,Construction work,06-Jan-2016,3070434-12034,583.13,JACK COUPE & SONS LTD T/A COUPE LINE.
Regeneration & Economic Development,Transport and Contracted Services,Construction Work,908105,Construction work,06-Jan-2016,3070301-22896,"2,905.88",BUS SHELTERS LTD.
Regeneration & Economic Development,Economic Development and Housing,Professional fees,901002,Professional fees,06-Jan-2016,3070334-15/120,959.00,COUNTRYSIDE CONSULTANTS (ARCHITECTS & PLANNERS).
Dedicated Schools Grant,Dedicated Schools Grant,Transport,230010,Contract Hire,06-Jan-2016,3070474-121509,910.00,MARK & JOHN CHISHOLM T/A (CHEVRON).
Dedicated Schools Grant,Dedicated Schools Grant,Transport,230010,Contract Hire,06-Jan-2016,3070634-487839,616.00,WENDYS` TAXIS.
Children and Adult Services,Education,Transport,230008,Contract Hire,06-Jan-2016,302029-11/15137,"2,058.00",COLLINS TAXIS.
Children and Adult Services,Education,Transport,230007,Contract Hire,06-Jan-2016,302030-20,636.00,DAVID WILKINSON...
Children and Adult Services,Education,Transport,230008,Contract Hire,06-Jan-2016,3070257-40/15,734.86,ADVANCE TRAVEL.
Children and Adult Services,Education,Transport,230007,Contract Hire,06-Jan-2016,3070260-067,"1,165.50",ALANS TAXIS BARNARD CASTLE.
Children and Adult Services,Education,Transport,230007,Contract Hire,06-Jan-2016,3070260-068,"1,890.00",ALANS TAXIS BARNARD CASTLE.
Children and Adult Services,Education,Transport,230006,Contract Hire,06-Jan-2016,3070260-069,840.00,ALANS TAXIS BARNARD CASTLE.
Children and Adult Services,Education,Transport,230008,Contract Hire,06-Jan-2016,3070272-DC10DEC15,"1,040.00",ATLAS TAXIS BISHOP AUCKLAND.
Children and Adult Services,Education,Transport,230008,Contract Hire,06-Jan-2016,3070272-DCC2DEC15,"1,670.48",ATLAS TAXIS BISHOP AUCKLAND.
Children and Adult Services,Education,Transport,230008,Contract Hire,06-Jan-2016,3070272-DCC4DEC15,"1,680.00",ATLAS TAXIS BISHOP AUCKLAND.
Children and Adult Services,Education,Transport,230008,Contract Hire,06-Jan-2016,3070272-DCC8DEC15,"1,120.00",ATLAS TAXIS BISHOP AUCKLAND.
Children and Adult Services,Education,Transport,230006,Contract Hire,06-Jan-2016,3070272-DCC9NOV15,940.00,ATLAS TAXIS BISHOP AUCKLAND.
Children and Adult Services,Education,Transport,230007,Contract Hire,06-Jan-2016,3070318-45203,"1,820.00",CJ GRIERSON T/A GRIERSONS COACHES.
Children and Adult Services,Education,Transport,230007,Contract Hire,06-Jan-2016,3070318-45204,"3,505.04",CJ GRIERSON T/A GRIERSONS COACHES.
Children and Adult Services,Education,Transport,230008,Contract Hire,06-Jan-2016,3070324-E0421215,"1,657.50",COLIN FRANKS T/A FRANKS COACHES.
Children and Adult Services,Education,Transport,230008,Contract Hire,06-Jan-2016,3070381-MO24-DEC15,574.00,EXTREME TAXI`S.
Children and Adult Services,Education,Transport,230008,Contract Hire,06-Jan-2016,3070384-E046-015,"2,196.00",FERRYHILL VILLAGE TRAVEL.
Children and Adult Services,Education,Transport,230008,Contract Hire,06-Jan-2016,3070384-N071-025,"2,476.25",FERRYHILL VILLAGE TRAVEL.
Children and Adult Services,Education,Transport,230008,Contract Hire,06-Jan-2016,3070384-S007-037,"1,591.00",FERRYHILL VILLAGE TRAVEL.
Children and Adult Services,Education,Transport,230007,Contract Hire,06-Jan-2016,3070398-18051,"1,964.48",GARNETTS LTD (COACHES).
Children and Adult Services,Education,Transport,230007,Contract Hire,06-Jan-2016,3070398-18052,"1,638.00",GARNETTS LTD (COACHES).
Children and Adult Services,Education,Transport,230007,Contract Hire,06-Jan-2016,3070398-18053,"8,652.42",GARNETTS LTD (COACHES).
Children and Adult Services,Education,Transport,230007,Contract Hire,06-Jan-2016,3070398-18054,"6,141.52",GARNETTS LTD (COACHES).
Children and Adult Services,Education,Transport,230007,Contract Hire,06-Jan-2016,3070398-18055,"12,634.30",GARNETTS LTD (COACHES).
Children and Adult Services,Education,Transport,230007,Contract Hire,06-Jan-2016,3070398-18056,"1,823.22",GARNETTS LTD (COACHES).
Children and Adult Services,Education,Transport,230007,Contract Hire,06-Jan-2016,3070398-18057,"2,237.34",GARNETTS LTD (COACHES).
Children and Adult Services,Education,Transport,230007,Contract Hire,06-Jan-2016,3070398-18058,"2,170.00",GARNETTS LTD (COACHES).
Children and Adult Services,Education,Transport,230008,Contract Hire,06-Jan-2016,3070404-W082/037,"1,182.50",GMC TAXIS NORTH EAST.
Children and Adult Services,Education,Transport,230008,Contract Hire,06-Jan-2016,3070404-W084/037,"1,251.78",GMC TAXIS NORTH EAST.
Children and Adult Services,Education,Transport,230007,Contract Hire,06-Jan-2016,3070419-013654,"1,582.89",HODGSONS COACH OPERATORS LTD.
Children and Adult Services,Education,Transport,230007,Contract Hire,06-Jan-2016,3070419-013663,"1,161.04",HODGSONS COACH OPERATORS LTD.
Children and Adult Services,Education,Transport,230007,Contract Hire,06-Jan-2016,3070419-013664,807.68,HODGSONS COACH OPERATORS LTD.
Children and Adult Services,Education,Transport,230007,Contract Hire,06-Jan-2016,3070419-013674,"1,717.89",HODGSONS COACH OPERATORS LTD.
Children and Adult Services,Education,Transport,230006,Contract Hire,06-Jan-2016,3070419-013678,570.00,HODGSONS COACH OPERATORS LTD.
Children and Adult Services,Education,Transport,230008,Contract Hire,06-Jan-2016,3070441-2472,"1,446.76",JEFF ANDERSON COACHES LTD.
Children and Adult Services,Education,Transport,230007,Contract Hire,06-Jan-2016,3070441-2476,"1,449.00",JEFF ANDERSON COACHES LTD.
Children and Adult Services,Education,Transport,230008,Contract Hire,06-Jan-2016,3070459-1057,630.00,LD TAXIS.
Children and Adult Services,Education,Transport,230008,Contract Hire,06-Jan-2016,3070464-2379,"1,914.00",LOCAL TRANSPORT LTD.
Children and Adult Services,Education,Transport,230008,Contract Hire,06-Jan-2016,3070464-2417,"1,228.00",LOCAL TRANSPORT LTD.
Children and Adult Services,Education,Transport,230008,Contract Hire,06-Jan-2016,3070464-2422,"1,334.00",LOCAL TRANSPORT LTD.
Children and Adult Services,Education,Transport,230008,Contract Hire,06-Jan-2016,3070479-00803,735.00,MICHAELS TRAVEL.
Children and Adult Services,Education,Transport,230006,Contract Hire,06-Jan-2016,3070486-94,696.00,MR DAVID CULLEN.
Children and Adult Services,Education,Transport,230008,Contract Hire,06-Jan-2016,3070488-N053/12/15,"1,204.00",MR M ALLISON T/A MACBETH TAXIS/COACHES.
Children and Adult Services,Education,Transport,230008,Contract Hire,06-Jan-2016,3070489-1014,578.06,MR PETER YOUNG.
Children and Adult Services,Education,Transport,230008,Contract Hire,06-Jan-2016,3070495-183,"1,288.00",N FORBES.
Children and Adult Services,Education,Transport,230006,Contract Hire,06-Jan-2016,3070515-004,"1,722.00",PAUL ROSE T/A PAUL`S TAXIS.
Children and Adult Services,Education,Transport,230007,Contract Hire,06-Jan-2016,3070637-104,840.00,WHITTONSTALL TAXIS SERVICE.
Children and Adult Services,Public Health,Third Party Payments,460802,Contract Payments,06-Jan-2016,302109-FDD30,713.10,SUPERDRUG PHARMACY.
Children and Adult Services,Public Health,Third Party Payments,460803,Contract Payments,06-Jan-2016,3070342-SINV5259,"4,166.74",CSV COMMUNITY SERVICE VOLUNTEERS.
Children and Adult Services,Commissioning inc Supporting People,Debtors,930138,Debtor IC+ Residential Care Voids - CCG,06-Jan-2016,3070373-CAS-12-2015-150,759.11,EMBRACE ALL LTD.
Children and Adult Services,Commissioning inc Supporting People,Debtors,930138,Debtor IC+ Residential Care Voids - CCG,06-Jan-2016,3070374-CAS-12-2015-151,"2,553.37",EMBRACE ALL LTD.
Regeneration & Economic Development,Economic Development and Housing,Premises,120021,Energy Costs,06-Jan-2016,3070331-10721112,620.83,CORONA ENERGY RETAIL 2 LTD.
Regeneration & Economic Development,Economic Development and Housing,Premises,120021,Energy Costs,06-Jan-2016,3070331-10722537,629.19,CORONA ENERGY RETAIL 2 LTD.
Regeneration & Economic Development,Economic Development and Housing,Premises,120021,Energy Costs,06-Jan-2016,3070331-10723025,"1,366.31",CORONA ENERGY RETAIL 2 LTD.
Neighbourhood Services,Technical Services,Supplies and Services,304221,Equipment and Materials,06-Jan-2016,3070259-22336096,637.33,AGGREGATE INDUSTRIES UK LTD.
Neighbourhood Services,Technical Services,Supplies and Services,304221,Equipment and Materials,06-Jan-2016,3070259-22370229,848.70,AGGREGATE INDUSTRIES UK LTD.
Neighbourhood Services,Technical Services,Supplies and Services,304221,Equipment and Materials,06-Jan-2016,3070259-22383096,646.75,AGGREGATE INDUSTRIES UK LTD.
Neighbourhood Services,Technical Services,Supplies and Services,304221,Equipment and Materials,06-Jan-2016,3070259-22383224,733.32,AGGREGATE INDUSTRIES UK LTD.
Neighbourhood Services,Technical Services,Supplies and Services,304221,Equipment and Materials,06-Jan-2016,3070259-22392984,589.23,AGGREGATE INDUSTRIES UK LTD.
Neighbourhood Services,Technical Services,Supplies and Services,304221,Equipment and Materials,06-Jan-2016,3070259-22404887,673.40,AGGREGATE INDUSTRIES UK LTD.
Neighbourhood Services,Technical Services,Supplies and Services,304221,Equipment and Materials,06-Jan-2016,3070259-22419320,662.36,AGGREGATE INDUSTRIES UK LTD.
Neighbourhood Services,Technical Services,Supplies and Services,304221,Equipment and Materials,06-Jan-2016,3070259-22458837,"1,228.92",AGGREGATE INDUSTRIES UK LTD.
Neighbourhood Services,Technical Services,Supplies and Services,304221,Equipment and Materials,06-Jan-2016,3070297-INV183999,"3,974.75",BROXAP LTD.
Neighbourhood Services,Culture & Sport,Supplies and Services,304259,Equipment and Materials,06-Jan-2016,3070375-02,"2,000.00",EMMA SHANKLAND.
Neighbourhood Services,Direct Services,Supplies and Services,304259,Equipment and Materials,06-Jan-2016,3070408-132413,"2,218.32",GUSTHARTS.
Neighbourhood Services,Direct Services,Supplies and Services,304221,Equipment and Materials,06-Jan-2016,3070420-4704,"1,230.00",HOMEADAPT UK LTD.
Neighbourhood Services,Direct Services,Supplies and Services,304221,Equipment and Materials,06-Jan-2016,3070422-B33/0085869,"2,689.37",HOWDENS JOINERY LTD.
Neighbourhood Services,Technical Services,Supplies and Services,304221,Equipment and Materials,06-Jan-2016,3070447-BII179710,"1,363.12",JT DOVE LTD.
Neighbourhood Services,Direct Services,Supplies and Services,304221,Equipment and Materials,06-Jan-2016,3070514-XL160368,"1,762.80",PARK ELECTRICAL DISTRIBUTORS LTD.
Neighbourhood Services,Technical Services,Supplies and Services,304221,Equipment and Materials,06-Jan-2016,3070562-297920/120259,510.32,SIGNATURE LTD T/A POST & COLUMN CO LTD.
Neighbourhood Services,Technical Services,Supplies and Services,304221,Equipment and Materials,06-Jan-2016,3070562-297921/120259,746.68,SIGNATURE LTD T/A POST & COLUMN CO LTD.
Neighbourhood Services,Technical Services,Supplies and Services,304221,Equipment and Materials,06-Jan-2016,3070594-9033573212,"1,632.78",TARMAC TRADING LTD.
Neighbourhood Services,Technical Services,Supplies and Services,304221,Equipment and Materials,06-Jan-2016,3070594-9033636014,557.48,TARMAC TRADING LTD.
Neighbourhood Services,Technical Services,Supplies and Services,304221,Equipment and Materials,06-Jan-2016,3070594-9033654072,"1,837.40",TARMAC TRADING LTD.
Neighbourhood Services,Direct Services,Supplies and Services,304221,Equipment and Materials,06-Jan-2016,3070635-480796,"2,500.00",WERNICK HIRE LTD.
Regeneration & Economic Development,Transport and Contracted Services,Supplies and Services,304245,Equipment and Materials,06-Jan-2016,3070299-023065,"2,970.00",BUDDI.
Regeneration & Economic Development,Spatial Policy Planning Assets & Environment,Income,720190,Fees and Charges,06-Jan-2016,302086-179,"3,270.00",PERSIMMON HOMES (TEESSIDE) LTD.
Children and Adult Services,Public Health,Supplies and Services,364999,Grants to Voluntary Organisations,06-Jan-2016,3070435-JD/PH/1289,"1,250.00",JACK DRUM ARTS LTD.
Children and Adult Services,Public Health,Supplies and Services,364999,Grants to Voluntary Organisations,06-Jan-2016,3070598-01,"1,925.87",THE COMMUNITY CLUB.
Children and Adult Services,Childrens Services,Supplies and Services,384491,Miscellaneous Expenses,06-Jan-2016,3070608-SI-693,504.00,TM NURSERY ENTERPRISES LTD T/A JACK IN THE BOX DAYCARE.
Children and Adult Services,Education,Supplies and Services,384302,Miscellaneous Expenses,06-Jan-2016,3070503-726,"20,000.00",NORTH EAST ENVIRONMENT NETWORK LTD.
Neighbourhood Services,Direct Services,Supplies and Services,384956,Miscellaneous Expenses,06-Jan-2016,3070376-H00081941,"1,050.00",ENVIRONMENT AGENCY.
Neighbourhood Services,Direct Services,Supplies and Services,384956,Miscellaneous Expenses,06-Jan-2016,3070376-H00081947,"1,140.00",ENVIRONMENT AGENCY.
Regeneration & Economic Development,Economic Development and Housing,Supplies and Services,384700,Miscellaneous Expenses,06-Jan-2016,3070326-058,"1,000.00",COMPETENCY TRAINING SOLUTIONS.
Regeneration & Economic Development,Economic Development and Housing,Supplies and Services,384700,Miscellaneous Expenses,06-Jan-2016,3070407-057,"1,000.00",GT EMISSIONS SYSTEMS LTD.
Regeneration & Economic Development,Economic Development and Housing,Supplies and Services,384871,Miscellaneous Expenses,06-Jan-2016,3070428-INV1032,597.00,ILM ASSOCIATES LTD.
Regeneration & Economic Development,Spatial Policy Planning Assets & Environment,Supplies and Services,384199,Miscellaneous Expenses,06-Jan-2016,3070443-05012016,"1,211.10",REDACTED - PAYMENT TO INDIVIDUAL
Regeneration & Economic Development,Spatial Policy Planning Assets & Environment,Supplies and Services,384199,Miscellaneous Expenses,06-Jan-2016,3070469-050116,"1,112.10",LYDIA HILLS.
Regeneration & Economic Development,Transport and Contracted Services,Supplies and Services,384956,Miscellaneous Expenses,06-Jan-2016,3070483-2521,720.00,MOBILE VISUAL INFORMATION SYSTEMS (MVIS).
Regeneration & Economic Development,Transport and Contracted Services,Supplies and Services,384956,Miscellaneous Expenses,06-Jan-2016,3070483-2522,"4,500.00",MOBILE VISUAL INFORMATION SYSTEMS (MVIS).
Regeneration & Economic Development,Economic Development and Housing,Supplies and Services,384700,Miscellaneous Expenses,06-Jan-2016,3070570-060,"1,500.00",SOUTH HETTON & DISTRICT COMMUNITY ASSOCIATION.
Regeneration & Economic Development,Economic Development and Housing,Supplies and Services,384700,Miscellaneous Expenses,06-Jan-2016,3070631-061,570.00,REDACTED - PAYMENT TO INDIVIDUAL
Children and Adult Services,Education,Supplies and Services,312009,Newspapers Books and Periodicals,06-Jan-2016,3070518-1565401,"2,339.09",PETERS LTD.
Children and Adult Services,Education,Third Party Payments,440999,Other Third Party Payments,06-Jan-2016,3070435-JD/DCC/1290,"3,282.00",JACK DRUM ARTS LTD.
Neighbourhood Services,Projects and Business services,Supplies and Services,340001,Postages,06-Jan-2016,3070541-9051183721,"1,587.23",ROYAL MAIL GROUP PLC.
Resources,I.C.T. Services,Supplies and Services,340001,Postages,06-Jan-2016,3070541-9051183266,"13,324.80",ROYAL MAIL GROUP PLC.
Neighbourhood Services,Culture & Sport,Supplies and Services,332029,Printing Stationery and Gen Off Exps,06-Jan-2016,3070549-3656,525.00,SAVILLS UK LTD.
Neighbourhood Services,Technical Services,Employees,040149,Recruitment Instruction and Training,06-Jan-2016,3070363-0000037376,510.00,EAST DURHAM COLLEGE.
Regeneration & Economic Development,Spatial Policy Planning Assets & Environment,Employees,040149,Recruitment Instruction and Training,06-Jan-2016,3070284-SINV23087,"1,000.00",BISHOP AUCKLAND COLLEGE.
Neighbourhood Services,Technical Services,Third Party Payments,430100,Rendered by Private Contractors,06-Jan-2016,3070263-06040,"1,029.53",ALL EVENTS SECURITY LTD (AES).
Neighbourhood Services,Direct Services,Third Party Payments,430100,Rendered by Private Contractors,06-Jan-2016,3070309-17882,899.00,CATHEDRAL LOCK & SAFE SERVICES LTD.
Neighbourhood Services,Direct Services,Third Party Payments,430100,Rendered by Private Contractors,06-Jan-2016,3070317-4403,"1,104.00",CITY FABRICATIONS LTD.
Neighbourhood Services,Direct Services,Third Party Payments,430100,Rendered by Private Contractors,06-Jan-2016,3070317-4407,"3,900.00",CITY FABRICATIONS LTD.
Neighbourhood Services,Technical Services,Third Party Payments,430127,Rendered by Private Contractors,06-Jan-2016,3070345-10,"1,286.50",D & L HOPPS.
Neighbourhood Services,Technical Services,Third Party Payments,430100,Rendered by Private Contractors,06-Jan-2016,3070543-102262,"1,545.00",RS INDUSTRIAL SERVICES LTD.
Children and Adult Services,Childrens Services,Third Party Payments,425040,Rendered by Voluntary Organisations,06-Jan-2016,3070589-175371,819.98,SWIIS FOSTER CARE LTD.
Children and Adult Services,Childrens Services,Third Party Payments,425040,Rendered by Voluntary Organisations,06-Jan-2016,3070589-175375,729.96,SWIIS FOSTER CARE LTD.
Children and Adult Services,Childrens Services,Third Party Payments,425040,Rendered by Voluntary Organisations,06-Jan-2016,3070589-175379,759.99,SWIIS FOSTER CARE LTD.
Children and Adult Services,Childrens Services,Third Party Payments,425040,Rendered by Voluntary Organisations,06-Jan-2016,3070589-175381,730.03,SWIIS FOSTER CARE LTD.
Children and Adult Services,Childrens Services,Third Party Payments,425040,Rendered by Voluntary Organisations,06-Jan-2016,3070589-175382,980.00,SWIIS FOSTER CARE LTD.
Neighbourhood Services,Culture & Sport,Premises,125009,Rents,06-Jan-2016,3070429-8851,"36,141.25",IMPALA ESTATES LTD.
Neighbourhood Services,Direct Services,Transport,210057,Repair and Maintenance of Vehicles,06-Jan-2016,3070566-INV293103,707.90,SNOWBALLS LTD.
Neighbourhood Services,Culture & Sport,Supplies and Services,338047,Services,06-Jan-2016,3070402-UGLYSISTERS2015,"2,605.00",GILL LIGHTFOOT T/A MATERIAL WORTH.
Regeneration & Economic Development,Spatial Policy Planning Assets & Environment,Supplies and Services,338066,Services,06-Jan-2016,3070606-729,928.80,TIM SPEED CONSULTING.
Resources,Legal & Democratic Services,Supplies and Services,338057,Services,06-Jan-2016,3070322-3980014670,"29,368.80",CO DURHAM & DARLINGTON NHS FOUNDATION TRUST.
Resources,Legal & Democratic Services,Supplies and Services,338057,Services,06-Jan-2016,3070356-NOVEMBER-15D,871.20,DR SREE MUSSUNOOR.
Resources,I.C.T. Services,Stock,926900,Stock in hand-Inventory system,06-Jan-2016,3070481-0000088533,640.50,MILLENNIUM BUSINESS SYSTEMS LTD.
Regeneration & Economic Development,Transport and Contracted Services,Supplies and Services,336005,Advertising,07-Jan-2016,3070669-1236392,"3,276.20",4IMPRINT DIRECT LTD.
Dedicated Schools Grant,Dedicated Schools Grant,Employees,080025,Agency Staff,07-Jan-2016,3071138-1004250,"2,647.15",TEACHING PERSONNEL LTD.
Dedicated Schools Grant,Dedicated Schools Grant,Employees,080025,Agency Staff,07-Jan-2016,3071138-1007205,"1,677.72",TEACHING PERSONNEL LTD.
Dedicated Schools Grant,Dedicated Schools Grant,Employees,080025,Agency Staff,07-Jan-2016,3071138-1019289,"2,372.15",TEACHING PERSONNEL LTD.
Dedicated Schools Grant,Dedicated Schools Grant,Employees,080025,Agency Staff,07-Jan-2016,3071138-1022197,"1,647.15",TEACHING PERSONNEL LTD.
Dedicated Schools Grant,Dedicated Schools Grant,Employees,080025,Agency Staff,07-Jan-2016,3071138-1025055,"1,647.15",TEACHING PERSONNEL LTD.
Dedicated Schools Grant,Dedicated Schools Grant,Employees,080025,Agency Staff,07-Jan-2016,3071138-1033046,847.15,TEACHING PERSONNEL LTD.
Dedicated Schools Grant,Dedicated Schools Grant,Employees,080025,Agency Staff,07-Jan-2016,3071138-1036122,704.00,TEACHING PERSONNEL LTD.
Dedicated Schools Grant,Dedicated Schools Grant,Employees,080025,Agency Staff,07-Jan-2016,3071138-1055808,880.00,TEACHING PERSONNEL LTD.
Dedicated Schools Grant,Dedicated Schools Grant,Employees,080025,Agency Staff,07-Jan-2016,3071138-1058441,880.00,TEACHING PERSONNEL LTD.
Neighbourhood Services,Culture & Sport,Employees,080025,Agency Staff,07-Jan-2016,3070696-008,993.63,REDACTED - PAYMENT TO INDIVIDUAL
Neighbourhood Services,Culture & Sport,Employees,080025,Agency Staff,07-Jan-2016,3070696-010,590.00,REDACTED - PAYMENT TO INDIVIDUAL
Regeneration & Economic Development,Economic Development and Housing,Cap Exp on Grants & Other Financial Assistance (REFCUS),918401,Capital grants,07-Jan-2016,3070810-109,"7,339.00",DAVID CRAWFORD PLUMBING & HEATING.
Regeneration & Economic Development,Economic Development and Housing,Cap Exp on Grants & Other Financial Assistance (REFCUS),918401,Capital grants,07-Jan-2016,3070837-175,"3,210.25",EASIBATHE LTD.
Regeneration & Economic Development,Economic Development and Housing,Cap Exp on Grants & Other Financial Assistance (REFCUS),918401,Capital grants,07-Jan-2016,3070854-120,"3,880.00",F TIFFEN BUILDING SERVICES.
Regeneration & Economic Development,Economic Development and Housing,Cap Exp on Grants & Other Financial Assistance (REFCUS),918401,Capital grants,07-Jan-2016,3070854-123,"4,340.00",F TIFFEN BUILDING SERVICES.
Regeneration & Economic Development,Economic Development and Housing,Cap Exp on Grants & Other Financial Assistance (REFCUS),918401,Capital grants,07-Jan-2016,3070875-164,503.20,GHENT BUILDING CONTRACTORS LTD.
Regeneration & Economic Development,Economic Development and Housing,Cap Exp on Grants & Other Financial Assistance (REFCUS),918401,Capital grants,07-Jan-2016,3070875-174,"4,910.00",GHENT BUILDING CONTRACTORS LTD.
Regeneration & Economic Development,Economic Development and Housing,Cap Exp on Grants & Other Financial Assistance (REFCUS),918401,Capital grants,07-Jan-2016,3071158-122,"3,652.00",THYSSENKRUPP ENCASA A DIVISION OF THYSSENKRUPP ACCESS LTD.
Children and Adult Services,Head of Adults,Premises,106082,Centrally Controlled Rep and Maint,07-Jan-2016,3071025-NEI-EXP-01-2016-002,882.00,NORTHERN POWERGRID (NORTHEAST) LTD.
Regeneration & Economic Development,Transport and Contracted Services,Premises,145015,Cleaning and Domestic Supplies,07-Jan-2016,3070887-46648,"3,135.20",GT CLEANING MACHINES LTD.
Neighbourhood Services,Technical Services,Supplies and Services,328041,Clothing Uniforms and Laundry,07-Jan-2016,3070738-113718,"1,618.80",BRISTOL OILSKIN & OVERALL CO LTD.
Resources,I.C.T. Services,Supplies and Services,352001,Conference Expenses,07-Jan-2016,3070749-6003206987,"1,150.00",CAPITA EDUCATION SERVICES.
Neighbourhood Services,Technical Services,Construction Work,908105,Construction work,07-Jan-2016,3070925-11985,901.00,JACK COUPE & SONS LTD T/A COUPE LINE.
Neighbourhood Services,Technical Services,Construction Work,908105,Construction work,07-Jan-2016,3070925-11986,"1,246.70",JACK COUPE & SONS LTD T/A COUPE LINE.
Neighbourhood Services,Technical Services,Construction Work,908105,Construction work,07-Jan-2016,3070925-11987,"8,305.20",JACK COUPE & SONS LTD T/A COUPE LINE.
Neighbourhood Services,Technical Services,Construction Work,908105,Construction work,07-Jan-2016,3070925-11988,"1,395.26",JACK COUPE & SONS LTD T/A COUPE LINE.
Neighbourhood Services,Technical Services,Construction Work,908105,Construction work,07-Jan-2016,3070925-12005,"2,993.43",JACK COUPE & SONS LTD T/A COUPE LINE.
Neighbourhood Services,Technical Services,Construction Work,908105,Construction work,07-Jan-2016,3070925-12007,"2,883.48",JACK COUPE & SONS LTD T/A COUPE LINE.
Neighbourhood Services,Technical Services,Construction Work,908105,Construction work,07-Jan-2016,3070925-12010,"1,579.97",JACK COUPE & SONS LTD T/A COUPE LINE.
Neighbourhood Services,Technical Services,Construction Work,908105,Construction work,07-Jan-2016,3070925-12029,"1,342.90",JACK COUPE & SONS LTD T/A COUPE LINE.
Neighbourhood Services,Technical Services,Construction Work,908105,Construction work,07-Jan-2016,3070925-12040,831.90,JACK COUPE & SONS LTD T/A COUPE LINE.
Children and Adult Services,Childrens Services,Transport,230005,Contract Hire,07-Jan-2016,3070675-J20/SS,"1,687.00",AABAT TAXIS.
Children and Adult Services,Childrens Services,Transport,230005,Contract Hire,07-Jan-2016,3070675-K9/SS,951.00,AABAT TAXIS.
Children and Adult Services,Childrens Services,Transport,230005,Contract Hire,07-Jan-2016,3070966-2391,930.00,LOCAL TRANSPORT LTD.
Children and Adult Services,Education,Transport,230008,Contract Hire,07-Jan-2016,3070652-18122015,"1,512.00",1ST AID COMMERCIALS LTD.
Children and Adult Services,Education,Transport,230007,Contract Hire,07-Jan-2016,3070675-J43/SK,"1,060.00",AABAT TAXIS.
Children and Adult Services,Education,Transport,230008,Contract Hire,07-Jan-2016,3070675-J44/SA/2015,"1,766.40",AABAT TAXIS.
Children and Adult Services,Education,Transport,230008,Contract Hire,07-Jan-2016,3070675-K1/SC,662.40,AABAT TAXIS.
Children and Adult Services,Education,Transport,230008,Contract Hire,07-Jan-2016,3070675-K2/SD,692.58,AABAT TAXIS.
Children and Adult Services,Education,Transport,230008,Contract Hire,07-Jan-2016,3070675-K3/SE,"1,045.80",AABAT TAXIS.
Children and Adult Services,Education,Transport,230008,Contract Hire,07-Jan-2016,3070675-K5/SH,845.00,AABAT TAXIS.
Children and Adult Services,Education,Transport,230008,Contract Hire,07-Jan-2016,3070676-1/12/15,998.20,ABA TAXIS.
Children and Adult Services,Education,Transport,230008,Contract Hire,07-Jan-2016,3070677-0281,"1,148.00",ABC & OUSTON CABS.
Children and Adult Services,Education,Transport,230008,Contract Hire,07-Jan-2016,3070677-0282,"1,521.00",ABC & OUSTON CABS.
Children and Adult Services,Education,Transport,230008,Contract Hire,07-Jan-2016,3070677-0283,798.00,ABC & OUSTON CABS.
Children and Adult Services,Education,Transport,230008,Contract Hire,07-Jan-2016,3070677-0285,756.00,ABC & OUSTON CABS.
Children and Adult Services,Education,Transport,230008,Contract Hire,07-Jan-2016,3070678-48-DEC15,630.00,ABLE NOVAK TAXIS.
Children and Adult Services,Education,Transport,230008,Contract Hire,07-Jan-2016,3070722-507,"1,008.80",BEELINE MINI BUSES.
Children and Adult Services,Education,Transport,230008,Contract Hire,07-Jan-2016,3070722-508,"1,055.32",BEELINE MINI BUSES.
Children and Adult Services,Education,Transport,230008,Contract Hire,07-Jan-2016,3070736-BZ00171,"1,014.00",BREZ`S TAXIS.
Children and Adult Services,Education,Transport,230008,Contract Hire,07-Jan-2016,3070745-A04004,715.00,C & R TAXIS.
Children and Adult Services,Education,Transport,230008,Contract Hire,07-Jan-2016,3070745-W01704,759.50,C & R TAXIS.
Children and Adult Services,Education,Transport,230008,Contract Hire,07-Jan-2016,3070746-BIL0068,"1,166.90",CA MUSGROVE.
Children and Adult Services,Education,Transport,230008,Contract Hire,07-Jan-2016,3070763-31/2015,"1,750.00",CHRIS`S TAXI.
Children and Adult Services,Education,Transport,230007,Contract Hire,07-Jan-2016,3070770-845,700.00,CLIVE HUBERY.
Children and Adult Services,Education,Transport,230007,Contract Hire,07-Jan-2016,3070774-C/9015,"2,431.24",COCHRANES T/A KELVIN TRAVEL.
Children and Adult Services,Education,Transport,230007,Contract Hire,07-Jan-2016,3070774-C/9016,"1,948.94",COCHRANES T/A KELVIN TRAVEL.
Children and Adult Services,Education,Transport,230007,Contract Hire,07-Jan-2016,3070774-C/9017,"3,505.04",COCHRANES T/A KELVIN TRAVEL.
Children and Adult Services,Education,Transport,230007,Contract Hire,07-Jan-2016,3070774-C/9018,"2,100.00",COCHRANES T/A KELVIN TRAVEL.
Children and Adult Services,Education,Transport,230008,Contract Hire,07-Jan-2016,3070775-A038/12,"1,320.00",COLVIN`S CABS.
Children and Adult Services,Education,Transport,230008,Contract Hire,07-Jan-2016,3070780-4-DEC15,910.00,COOK`S TAXI.
Children and Adult Services,Education,Transport,230007,Contract Hire,07-Jan-2016,3070783-DCC/4029/DEC15,"1,393.00",COUNTY COACHES.
Children and Adult Services,Education,Transport,230008,Contract Hire,07-Jan-2016,3070785-N212/DEC/15,588.00,CRAIG RAMSHAW T/A CRAIG`S CABS.
Children and Adult Services,Education,Transport,230006,Contract Hire,07-Jan-2016,3070788-5766,954.51,CROFT BUSINESS SERVICES (UK) LTD T/A CROFT TAXIS.
Children and Adult Services,Education,Transport,230006,Contract Hire,07-Jan-2016,3070788-5767,797.16,CROFT BUSINESS SERVICES (UK) LTD T/A CROFT TAXIS.
Children and Adult Services,Education,Transport,230008,Contract Hire,07-Jan-2016,3070788-5771,"1,090.18",CROFT BUSINESS SERVICES (UK) LTD T/A CROFT TAXIS.
Children and Adult Services,Education,Transport,230006,Contract Hire,07-Jan-2016,3070788-5772,752.36,CROFT BUSINESS SERVICES (UK) LTD T/A CROFT TAXIS.
Children and Adult Services,Education,Transport,230008,Contract Hire,07-Jan-2016,3070796-G/HEAD011,975.00,D IRVING T/A BJ TAXIS.
Children and Adult Services,Education,Transport,230008,Contract Hire,07-Jan-2016,3070798-1439,767.00,DA TAXIS.
Children and Adult Services,Education,Transport,230008,Contract Hire,07-Jan-2016,3070798-1440,777.28,DA TAXIS.
Children and Adult Services,Education,Transport,230008,Contract Hire,07-Jan-2016,3070798-1441,"1,759.66",DA TAXIS.
Children and Adult Services,Education,Transport,230008,Contract Hire,07-Jan-2016,3070798-1442,849.38,DA TAXIS.
Children and Adult Services,Education,Transport,230008,Contract Hire,07-Jan-2016,3070799-160,882.00,DA TRAVEL.
Children and Adult Services,Education,Transport,230006,Contract Hire,07-Jan-2016,3070799-161,544.50,DA TRAVEL.
Children and Adult Services,Education,Transport,230008,Contract Hire,07-Jan-2016,3070799-162,"1,260.00",DA TRAVEL.
Children and Adult Services,Education,Transport,230008,Contract Hire,07-Jan-2016,3070799-163,897.00,DA TRAVEL.
Children and Adult Services,Education,Transport,230008,Contract Hire,07-Jan-2016,3070815-1215/001,988.68,DCM TAXIS.
Children and Adult Services,Education,Transport,230006,Contract Hire,07-Jan-2016,3070824-15/09,670.00,DMG PRIVATE HIRE.
Children and Adult Services,Education,Transport,230007,Contract Hire,07-Jan-2016,3070832-22182,"1,822.24",DURHAM CITY COACHES.
Children and Adult Services,Education,Transport,230007,Contract Hire,07-Jan-2016,3070832-22183,"1,890.00",DURHAM CITY COACHES.
Children and Adult Services,Education,Transport,230007,Contract Hire,07-Jan-2016,3070902-013610,"2,117.01",HODGSONS COACH OPERATORS LTD.
Children and Adult Services,Education,Transport,230007,Contract Hire,07-Jan-2016,3070902-013611,"1,411.34",HODGSONS COACH OPERATORS LTD.
Children and Adult Services,Education,Transport,230007,Contract Hire,07-Jan-2016,3070902-013614,"1,260.00",HODGSONS COACH OPERATORS LTD.
Children and Adult Services,Education,Transport,230007,Contract Hire,07-Jan-2016,3070902-013615,840.00,HODGSONS COACH OPERATORS LTD.
Children and Adult Services,Education,Transport,230007,Contract Hire,07-Jan-2016,3070902-013651,"1,470.00",HODGSONS COACH OPERATORS LTD.
Children and Adult Services,Education,Transport,230007,Contract Hire,07-Jan-2016,3070902-013652,980.00,HODGSONS COACH OPERATORS LTD.
Children and Adult Services,Education,Transport,230008,Contract Hire,07-Jan-2016,3070904-INV97,630.00,HORNDALE TAXIS LTD.
Children and Adult Services,Education,Transport,230008,Contract Hire,07-Jan-2016,3070904-INV98,"1,190.00",HORNDALE TAXIS LTD.
Children and Adult Services,Education,Transport,230008,Contract Hire,07-Jan-2016,3070931-834,"1,004.64",JDS PRIVATE HIRE DURHAM.
Children and Adult Services,Education,Transport,230008,Contract Hire,07-Jan-2016,3070931-836,970.62,JDS PRIVATE HIRE DURHAM.
Children and Adult Services,Education,Transport,230008,Contract Hire,07-Jan-2016,3070931-837,"1,125.74",JDS PRIVATE HIRE DURHAM.
Children and Adult Services,Education,Transport,230007,Contract Hire,07-Jan-2016,3070931-840,700.00,JDS PRIVATE HIRE DURHAM.
Children and Adult Services,Education,Transport,230008,Contract Hire,07-Jan-2016,3070931-841,949.00,JDS PRIVATE HIRE DURHAM.
Children and Adult Services,Education,Transport,230007,Contract Hire,07-Jan-2016,3070931-842,552.00,JDS PRIVATE HIRE DURHAM.
Children and Adult Services,Education,Transport,230008,Contract Hire,07-Jan-2016,3070931-844,"1,680.00",JDS PRIVATE HIRE DURHAM.
Children and Adult Services,Education,Transport,230008,Contract Hire,07-Jan-2016,3070931-849,854.00,JDS PRIVATE HIRE DURHAM.
Children and Adult Services,Education,Transport,230008,Contract Hire,07-Jan-2016,3070934-2015/33,627.20,JM HUMBLE COACH HIRE.
Children and Adult Services,Education,Transport,230008,Contract Hire,07-Jan-2016,3070934-2015/34,956.20,JM HUMBLE COACH HIRE.
Children and Adult Services,Education,Transport,230008,Contract Hire,07-Jan-2016,3070940-M03615,686.00,JOVIAL PRIVATE HIRE.
Children and Adult Services,Education,Transport,230008,Contract Hire,07-Jan-2016,3070996-VLR12-15,556.40,MR CT WALKER T/A COLIN`S TAXIS.
Children and Adult Services,Education,Transport,230008,Contract Hire,07-Jan-2016,3070996-WAL112-15,"1,411.90",MR CT WALKER T/A COLIN`S TAXIS.
Children and Adult Services,Education,Transport,230008,Contract Hire,07-Jan-2016,3070996-WAL212-15,"1,344.00",MR CT WALKER T/A COLIN`S TAXIS.
Children and Adult Services,Education,Transport,230008,Contract Hire,07-Jan-2016,3071000-276,"1,288.00",MR LEE ANDERSON.
Children and Adult Services,Education,Transport,230008,Contract Hire,07-Jan-2016,3071041-DCC60,825.50,PAUL`S TAXIS..
Children and Adult Services,Education,Transport,230008,Contract Hire,07-Jan-2016,3071119-17285,858.20,STANLEY TRAVEL (NORTH EAST) LTD.
Children and Adult Services,Education,Transport,230009,Contract Hire,07-Jan-2016,3071119-17288,"1,190.00",STANLEY TRAVEL (NORTH EAST) LTD.
Neighbourhood Services,Direct Services,Transport,230005,Contract Hire,07-Jan-2016,3070812-068730,"1,375.68",DAWSONRENTALS SWEEPERS.
Neighbourhood Services,Direct Services,Transport,230005,Contract Hire,07-Jan-2016,3070851-8123010,559.28,ENTERPRISE FLEX-E-RENT T/A BURNT TREE GROUP LTD.
Neighbourhood Services,Direct Services,Transport,230005,Contract Hire,07-Jan-2016,3070957-4383696,"2,040.00",LEEDS COMMERCIAL LTD.
Neighbourhood Services,Direct Services,Transport,230005,Contract Hire,07-Jan-2016,3071095-10644257,"1,032.00",SHB HIRE LTD.
Neighbourhood Services,Direct Services,Transport,230005,Contract Hire,07-Jan-2016,3071191-40547,900.00,W MARLEY AGRICULTURAL CONTRACTORS LTD.
Children and Adult Services,Commissioning inc Supporting People,Debtors,930138,Debtor IC+ Residential Care Voids - CCG,07-Jan-2016,3070689-CAS-12-2015-149,"2,139.31",ALLIANCE CARE.
Children and Adult Services,Commissioning inc Supporting People,Debtors,930138,Debtor IC+ Residential Care Voids - CCG,07-Jan-2016,3070847-CAS-12-2015-148,"1,863.27",EMBRACE ALL LTD.
Children and Adult Services,Commissioning inc Supporting People,Debtors,930138,Debtor IC+ Residential Care Voids - CCG,07-Jan-2016,3070980-CAS-12-2015-147,"5,037.73",MARIA MALLABAND NURSING HOMES LTD.
Dedicated Schools Grant,Dedicated Schools Grant,Supplies and Services,304259,Equipment and Materials,07-Jan-2016,3070914-133674,713.50,INCLUSIVE TECHNOLOGY LTD.
Neighbourhood Services,Technical Services,Supplies and Services,304221,Equipment and Materials,07-Jan-2016,3070686-22325335,643.18,AGGREGATE INDUSTRIES UK LTD.
Neighbourhood Services,Technical Services,Supplies and Services,304221,Equipment and Materials,07-Jan-2016,3070686-22358902,"2,434.91",AGGREGATE INDUSTRIES UK LTD.
Neighbourhood Services,Technical Services,Supplies and Services,304221,Equipment and Materials,07-Jan-2016,3070686-22358903,769.22,AGGREGATE INDUSTRIES UK LTD.
Neighbourhood Services,Technical Services,Supplies and Services,304221,Equipment and Materials,07-Jan-2016,3070686-22364576,844.40,AGGREGATE INDUSTRIES UK LTD.
Neighbourhood Services,Technical Services,Supplies and Services,304221,Equipment and Materials,07-Jan-2016,3070686-22376426,542.61,AGGREGATE INDUSTRIES UK LTD.
Neighbourhood Services,Technical Services,Supplies and Services,304221,Equipment and Materials,07-Jan-2016,3070686-22427914,"1,620.62",AGGREGATE INDUSTRIES UK LTD.
Neighbourhood Services,Technical Services,Supplies and Services,304221,Equipment and Materials,07-Jan-2016,3070686-22437446,845.05,AGGREGATE INDUSTRIES UK LTD.
Neighbourhood Services,Technical Services,Supplies and Services,304221,Equipment and Materials,07-Jan-2016,3070686-22437447,"1,053.36",AGGREGATE INDUSTRIES UK LTD.
Neighbourhood Services,Technical Services,Supplies and Services,304221,Equipment and Materials,07-Jan-2016,3070686-22437450,645.71,AGGREGATE INDUSTRIES UK LTD.
Neighbourhood Services,Technical Services,Supplies and Services,304221,Equipment and Materials,07-Jan-2016,3070686-22445549,"1,112.76",AGGREGATE INDUSTRIES UK LTD.
Neighbourhood Services,Technical Services,Supplies and Services,304221,Equipment and Materials,07-Jan-2016,3070686-22469176,"1,259.02",AGGREGATE INDUSTRIES UK LTD.
Neighbourhood Services,Technical Services,Supplies and Services,304221,Equipment and Materials,07-Jan-2016,3070686-22475468,675.48,AGGREGATE INDUSTRIES UK LTD.
Neighbourhood Services,Technical Services,Supplies and Services,304221,Equipment and Materials,07-Jan-2016,3070686-22481336,608.21,AGGREGATE INDUSTRIES UK LTD.
Neighbourhood Services,Technical Services,Supplies and Services,304221,Equipment and Materials,07-Jan-2016,3070686-22481337,"1,664.16",AGGREGATE INDUSTRIES UK LTD.
Neighbourhood Services,Technical Services,Supplies and Services,304221,Equipment and Materials,07-Jan-2016,3070686-22486575,"1,015.78",AGGREGATE INDUSTRIES UK LTD.
Neighbourhood Services,Technical Services,Supplies and Services,304221,Equipment and Materials,07-Jan-2016,3070686-22495385,"1,245.22",AGGREGATE INDUSTRIES UK LTD.
Neighbourhood Services,Technical Services,Supplies and Services,304221,Equipment and Materials,07-Jan-2016,3070686-22495389,"1,231.96",AGGREGATE INDUSTRIES UK LTD.
Neighbourhood Services,Technical Services,Supplies and Services,304221,Equipment and Materials,07-Jan-2016,3070686-22495392,604.75,AGGREGATE INDUSTRIES UK LTD.
Neighbourhood Services,Technical Services,Supplies and Services,304221,Equipment and Materials,07-Jan-2016,3070686-22495393,941.75,AGGREGATE INDUSTRIES UK LTD.
Neighbourhood Services,Technical Services,Supplies and Services,304221,Equipment and Materials,07-Jan-2016,3070686-22495396,521.73,AGGREGATE INDUSTRIES UK LTD.
Neighbourhood Services,Direct Services,Supplies and Services,304998,Equipment and Materials,07-Jan-2016,3070828-NEI-EXP-01-2016-003,"5,000.00",DRIVING STANDARDS AGENCY.
Neighbourhood Services,Direct Services,Supplies and Services,304358,Equipment and Materials,07-Jan-2016,3070874-10280,690.00,GEORGE VARDY HAULAGE.
Neighbourhood Services,Technical Services,Supplies and Services,304358,Equipment and Materials,07-Jan-2016,3070874-10285,"1,080.00",GEORGE VARDY HAULAGE.
Neighbourhood Services,Technical Services,Supplies and Services,304358,Equipment and Materials,07-Jan-2016,3070936-565,"1,927.00",JOHN DOBSON PLANT HIRE LTD.
Neighbourhood Services,Technical Services,Supplies and Services,304221,Equipment and Materials,07-Jan-2016,3070949-7677,534.80,KEN THOMAS (SITE CLEARANCE LTD).
Neighbourhood Services,Projects and Business services,Supplies and Services,304999,Equipment and Materials,07-Jan-2016,3071043-AVV10463,"1,985.65",PEAK PIPE SYSTEMS LTD.
Neighbourhood Services,Technical Services,Supplies and Services,304221,Equipment and Materials,07-Jan-2016,3071134-9033583006,637.97,TARMAC TRADING LTD.
Neighbourhood Services,Direct Services,Supplies and Services,304259,Equipment and Materials,07-Jan-2016,3071173-52223,"1,488.00",TURF CARE SPECIALISTS LTD.
Regeneration & Economic Development,Economic Development and Housing,Supplies and Services,304259,Equipment and Materials,07-Jan-2016,3070729-FLLA3095981,831.39,BNP PARIBAS LEASE GROUP (RENTALS).
Regeneration & Economic Development,Spatial Policy Planning Assets & Environment,Supplies and Services,304999,Equipment and Materials,07-Jan-2016,3070791-100940,895.00,CS DESIGN SOFTWARE.
Resources,I.C.T. Services,Supplies and Services,304259,Equipment and Materials,07-Jan-2016,3070916-SIN374221,724.98,INFORMATION & DATA NETWORK SUPPLIES LTD (IDN).
Resources,Financial Services,Supplies and Services,304516,Equipment and Materials,07-Jan-2016,3071149-IN0206190,"4,795.00",THE HEARING CARE CENTRE.
Children and Adult Services,Childrens Services,Supplies and Services,384302,Miscellaneous Expenses,07-Jan-2016,3071151-018452,"1,000.00",THE PRINCE`S TRUST.
Children and Adult Services,Education,Supplies and Services,384199,Miscellaneous Expenses,07-Jan-2016,3070958-1346,"1,017.00",LEE`S COACHES LTD.
Children and Adult Services,Public Health,Supplies and Services,384155,Miscellaneous Expenses,07-Jan-2016,3071016-1000046720,"66,715.17",NHS BUSINESS SERVICES AUTHORITY.
Neighbourhood Services,Direct Services,Supplies and Services,384540,Miscellaneous Expenses,07-Jan-2016,3070760-121-006476,500.00,CHIEFIELD LTD T/A BROWN ADVERTISING & DESIGN.
Regeneration & Economic Development,Economic Development and Housing,Supplies and Services,384302,Miscellaneous Expenses,07-Jan-2016,3070944-2,526.75,JULES DEEHAN T/A BOHEMIA.
Resources,Financial Services,Supplies and Services,384180,Miscellaneous Expenses,07-Jan-2016,3070968-0858927,"4,946.15",LOOMIS UK LTD.
Resources,Financial Services,Supplies and Services,384180,Miscellaneous Expenses,07-Jan-2016,3070968-0862882,508.24,LOOMIS UK LTD.
Children and Adult Services,Childrens Services,Supplies and Services,340001,Postages,07-Jan-2016,3071010-436151/43615195,500.00,NEOPOST CREDIFON.
Children and Adult Services,Childrens Services,Supplies and Services,340001,Postages,07-Jan-2016,3071010-CAS-01-2016-005,500.00,NEOPOST CREDIFON.
Resources,Legal & Democratic Services,Supplies and Services,340001,Postages,07-Jan-2016,3071078-9051069006,"1,947.30",ROYAL MAIL GROUP PLC.
Neighbourhood Services,Direct Services,Supplies and Services,332029,Printing Stationery and Gen Off Exps,07-Jan-2016,3071126-7737464,"1,033.68",SUPPLIES TEAM LTD (NOW KNOWN AS BANNER).
Neighbourhood Services,Culture & Sport,Supplies and Services,324117,Provisions,07-Jan-2016,3070850-2310,578.40,EMPIRE POPCORN.
Children and Adult Services,Childrens Services,Transport,235073,Public Transport,07-Jan-2016,3070811-CAS-01-2016-006,925.84,REDACTED - PAYMENT TO INDIVIDUAL
Children and Adult Services,Commissioning inc Supporting People,Third Party Payments,479111,Purchase of Care,07-Jan-2016,3070896-1014,"42,542.00",HEALTHWATCH COUNTY DURHAM CIC.
Neighbourhood Services,Direct Services,Third Party Payments,430100,Rendered by Private Contractors,07-Jan-2016,3070687-154235,"36,300.00",ALBANY CONTRACT FURNITURE.
Neighbourhood Services,Direct Services,Third Party Payments,430100,Rendered by Private Contractors,07-Jan-2016,3070816-274368,955.75,DENNIS EAGLE LTD.
Neighbourhood Services,Direct Services,Third Party Payments,430100,Rendered by Private Contractors,07-Jan-2016,3070871-C03646,631.51,GEESINK NORBA LTD.
Neighbourhood Services,Direct Services,Third Party Payments,430100,Rendered by Private Contractors,07-Jan-2016,3070876-A25831,675.00,GLASS ASSIST UK.
Neighbourhood Services,Direct Services,Third Party Payments,430100,Rendered by Private Contractors,07-Jan-2016,3070903-61506,716.08,HOGARTH COACHWORKS LTD.
Neighbourhood Services,Technical Services,Third Party Payments,430127,Rendered by Private Contractors,07-Jan-2016,3070909-2231,"1,221.50",IAN C LIDDLE.
Neighbourhood Services,Technical Services,Third Party Payments,430127,Rendered by Private Contractors,07-Jan-2016,3070922-0779,"1,395.00",J & JG GILL & SONS LTD.
Neighbourhood Services,Technical Services,Third Party Payments,430127,Rendered by Private Contractors,07-Jan-2016,3070922-0786,"1,467.50",J & JG GILL & SONS LTD.
Neighbourhood Services,Technical Services,Third Party Payments,430127,Rendered by Private Contractors,07-Jan-2016,3070922-0825,930.00,J & JG GILL & SONS LTD.
Neighbourhood Services,Technical Services,Third Party Payments,430127,Rendered by Private Contractors,07-Jan-2016,3070922-0826,"1,675.00",J & JG GILL & SONS LTD.
Neighbourhood Services,Technical Services,Third Party Payments,430128,Rendered by Private Contractors,07-Jan-2016,3070922-0827,810.50,J & JG GILL & SONS LTD.
Neighbourhood Services,Technical Services,Third Party Payments,430128,Rendered by Private Contractors,07-Jan-2016,3070922-0828,693.00,J & JG GILL & SONS LTD.
Neighbourhood Services,Technical Services,Third Party Payments,430128,Rendered by Private Contractors,07-Jan-2016,3070922-0829,560.00,J & JG GILL & SONS LTD.
Neighbourhood Services,Direct Services,Third Party Payments,430100,Rendered by Private Contractors,07-Jan-2016,3070939-65230718,510.61,JOHNSTON SWEEPERS LTD.
Neighbourhood Services,Direct Services,Third Party Payments,430100,Rendered by Private Contractors,07-Jan-2016,3070967-122856,690.40,LONDONDERRY GARAGE (S.E) LTD.
Neighbourhood Services,Technical Services,Third Party Payments,430127,Rendered by Private Contractors,07-Jan-2016,3070975-5189,"1,790.00",MAKEPEACE MOTORS.
Neighbourhood Services,Technical Services,Third Party Payments,430127,Rendered by Private Contractors,07-Jan-2016,3070975-5191,"1,256.50",MAKEPEACE MOTORS.
Neighbourhood Services,Culture & Sport,Third Party Payments,430105,Rendered by Private Contractors,07-Jan-2016,3071051-63158622,"1,115.13",PHS GROUP PLC.
Neighbourhood Services,Technical Services,Third Party Payments,430100,Rendered by Private Contractors,07-Jan-2016,3071065-83610,550.00,PROTECTOR SECURITY GROUP LTD.
Neighbourhood Services,Technical Services,Third Party Payments,430100,Rendered by Private Contractors,07-Jan-2016,3071065-83813,550.00,PROTECTOR SECURITY GROUP LTD.
Neighbourhood Services,Technical Services,Third Party Payments,430100,Rendered by Private Contractors,07-Jan-2016,3071065-83814,550.00,PROTECTOR SECURITY GROUP LTD.
Neighbourhood Services,Direct Services,Third Party Payments,430100,Rendered by Private Contractors,07-Jan-2016,3071177-1862/15,"2,913.00",UK VENTILATON LTD.
Neighbourhood Services,Technical Services,Third Party Payments,430127,Rendered by Private Contractors,07-Jan-2016,3071191-40489,"3,859.50",W MARLEY AGRICULTURAL CONTRACTORS LTD.
Neighbourhood Services,Direct Services,Third Party Payments,430100,Rendered by Private Contractors,07-Jan-2016,3071191-40510,"1,057.00",W MARLEY AGRICULTURAL CONTRACTORS LTD.
Children and Adult Services,Childrens Services,Third Party Payments,425040,Rendered by Voluntary Organisations,07-Jan-2016,3071132-173949,730.03,SWIIS FOSTER CARE LTD.
Neighbourhood Services,Culture & Sport,Premises,125009,Rents,07-Jan-2016,3070708-32254,"1,875.00",AUCKLAND CASTLE TRUST LTD.
Neighbourhood Services,Culture & Sport,Premises,125009,Rents,07-Jan-2016,3070708-32256,"1,875.00",AUCKLAND CASTLE TRUST LTD.
Neighbourhood Services,Culture & Sport,Premises,125009,Rents,07-Jan-2016,3070708-32954,"1,875.00",AUCKLAND CASTLE TRUST LTD.
Neighbourhood Services,Culture & Sport,Premises,125009,Rents,07-Jan-2016,3070709-32955,"6,200.09",AUCKLAND CASTLE TRUST LTD.
Neighbourhood Services,Direct Services,Transport,210057,Repair and Maintenance of Vehicles,07-Jan-2016,3070757-629873,550.00,CHATFIELDS.
Neighbourhood Services,Culture & Sport,Supplies and Services,338047,Services,07-Jan-2016,3070756-CMT2944,"2,997.92",CHAMBERS MANAGEMENT TOURING LTD.
Neighbourhood Services,Culture & Sport,Supplies and Services,338047,Services,07-Jan-2016,3070833-HUMBLEBOY21/11/15,"1,442.04",DURHAM DRAMATIC SOCIETY.
Neighbourhood Services,Culture & Sport,Supplies and Services,338047,Services,07-Jan-2016,3070886-FBC697,600.00,GROWLING CLOWN.
Neighbourhood Services,Culture & Sport,Supplies and Services,338066,Services,07-Jan-2016,3070979-1064,"1,920.00",MARCUS BYRON.
Resources,Human Resources,Supplies and Services,338221,Services,07-Jan-2016,3070895-385,913.33,HEALTH ASSURED LTD.
Neighbourhood Services,Direct Services,Stock,926004,Stock,07-Jan-2016,3070752-206209,769.91,CARRS BILLINGTON AGRICULTURE.
Neighbourhood Services,Direct Services,Stock,926004,Stock,07-Jan-2016,3070752-206213,525.46,CARRS BILLINGTON AGRICULTURE.
Neighbourhood Services,Technical Services,Stock,926900,Stock in hand-Inventory system,07-Jan-2016,3070706-SIN318142,570.99,ATF SUPPLIES LTD.
Neighbourhood Services,Technical Services,Stock,926900,Stock in hand-Inventory system,07-Jan-2016,3070942-PHBII27233,852.00,JT DOVE LTD.
Neighbourhood Services,Technical Services,Stock,926900,Stock in hand-Inventory system,07-Jan-2016,3071111-270110121,583.18,SOVEREIGN CHEMICALS LTD.
Neighbourhood Services,Technical Services,Stock,926900,Stock in hand-Inventory system,07-Jan-2016,3071129-46/1003584,"4,232.00",SUPPLY UK.
Neighbourhood Services,Technical Services,Stock,926900,Stock in hand-Inventory system,07-Jan-2016,3071160-105492,519.00,TOMMY WARDLE.
Resources,I.C.T. Services,Stock,926900,Stock in hand-Inventory system,07-Jan-2016,3070916-SIN374156,"3,030.00",INFORMATION & DATA NETWORK SUPPLIES LTD (IDN).
Resources,I.C.T. Services,Stock,926900,Stock in hand-Inventory system,07-Jan-2016,3070917-2690410,715.74,INSIGHT DIRECT (UK) LTD.
Dedicated Schools Grant,Dedicated Schools Grant,Employees,080025,Agency Staff,08-Jan-2016,3071687-1069952,880.00,TEACHING PERSONNEL LTD.
Regeneration & Economic Development,Economic Development and Housing,Cap Exp on Grants & Other Financial Assistance (REFCUS),918401,Capital grants,08-Jan-2016,3071425-079,"1,413.91",HES GROUP UK LTD.
Regeneration & Economic Development,Economic Development and Housing,Cap Exp on Grants & Other Financial Assistance (REFCUS),918401,Capital grants,08-Jan-2016,3071460-081,"3,466.00",K HARRISON (BUILDER) NE LTD.
Regeneration & Economic Development,Economic Development and Housing,Cap Exp on Grants & Other Financial Assistance (REFCUS),918401,Capital grants,08-Jan-2016,3071616-077,"5,015.00",R TINDALE (BUILDER) LTD.
Regeneration & Economic Development,Economic Development and Housing,Cap Exp on Grants & Other Financial Assistance (REFCUS),918401,Capital grants,08-Jan-2016,3071701-071,"1,470.00",THYSSENKRUPP ENCASA A DIVISION OF THYSSENKRUPP ACCESS LTD.
Regeneration & Economic Development,Economic Development and Housing,Cap Exp on Grants & Other Financial Assistance (REFCUS),918401,Capital grants,08-Jan-2016,3071701-072,"4,079.00",THYSSENKRUPP ENCASA A DIVISION OF THYSSENKRUPP ACCESS LTD.
Regeneration & Economic Development,Economic Development and Housing,Cap Exp on Grants & Other Financial Assistance (REFCUS),918401,Capital grants,08-Jan-2016,3071701-073,"4,294.00",THYSSENKRUPP ENCASA A DIVISION OF THYSSENKRUPP ACCESS LTD.
Regeneration & Economic Development,Economic Development and Housing,Cap Exp on Grants & Other Financial Assistance (REFCUS),918401,Capital grants,08-Jan-2016,3071701-074,"1,230.00",THYSSENKRUPP ENCASA A DIVISION OF THYSSENKRUPP ACCESS LTD.
Regeneration & Economic Development,Economic Development and Housing,Cap Exp on Grants & Other Financial Assistance (REFCUS),918401,Capital grants,08-Jan-2016,3071701-076,"4,175.00",THYSSENKRUPP ENCASA A DIVISION OF THYSSENKRUPP ACCESS LTD.
Regeneration & Economic Development,Economic Development and Housing,Cap Exp on Grants & Other Financial Assistance (REFCUS),918401,Capital grants,08-Jan-2016,3071701-080,"5,010.00",THYSSENKRUPP ENCASA A DIVISION OF THYSSENKRUPP ACCESS LTD.
Regeneration & Economic Development,Economic Development and Housing,Cap Exp on Grants & Other Financial Assistance (REFCUS),918401,Capital grants,08-Jan-2016,3071736-067,"13,242.00",WRIGHT CONSTRUCTION (DURHAM) LTD.
Regeneration & Economic Development,Transport and Contracted Services,Professional fees,901002,Professional fees,08-Jan-2016,3071357-1645843,"3,993.79",DWF LLP.
Regeneration & Economic Development,Economic Development and Housing,Professional fees,901002,Professional fees,08-Jan-2016,3071398-107479150,"1,073.36",GATESHEAD COUNCIL.
Dedicated Schools Grant,Dedicated Schools Grant,Transport,230010,Contract Hire,08-Jan-2016,3071572-97P-44-70,"1,210.50",MR GS ANDERSON.
Children and Adult Services,Education,Transport,230007,Contract Hire,08-Jan-2016,3071232-K6/SL,666.00,AABAT TAXIS.
Children and Adult Services,Education,Transport,230007,Contract Hire,08-Jan-2016,3071234-585,700.00,AC TAXIS.
Children and Adult Services,Education,Transport,230007,Contract Hire,08-Jan-2016,3071235-152,"1,050.00",ACE TAXIS (WINSTON).
Children and Adult Services,Education,Transport,230007,Contract Hire,08-Jan-2016,3071235-154,895.00,ACE TAXIS (WINSTON).
Children and Adult Services,Education,Transport,230007,Contract Hire,08-Jan-2016,3071235-155,"1,190.00",ACE TAXIS (WINSTON).
Children and Adult Services,Education,Transport,230007,Contract Hire,08-Jan-2016,3071235-157,"1,470.00",ACE TAXIS (WINSTON).
Children and Adult Services,Education,Transport,230007,Contract Hire,08-Jan-2016,3071235-158,"1,110.00",ACE TAXIS (WINSTON).
Children and Adult Services,Education,Transport,230008,Contract Hire,08-Jan-2016,3071258-DCC7DEC15,"2,100.00",ATLAS TAXIS BISHOP AUCKLAND.
Children and Adult Services,Education,Transport,230007,Contract Hire,08-Jan-2016,3071259-03368,630.00,ATLAS TAXIS CONSETT.
Children and Adult Services,Education,Transport,230007,Contract Hire,08-Jan-2016,3071259-03369,616.00,ATLAS TAXIS CONSETT.
Children and Adult Services,Education,Transport,230008,Contract Hire,08-Jan-2016,3071259-03373,701.10,ATLAS TAXIS CONSETT.
Children and Adult Services,Education,Transport,230008,Contract Hire,08-Jan-2016,3071273-1396,"2,235.24",BOBBY DOVE.
Children and Adult Services,Education,Transport,230008,Contract Hire,08-Jan-2016,3071273-1397,"1,096.55",BOBBY DOVE.
Children and Adult Services,Education,Transport,230007,Contract Hire,08-Jan-2016,3071274-44A,749.00,BOBS TAXIS.
Children and Adult Services,Education,Transport,230008,Contract Hire,08-Jan-2016,3071300-KJ036,999.82,CHIPPERS TAXIS.
Children and Adult Services,Education,Transport,230007,Contract Hire,08-Jan-2016,3071309-45200,"1,484.00",CJ GRIERSON T/A GRIERSONS COACHES.
Children and Adult Services,Education,Transport,230007,Contract Hire,08-Jan-2016,3071309-45201,"1,960.00",CJ GRIERSON T/A GRIERSONS COACHES.
Children and Adult Services,Education,Transport,230007,Contract Hire,08-Jan-2016,3071309-45202,"1,750.00",CJ GRIERSON T/A GRIERSONS COACHES.
Children and Adult Services,Education,Transport,230008,Contract Hire,08-Jan-2016,3071314-16-SC12,780.00,CLUBMAN CABS.
Children and Adult Services,Education,Transport,230008,Contract Hire,08-Jan-2016,3071316-247,"1,596.00",COLIN HOLMES.
Children and Adult Services,Education,Transport,230008,Contract Hire,08-Jan-2016,3071319-642,"1,200.00",CONNORS MINI BUSES.
Children and Adult Services,Education,Transport,230008,Contract Hire,08-Jan-2016,3071319-643,"1,092.00",CONNORS MINI BUSES.
Children and Adult Services,Education,Transport,230008,Contract Hire,08-Jan-2016,3071319-644,"1,204.00",CONNORS MINI BUSES.
Children and Adult Services,Education,Transport,230008,Contract Hire,08-Jan-2016,3071319-645,"1,316.00",CONNORS MINI BUSES.
Children and Adult Services,Education,Transport,230008,Contract Hire,08-Jan-2016,3071323-5774,"1,942.36",CROFT BUSINESS SERVICES (UK) LTD T/A CROFT TAXIS.
Children and Adult Services,Education,Transport,230007,Contract Hire,08-Jan-2016,3071323-5775,951.16,CROFT BUSINESS SERVICES (UK) LTD T/A CROFT TAXIS.
Children and Adult Services,Education,Transport,230006,Contract Hire,08-Jan-2016,3071323-5779,911.30,CROFT BUSINESS SERVICES (UK) LTD T/A CROFT TAXIS.
Children and Adult Services,Education,Transport,230008,Contract Hire,08-Jan-2016,3071333-DI201512,"1,116.00",D&I TAXIS.
Children and Adult Services,Education,Transport,230008,Contract Hire,08-Jan-2016,3071334-1443,840.00,DA TAXIS.
Children and Adult Services,Education,Transport,230008,Contract Hire,08-Jan-2016,3071335-159,672.00,DA TRAVEL.
Children and Adult Services,Education,Transport,230008,Contract Hire,08-Jan-2016,3071340-99,"1,260.00",DAVES TAXIS.
Children and Adult Services,Education,Transport,230008,Contract Hire,08-Jan-2016,3071343-0018,"2,100.00",DAVID WALKER TAXIS.
Children and Adult Services,Education,Transport,230008,Contract Hire,08-Jan-2016,3071420-HT202,840.00,HARRY`S TAXI`S.
Children and Adult Services,Education,Transport,230007,Contract Hire,08-Jan-2016,3071420-HT205,"1,825.00",HARRY`S TAXI`S.
Children and Adult Services,Education,Transport,230008,Contract Hire,08-Jan-2016,3071448-2473,"1,643.18",JEFF ANDERSON COACHES LTD.
Children and Adult Services,Education,Transport,230008,Contract Hire,08-Jan-2016,3071452-18/12/15A,847.98,JL EBDON.
Children and Adult Services,Education,Transport,230008,Contract Hire,08-Jan-2016,3071452-18/12/15B,"1,763.30",JL EBDON.
Children and Adult Services,Education,Transport,230008,Contract Hire,08-Jan-2016,3071452-18/12/15C,847.98,JL EBDON.
Children and Adult Services,Education,Transport,230008,Contract Hire,08-Jan-2016,3071452-18/12/15D,"1,409.38",JL EBDON.
Children and Adult Services,Education,Transport,230008,Contract Hire,08-Jan-2016,3071452-18/12/15E,"1,016.16",JL EBDON.
Children and Adult Services,Education,Transport,230008,Contract Hire,08-Jan-2016,3071452-18/12/15G,742.00,JL EBDON.
Children and Adult Services,Education,Transport,230008,Contract Hire,08-Jan-2016,3071452-18/12/15H,742.00,JL EBDON.
Children and Adult Services,Education,Transport,230008,Contract Hire,08-Jan-2016,3071469-011215,"1,389.41",KEVIN EDMUNDSON.
Children and Adult Services,Education,Transport,230008,Contract Hire,08-Jan-2016,3071508-MCD4483,"1,333.00",MCDONALD TRAVEL.
Children and Adult Services,Education,Transport,230008,Contract Hire,08-Jan-2016,3071508-MCD4484,896.00,MCDONALD TRAVEL.
Children and Adult Services,Education,Transport,230008,Contract Hire,08-Jan-2016,3071561-606,"1,176.00",MOLLYS TAXIS.
Children and Adult Services,Education,Transport,230008,Contract Hire,08-Jan-2016,3071561-607,"1,820.00",MOLLYS TAXIS.
Children and Adult Services,Education,Transport,230008,Contract Hire,08-Jan-2016,3071579-2887,734.72,MR S BOWERS.
Children and Adult Services,Education,Transport,230008,Contract Hire,08-Jan-2016,3071579-2889,"1,546.44",MR S BOWERS.
Children and Adult Services,Education,Transport,230008,Contract Hire,08-Jan-2016,3071579-2890,"1,069.46",MR S BOWERS.
Children and Adult Services,Education,Transport,230008,Contract Hire,08-Jan-2016,3071590-4007,994.00,NIGHTINGALE COACHES.
Children and Adult Services,Education,Transport,230008,Contract Hire,08-Jan-2016,3071590-4008,910.00,NIGHTINGALE COACHES.
Children and Adult Services,Education,Transport,230008,Contract Hire,08-Jan-2016,3071590-4009,910.00,NIGHTINGALE COACHES.
Children and Adult Services,Education,Transport,230008,Contract Hire,08-Jan-2016,3071590-4010-DEC2015,"1,050.00",NIGHTINGALE COACHES.
Children and Adult Services,Education,Transport,230008,Contract Hire,08-Jan-2016,3071590-4011,616.00,NIGHTINGALE COACHES.
Children and Adult Services,Education,Transport,230008,Contract Hire,08-Jan-2016,3071590-4012,"1,036.00",NIGHTINGALE COACHES.
Children and Adult Services,Education,Transport,230007,Contract Hire,08-Jan-2016,3071590-4012A,"1,829.24",NIGHTINGALE COACHES.
Children and Adult Services,Education,Transport,230007,Contract Hire,08-Jan-2016,3071590-4015-DEC2015,"1,316.00",NIGHTINGALE COACHES.
Children and Adult Services,Education,Transport,230007,Contract Hire,08-Jan-2016,3071613-681,"2,720.00",PYGALL COACH HIRE.
Children and Adult Services,Education,Transport,230007,Contract Hire,08-Jan-2016,3071613-682,"2,125.00",PYGALL COACH HIRE.
Children and Adult Services,Education,Transport,230008,Contract Hire,08-Jan-2016,3071633-025,"1,190.00",RONS TAXI (CHESTER LE ST).
Children and Adult Services,Education,Transport,230008,Contract Hire,08-Jan-2016,3071634-1645,840.00,RON`S TAXIS (FISHBURN).
Children and Adult Services,Education,Transport,230008,Contract Hire,08-Jan-2016,3071634-1647,700.00,RON`S TAXIS (FISHBURN).
Children and Adult Services,Education,Transport,230008,Contract Hire,08-Jan-2016,3071634-1648,861.00,RON`S TAXIS (FISHBURN).
Children and Adult Services,Education,Transport,230008,Contract Hire,08-Jan-2016,3071646-83,"1,292.16",SAZ CABS.
Children and Adult Services,Education,Transport,230008,Contract Hire,08-Jan-2016,3071650-4/2015,840.00,SHARON`S TAXI.
Children and Adult Services,Education,Transport,230008,Contract Hire,08-Jan-2016,3071656-195A,"2,310.00",SJ MACKENZIE T/A SCOTTS TAXIS.
Children and Adult Services,Education,Transport,230008,Contract Hire,08-Jan-2016,3071656-196A,770.00,SJ MACKENZIE T/A SCOTTS TAXIS.
Children and Adult Services,Education,Transport,230008,Contract Hire,08-Jan-2016,3071657-140,644.00,SODA TAXIS.
Children and Adult Services,Education,Transport,230008,Contract Hire,08-Jan-2016,3071657-426,784.00,SODA TAXIS.
Children and Adult Services,Education,Transport,230008,Contract Hire,08-Jan-2016,3071657-W128/001,"1,650.00",SODA TAXIS.
Children and Adult Services,Education,Transport,230008,Contract Hire,08-Jan-2016,3071680-B772,"1,348.20",TALBOTS TRAVEL LTD.
Children and Adult Services,Education,Transport,230009,Contract Hire,08-Jan-2016,3071683-12/2015/004,650.00,TARNS TAXIS LTD.
Children and Adult Services,Education,Transport,230008,Contract Hire,08-Jan-2016,3071683-12/2015/005,"1,030.68",TARNS TAXIS LTD.
Children and Adult Services,Education,Transport,230008,Contract Hire,08-Jan-2016,3071683-12/2015/006,672.00,TARNS TAXIS LTD.
Children and Adult Services,Education,Transport,230006,Contract Hire,08-Jan-2016,3071686-DCC/2015/61,978.00,TAYLOR`S TAXIS.
Children and Adult Services,Education,Transport,230008,Contract Hire,08-Jan-2016,3071686-DCC/2015/62,882.00,TAYLOR`S TAXIS.
Children and Adult Services,Education,Transport,230007,Contract Hire,08-Jan-2016,3071703-2889,"1,652.00",TM TRAVEL.
Children and Adult Services,Education,Transport,230007,Contract Hire,08-Jan-2016,3071703-2890,"1,652.00",TM TRAVEL.
Children and Adult Services,Education,Transport,230007,Contract Hire,08-Jan-2016,3071703-2891,"5,852.00",TM TRAVEL.
Children and Adult Services,Education,Transport,230007,Contract Hire,08-Jan-2016,3071703-2892,897.00,TM TRAVEL.
Children and Adult Services,Education,Transport,230007,Contract Hire,08-Jan-2016,3071703-2893,"1,330.00",TM TRAVEL.
Children and Adult Services,Education,Transport,230008,Contract Hire,08-Jan-2016,3071707-TS91-04,588.00,TOP STAR TRAVEL.
Children and Adult Services,Education,Transport,230008,Contract Hire,08-Jan-2016,3071711-011,588.00,TRIDENT TAXIS.
Neighbourhood Services,Direct Services,Transport,230005,Contract Hire,08-Jan-2016,3071375-8126101,"1,097.65",ENTERPRISE FLEX-E-RENT T/A BURNT TREE GROUP LTD.
Neighbourhood Services,Direct Services,Transport,230005,Contract Hire,08-Jan-2016,3071375-8126103,"1,097.65",ENTERPRISE FLEX-E-RENT T/A BURNT TREE GROUP LTD.
Neighbourhood Services,Direct Services,Transport,230005,Contract Hire,08-Jan-2016,3071375-8126106,"1,097.65",ENTERPRISE FLEX-E-RENT T/A BURNT TREE GROUP LTD.
Neighbourhood Services,Direct Services,Transport,230005,Contract Hire,08-Jan-2016,3071375-8126112,"1,021.95",ENTERPRISE FLEX-E-RENT T/A BURNT TREE GROUP LTD.
Neighbourhood Services,Direct Services,Transport,230005,Contract Hire,08-Jan-2016,3071375-8126113,"1,097.65",ENTERPRISE FLEX-E-RENT T/A BURNT TREE GROUP LTD.
Children and Adult Services,Public Health,Third Party Payments,460803,Contract Payments,08-Jan-2016,3071324-TVDA00170,"10,000.00",CRUSE BEREAVEMENT CARE.
Neighbourhood Services,Technical Services,Third Party Payments,460254,Contract Payments,08-Jan-2016,3071436-12036,"4,125.00",JACK COUPE & SONS LTD T/A COUPE LINE.
Neighbourhood Services,Direct Services,Premises,120037,Energy Costs,08-Jan-2016,3071390-0000004558,"1,125.00",FOREVER FUELS LTD
Neighbourhood Services,Direct Services,Premises,120037,Energy Costs,08-Jan-2016,3071390-0000006227,"1,800.00",FOREVER FUELS LTD
Children and Adult Services,Head of Adults,Supplies and Services,304259,Equipment and Materials,08-Jan-2016,3071604-63111044,735.10,PHS GROUP PLC.
Neighbourhood Services,Direct Services,Supplies and Services,304221,Equipment and Materials,08-Jan-2016,3071231-004534,687.50,A HILL & SONS LTD.
Neighbourhood Services,Technical Services,Supplies and Services,304221,Equipment and Materials,08-Jan-2016,3071241-22456138,"1,162.46",AGGREGATE INDUSTRIES UK LTD.
Neighbourhood Services,Technical Services,Supplies and Services,304221,Equipment and Materials,08-Jan-2016,3071241-22458836,953.04,AGGREGATE INDUSTRIES UK LTD.
Neighbourhood Services,Technical Services,Supplies and Services,304221,Equipment and Materials,08-Jan-2016,3071241-22469175,662.11,AGGREGATE INDUSTRIES UK LTD.
Neighbourhood Services,Technical Services,Supplies and Services,304221,Equipment and Materials,08-Jan-2016,3071241-22469178,"1,600.73",AGGREGATE INDUSTRIES UK LTD.
Neighbourhood Services,Technical Services,Supplies and Services,304221,Equipment and Materials,08-Jan-2016,3071241-22469179,"1,477.84",AGGREGATE INDUSTRIES UK LTD.
Neighbourhood Services,Technical Services,Supplies and Services,304221,Equipment and Materials,08-Jan-2016,3071241-22501200,862.13,AGGREGATE INDUSTRIES UK LTD.
Neighbourhood Services,Technical Services,Supplies and Services,304221,Equipment and Materials,08-Jan-2016,3071241-22501307,"1,193.74",AGGREGATE INDUSTRIES UK LTD.
Neighbourhood Services,Technical Services,Supplies and Services,304221,Equipment and Materials,08-Jan-2016,3071241-22501308,593.68,AGGREGATE INDUSTRIES UK LTD.
Neighbourhood Services,Technical Services,Supplies and Services,304221,Equipment and Materials,08-Jan-2016,3071380-4456,"8,746.94",EXTERIOR LIGHTING SOLUTIONS (UK) LTD.
Neighbourhood Services,Direct Services,Supplies and Services,304221,Equipment and Materials,08-Jan-2016,3071381-24141,"3,477.00",FABRICATED PRODUCTS LTD.
Neighbourhood Services,Direct Services,Supplies and Services,304259,Equipment and Materials,08-Jan-2016,3071509-2783,869.00,MCPC SYSTEMS (UK) LTD.
Neighbourhood Services,Direct Services,Supplies and Services,304221,Equipment and Materials,08-Jan-2016,3071609-INV215289,893.10,POINTER FIRE LTD.
Neighbourhood Services,Technical Services,Supplies and Services,304221,Equipment and Materials,08-Jan-2016,3071655-69820,781.83,SIMMONSIGNS LTD.
Neighbourhood Services,Technical Services,Supplies and Services,304221,Equipment and Materials,08-Jan-2016,3071668-077682,526.96,STONEGRAVE AGGREGATES LTD.
Neighbourhood Services,Technical Services,Supplies and Services,304221,Equipment and Materials,08-Jan-2016,3071668-077731,"3,160.52",STONEGRAVE AGGREGATES LTD.
Neighbourhood Services,Culture & Sport,Supplies and Services,304221,Equipment and Materials,08-Jan-2016,3071675-45521,920.94,SWANFLIGHT.COM.
Neighbourhood Services,Direct Services,Supplies and Services,304221,Equipment and Materials,08-Jan-2016,3071725-6890202692,"1,477.46",VIESSMANN LTD.
Regeneration & Economic Development,Economic Development and Housing,Supplies and Services,304259,Equipment and Materials,08-Jan-2016,3071581-4850,"4,600.00",MT AUDIO SYSTEMS.
Resources,I.C.T. Services,Supplies and Services,304259,Equipment and Materials,08-Jan-2016,3071286-6051005079,"6,500.00",CAPITA IT SERVICES (BSF) LTD.
Children and Adult Services,Childrens Services,Supplies and Services,384638,Miscellaneous Expenses,08-Jan-2016,3071496-6248,"5,052.99",MAIN - TAKING AUTISM PERSONALLY.
Children and Adult Services,Childrens Services,Supplies and Services,384638,Miscellaneous Expenses,08-Jan-2016,3071496-6249,"5,052.99",MAIN - TAKING AUTISM PERSONALLY.
Children and Adult Services,Childrens Services,Supplies and Services,384302,Miscellaneous Expenses,08-Jan-2016,3071732-BP6,540.00,WIGGLES AND WOBBLES.
Regeneration & Economic Development,Spatial Policy Planning Assets & Environment,Supplies and Services,384199,Miscellaneous Expenses,08-Jan-2016,3071412-COWPLANTATION,500.00,GS BAINBRIDGE.
Regeneration & Economic Development,Economic Development and Housing,Supplies and Services,384700,Miscellaneous Expenses,08-Jan-2016,3071606-084,"1,000.00",PJI ENGINEERING.
Regeneration & Economic Development,Economic Development and Housing,Supplies and Services,384437,Miscellaneous Expenses,08-Jan-2016,3071721-9000283134,"1,380.25",UNIVERSITY OF NEWCASTLE UPON TYNE.
Neighbourhood Services,Culture & Sport,Supplies and Services,312013,Newspapers Books and Periodicals,08-Jan-2016,3071730-ORDERNO1466675,"5,755.06",WESTERN UNION BUSINESS SOLUTIONS.
Children and Adult Services,Education,Third Party Payments,440999,Other Third Party Payments,08-Jan-2016,3071589-2-16/12/15,"6,204.50",NIGEL BROUGH T/A BESPOKE TRAINING SOLUTIONS LTD.
Regeneration & Economic Development,Economic Development and Housing,Payments In Advance,932001,Payments in advance,08-Jan-2016,3071730-ORDERNO1466683,"1,078.63",WESTERN UNION BUSINESS SOLUTIONS.
Resources,I.C.T. Services,Supplies and Services,332029,Printing Stationery and Gen Off Exps,08-Jan-2016,3071242-220153,"2,800.00",AGNE LTD T/A ALPHAGRAPHICS.
Resources,I.C.T. Services,Supplies and Services,332029,Printing Stationery and Gen Off Exps,08-Jan-2016,3071374-152668,792.00,ENCORE ENVELOPES LTD.
Regeneration & Economic Development,Strategy Programmes and Performance,Employees,040149,Recruitment Instruction and Training,08-Jan-2016,3071614-ICE375453,595.00,QA LTD.
Neighbourhood Services,Direct Services,Third Party Payments,430100,Rendered by Private Contractors,08-Jan-2016,3071246-06041,997.75,ALL EVENTS SECURITY LTD (AES).
Neighbourhood Services,Technical Services,Third Party Payments,430100,Rendered by Private Contractors,08-Jan-2016,3071426-2467,"14,011.46",HIGHWAY CONSTRUCTION SERVICES LTD.
Neighbourhood Services,Technical Services,Third Party Payments,430100,Rendered by Private Contractors,08-Jan-2016,3071475-1887,"47,590.42",L & G PLANT HIRE & SALES LTD.
Neighbourhood Services,Technical Services,Third Party Payments,430128,Rendered by Private Contractors,08-Jan-2016,3071603-217607,"1,640.00",PETER MONKHOUSE HAULAGE.
Neighbourhood Services,Technical Services,Third Party Payments,430100,Rendered by Private Contractors,08-Jan-2016,3071621-2580/151128,"69,373.20",RAINTON CONSTRUCTION LTD.
Neighbourhood Services,Technical Services,Third Party Payments,430100,Rendered by Private Contractors,08-Jan-2016,3071621-2580/151129,"17,137.94",RAINTON CONSTRUCTION LTD.
Neighbourhood Services,Technical Services,Third Party Payments,430100,Rendered by Private Contractors,08-Jan-2016,3071621-2580/151130,"64,797.05",RAINTON CONSTRUCTION LTD.
Children and Adult Services,Childrens Services,Third Party Payments,425040,Rendered by Voluntary Organisations,08-Jan-2016,3071299-13017,"3,100.00",CHILDRENS FAMILY TRUST.
Children and Adult Services,Childrens Services,Third Party Payments,425040,Rendered by Voluntary Organisations,08-Jan-2016,3071299-13018,"3,232.99",CHILDRENS FAMILY TRUST.
Children and Adult Services,Childrens Services,Third Party Payments,425040,Rendered by Voluntary Organisations,08-Jan-2016,3071391-630177974,"3,631.34",FOSTER CARE ASSOCIATES LTD.
Children and Adult Services,Childrens Services,Third Party Payments,425040,Rendered by Voluntary Organisations,08-Jan-2016,3071392-125207,730.00,FOSTER CARES LTD.
Children and Adult Services,Childrens Services,Third Party Payments,425040,Rendered by Voluntary Organisations,08-Jan-2016,3071392-125212,"1,180.00",FOSTER CARES LTD.
Children and Adult Services,Childrens Services,Third Party Payments,425040,Rendered by Voluntary Organisations,08-Jan-2016,3071392-125217,820.00,FOSTER CARES LTD.
Children and Adult Services,Childrens Services,Third Party Payments,425040,Rendered by Voluntary Organisations,08-Jan-2016,3071392-125218,730.00,FOSTER CARES LTD.
Children and Adult Services,Childrens Services,Third Party Payments,425040,Rendered by Voluntary Organisations,08-Jan-2016,3071392-125225,730.00,FOSTER CARES LTD.
Children and Adult Services,Childrens Services,Third Party Payments,425040,Rendered by Voluntary Organisations,08-Jan-2016,3071392-125228,730.00,FOSTER CARES LTD.
Children and Adult Services,Childrens Services,Third Party Payments,425040,Rendered by Voluntary Organisations,08-Jan-2016,3071392-125233,730.00,FOSTER CARES LTD.
Children and Adult Services,Childrens Services,Third Party Payments,425040,Rendered by Voluntary Organisations,08-Jan-2016,3071392-125234,730.00,FOSTER CARES LTD.
Children and Adult Services,Childrens Services,Third Party Payments,425040,Rendered by Voluntary Organisations,08-Jan-2016,3071392-125240,730.00,FOSTER CARES LTD.
Children and Adult Services,Childrens Services,Third Party Payments,425040,Rendered by Voluntary Organisations,08-Jan-2016,3071392-125241,730.00,FOSTER CARES LTD.
Children and Adult Services,Childrens Services,Third Party Payments,425040,Rendered by Voluntary Organisations,08-Jan-2016,3071392-125242,730.00,FOSTER CARES LTD.
Children and Adult Services,Childrens Services,Third Party Payments,425040,Rendered by Voluntary Organisations,08-Jan-2016,3071392-125246,760.00,FOSTER CARES LTD.
Children and Adult Services,Childrens Services,Third Party Payments,425040,Rendered by Voluntary Organisations,08-Jan-2016,3071392-125247,700.00,FOSTER CARES LTD.
Children and Adult Services,Childrens Services,Third Party Payments,425040,Rendered by Voluntary Organisations,08-Jan-2016,3071677-175370,700.00,SWIIS FOSTER CARE LTD.
Children and Adult Services,Childrens Services,Third Party Payments,425040,Rendered by Voluntary Organisations,08-Jan-2016,3071677-175374,730.03,SWIIS FOSTER CARE LTD.
Children and Adult Services,Childrens Services,Third Party Payments,425040,Rendered by Voluntary Organisations,08-Jan-2016,3071677-175376,730.03,SWIIS FOSTER CARE LTD.
Children and Adult Services,Childrens Services,Third Party Payments,425040,Rendered by Voluntary Organisations,08-Jan-2016,3071677-175377,980.00,SWIIS FOSTER CARE LTD.
Children and Adult Services,Childrens Services,Third Party Payments,425040,Rendered by Voluntary Organisations,08-Jan-2016,3071677-175378,700.00,SWIIS FOSTER CARE LTD.
Children and Adult Services,Childrens Services,Third Party Payments,425040,Rendered by Voluntary Organisations,08-Jan-2016,3071677-175380,819.98,SWIIS FOSTER CARE LTD.
Children and Adult Services,Education,Transfer Payments,510028,School Children,08-Jan-2016,3071277-CAS-01-2016-012,"3,206.99",BRANDON HAPPYTIMES DAYCARE.
Children and Adult Services,Childrens Services,Third Party Payments,486022,Service Level Agreements,08-Jan-2016,3071395-5621,"3,957.07",FSO FLEXIBLE SUPPORT OPTIONS UK (DOMICILARY) LTD.
Children and Adult Services,Childrens Services,Supplies and Services,338099,Services,08-Jan-2016,3071416-37424,980.00,HANDS FREE COMPUTING LTD.
Dedicated Schools Grant,Dedicated Schools Grant,Supplies and Services,338091,Services,08-Jan-2016,3071605-00005,"1,620.00",PINNACLE TRAINING (NE) LTD.
Children and Adult Services,Head of Adults,Supplies and Services,338066,Services,08-Jan-2016,3071498-DECEMBER2015,"2,000.00",MJG
Children and Adult Services,Head of Adults,Supplies and Services,338365,Services,08-Jan-2016,3071674-32958,"1,003.05",SW (RETAIL) LTD T/A IC.
Neighbourhood Services,Culture & Sport,Supplies and Services,338047,Services,08-Jan-2016,3071321-GALAPANTO18-23/12/15,"2,490.00",CRAIG YOUNG.
Neighbourhood Services,Technical Services,Stock,926900,Stock in hand-Inventory system,08-Jan-2016,3071597-XL160638,"5,431.95",PARK ELECTRICAL DISTRIBUTORS LTD.
Neighbourhood Services,Technical Services,Stock,926900,Stock in hand-Inventory system,08-Jan-2016,3071608-10925,"1,193.00",PLUMBING & HEATING SUPPLIES LTD.
Neighbourhood Services,Technical Services,Stock,926900,Stock in hand-Inventory system,08-Jan-2016,3071658-SI15011723,884.40,SOLON SECURITY LTD.
Resources,I.C.T. Services,Stock,926900,Stock in hand-Inventory system,08-Jan-2016,3071431-2692843,715.38,INSIGHT DIRECT (UK) LTD.
Resources,I.C.T. Services,Stock,926900,Stock in hand-Inventory system,08-Jan-2016,3071738-Z768907,"1,368.00",XMA LTD.
Regeneration & Economic Development,Transport and Contracted Services,Supplies and Services,372009,Subscriptions,08-Jan-2016,3071489-1510,545.00,LGA PUBLIC TRANSPORT CONSORTIUM.
Resources,Legal & Democratic Services,Supplies and Services,372009,Subscriptions,08-Jan-2016,3071700-801956272,575.00,THOMSON REUTERS.
Resources,I.C.T. Services,Supplies and Services,344137,Telephones,08-Jan-2016,3071261-648817,"55,333.25",AZZURRI COMMUNICATIONS LTD.
Regeneration & Economic Development,Spatial Policy Planning Assets & Environment,Supplies and Services,336005,Advertising,11-Jan-2016,3071977-13690094,878.95,NEWSQUEST (YORKSHIRE & NORTH EAST) LTD.
Children and Adult Services,Childrens Services,Employees,080025,Agency Staff,11-Jan-2016,3072001-22681,"1,090.00",PK EDUCATION.
Regeneration & Economic Development,Economic Development and Housing,Cap Exp on Grants & Other Financial Assistance (REFCUS),918401,Capital grants,11-Jan-2016,3071974-078,"4,182.00",NEIL BELL PLUMBERS HEATING & GAS INS.
Children and Adult Services,Childrens Services,Premises,145050,Cleaning and Domestic Supplies,11-Jan-2016,3071998-63231066,835.82,PHS GROUP PLC.
Regeneration & Economic Development,Economic Development and Housing,Supplies and Services,342053,Computers and Communications,11-Jan-2016,3071746-5962,"4,440.00",ABRITAS LTD.
Resources,I.C.T. Services,Supplies and Services,342033,Computers and Communications,11-Jan-2016,3071824-7402255597,"2,557.30",DELL COMPUTER CORPORATION LTD.
Resources,I.C.T. Services,Supplies and Services,342051,Computers and Communications,11-Jan-2016,3071869-118767,"3,781.25",GRAITEC LTD.
Resources,I.C.T. Services,Supplies and Services,342033,Computers and Communications,11-Jan-2016,3071888-2694438,877.50,INSIGHT DIRECT (UK) LTD.
Neighbourhood Services,Culture & Sport,Construction Work,908105,Construction work,11-Jan-2016,3072075-IO91799,"2,707.00",TESGL LTD T/A SSE ENTERPRISE ENERGY SOLUTIONS.
Neighbourhood Services,Culture & Sport,Professional fees,901002,Professional fees,11-Jan-2016,3072046-732/PJ1471/16,"5,160.00",SOUTHERN GREEN LTD.
Dedicated Schools Grant,Dedicated Schools Grant,Transport,230010,Contract Hire,11-Jan-2016,3072070-DCC/2015/64,897.00,TAYLOR`S TAXIS.
Children and Adult Services,Education,Transport,230008,Contract Hire,11-Jan-2016,3071753-15MO,616.00,AJ ADAMSON (TONY`S TAXIS).
Children and Adult Services,Education,Transport,230007,Contract Hire,11-Jan-2016,3071760-TX1499,"7,185.08",ALSTON ROAD GARAGE.
Children and Adult Services,Education,Transport,230006,Contract Hire,11-Jan-2016,3071765-DC12/15,780.00,ANDY`S TAXIS.
Children and Adult Services,Education,Transport,230008,Contract Hire,11-Jan-2016,3071775-03370,702.00,ATLAS TAXIS CONSETT.
Children and Adult Services,Education,Transport,230006,Contract Hire,11-Jan-2016,3071775-03371,639.00,ATLAS TAXIS CONSETT.
Children and Adult Services,Education,Transport,230008,Contract Hire,11-Jan-2016,3071789-W12004,546.00,C & R TAXIS.
Children and Adult Services,Education,Transport,230007,Contract Hire,11-Jan-2016,3071832-4DECEMBER15,560.00,DUNCAN G CUMMINGS T/A DC TAXIS.
Children and Adult Services,Education,Transport,230007,Contract Hire,11-Jan-2016,3071883-0018,"1,042.72",HUNTER BROTHERS (TANTOBIE) LTD.
Children and Adult Services,Education,Transport,230007,Contract Hire,11-Jan-2016,3071883-0019,622.72,HUNTER BROTHERS (TANTOBIE) LTD.
Children and Adult Services,Education,Transport,230008,Contract Hire,11-Jan-2016,3071885-26,910.00,IAN SHEPLEY T/A SHEPPA`S TAXIS.
Children and Adult Services,Education,Transport,230008,Contract Hire,11-Jan-2016,3071908-0083,"1,088.00",KEN CHAMBERS T/A SHILDON TRANSPORT LTD.
Children and Adult Services,Education,Transport,230006,Contract Hire,11-Jan-2016,3071939-MCD4482,"1,036.00",MCDONALD TRAVEL.
Children and Adult Services,Education,Transport,230008,Contract Hire,11-Jan-2016,3071943-INV-93,"1,248.00",MICHAEL COBB (T/A HAIL TAXIS).
Children and Adult Services,Education,Transport,230008,Contract Hire,11-Jan-2016,3071960-278,952.00,MR LEE ANDERSON.
Children and Adult Services,Education,Transport,230008,Contract Hire,11-Jan-2016,3071964-12B/2015,938.00,MR RAYMOND RENWICK.
Children and Adult Services,Education,Transport,230008,Contract Hire,11-Jan-2016,3071964-13A,"1,192.00",MR RAYMOND RENWICK.
Children and Adult Services,Education,Transport,230008,Contract Hire,11-Jan-2016,3071979-3998,663.00,NIGHTINGALE COACHES.
Children and Adult Services,Education,Transport,230008,Contract Hire,11-Jan-2016,3071979-3999,955.50,NIGHTINGALE COACHES.
Children and Adult Services,Education,Transport,230008,Contract Hire,11-Jan-2016,3071979-4000A,"1,040.00",NIGHTINGALE COACHES.
Children and Adult Services,Education,Transport,230008,Contract Hire,11-Jan-2016,3071979-4001,845.00,NIGHTINGALE COACHES.
Children and Adult Services,Education,Transport,230008,Contract Hire,11-Jan-2016,3071979-4002A,585.00,NIGHTINGALE COACHES.
Children and Adult Services,Education,Transport,230008,Contract Hire,11-Jan-2016,3071979-4003,507.00,NIGHTINGALE COACHES.
Children and Adult Services,Education,Transport,230008,Contract Hire,11-Jan-2016,3071979-4004A,546.00,NIGHTINGALE COACHES.
Children and Adult Services,Education,Transport,230008,Contract Hire,11-Jan-2016,3071979-4005A,"1,170.00",NIGHTINGALE COACHES.
Children and Adult Services,Education,Transport,230008,Contract Hire,11-Jan-2016,3071979-4006A,910.00,NIGHTINGALE COACHES.
Children and Adult Services,Education,Transport,230007,Contract Hire,11-Jan-2016,3071979-4014A,"1,428.00",NIGHTINGALE COACHES.
Children and Adult Services,Education,Transport,230008,Contract Hire,11-Jan-2016,3071991-DCC61,"1,050.00",PAUL`S TAXIS..
Children and Adult Services,Education,Transport,230008,Contract Hire,11-Jan-2016,3071992-DCC92,630.00,PB PRIVATE HIRE.
Children and Adult Services,Education,Transport,230008,Contract Hire,11-Jan-2016,3071992-DCC93,546.00,PB PRIVATE HIRE.
Children and Adult Services,Education,Transport,230006,Contract Hire,11-Jan-2016,3071992-DCC94,556.00,PB PRIVATE HIRE.
Children and Adult Services,Education,Transport,230008,Contract Hire,11-Jan-2016,3071995-512,896.00,PETERLEE EXECUTIVE CARS.
Children and Adult Services,Education,Transport,230008,Contract Hire,11-Jan-2016,3071997-0422,952.00,PETER`S PRIVATE HIRE/PETER BEST.
Children and Adult Services,Education,Transport,230006,Contract Hire,11-Jan-2016,3071997-0425,943.00,PETER`S PRIVATE HIRE/PETER BEST.
Children and Adult Services,Education,Transport,230008,Contract Hire,11-Jan-2016,3072003-1132,"1,237.00",PODA LTD.
Children and Adult Services,Education,Transport,230008,Contract Hire,11-Jan-2016,3072003-1133,630.00,PODA LTD.
Children and Adult Services,Education,Transport,230008,Contract Hire,11-Jan-2016,3072013-15127,"1,560.00",RAPID MINIBUSES.
Children and Adult Services,Education,Transport,230008,Contract Hire,11-Jan-2016,3072020-3013,"1,368.00",RICHIES TAXIS.
Children and Adult Services,Education,Transport,230008,Contract Hire,11-Jan-2016,3072020-3014,504.00,RICHIES TAXIS.
Children and Adult Services,Education,Transport,230006,Contract Hire,11-Jan-2016,3072020-3015,520.00,RICHIES TAXIS.
Children and Adult Services,Education,Transport,230008,Contract Hire,11-Jan-2016,3072023-443,676.00,ROAD RUNNERS (NE) LTD.
Children and Adult Services,Education,Transport,230008,Contract Hire,11-Jan-2016,3072023-445,"1,540.00",ROAD RUNNERS (NE) LTD.
Children and Adult Services,Education,Transport,230008,Contract Hire,11-Jan-2016,3072023-446,"1,324.00",ROAD RUNNERS (NE) LTD.
Children and Adult Services,Education,Transport,230008,Contract Hire,11-Jan-2016,3072041-023,967.67,SHOEY`S TAXIS.
Children and Adult Services,Education,Transport,230008,Contract Hire,11-Jan-2016,3072042-71920,"1,260.00",SHOTTON PRIVATE HIRE.
Children and Adult Services,Education,Transport,230008,Contract Hire,11-Jan-2016,3072042-71921,"1,008.00",SHOTTON PRIVATE HIRE.
Children and Adult Services,Education,Transport,230008,Contract Hire,11-Jan-2016,3072047-AAK11567,"1,082.38",SPENNYMOOR TAXIS.
Children and Adult Services,Education,Transport,230008,Contract Hire,11-Jan-2016,3072047-JJJC244035,"1,271.34",SPENNYMOOR TAXIS.
Children and Adult Services,Education,Transport,230008,Contract Hire,11-Jan-2016,3072047-LLMD12497,700.00,SPENNYMOOR TAXIS.
Children and Adult Services,Education,Transport,230008,Contract Hire,11-Jan-2016,3072051-20952,546.00,STAR CABS.
Children and Adult Services,Education,Transport,230009,Contract Hire,11-Jan-2016,3072059-4,574.00,SWAN TAXIS.
Children and Adult Services,Education,Transport,230008,Contract Hire,11-Jan-2016,3072063-20612B,"1,165.92",T MOORE & SON.
Children and Adult Services,Education,Transport,230007,Contract Hire,11-Jan-2016,3072063-20712C,504.00,T MOORE & SON.
Children and Adult Services,Education,Transport,230007,Contract Hire,11-Jan-2016,3072063-20812D,"1,120.00",T MOORE & SON.
Children and Adult Services,Education,Transport,230008,Contract Hire,11-Jan-2016,3072064-WO21/DEC,"1,783.61",TAILORMADE TRAVEL.
Children and Adult Services,Education,Transport,230008,Contract Hire,11-Jan-2016,3072065-1288,"1,540.00",TALBOTS TAXIS.
Children and Adult Services,Education,Transport,230008,Contract Hire,11-Jan-2016,3072070-DCC/2015/65,"1,235.00",TAYLOR`S TAXIS.
Children and Adult Services,Education,Transport,230006,Contract Hire,11-Jan-2016,3072084-397A,840.00,TONYS TAXIS (A BIRCH).
Children and Adult Services,Education,Transport,230006,Contract Hire,11-Jan-2016,3072084-404A,583.00,TONYS TAXIS (A BIRCH).
Children and Adult Services,Education,Transport,230008,Contract Hire,11-Jan-2016,3072099-321,924.00,WAYSIDE TAXIS.
Children and Adult Services,Education,Transport,230008,Contract Hire,11-Jan-2016,3072099-322,980.00,WAYSIDE TAXIS.
Children and Adult Services,Education,Transport,230008,Contract Hire,11-Jan-2016,3072099-324,532.00,WAYSIDE TAXIS.
Neighbourhood Services,Direct Services,Transport,230005,Contract Hire,11-Jan-2016,3071983-SL03619576INV,606.10,NORTHGATE VEHICLE HIRE LTD.
Children and Adult Services,Public Health,Third Party Payments,460803,Contract Payments,11-Jan-2016,3071808-3980014637,"923,931.00",CO DURHAM & DARLINGTON NHS FOUNDATION TRUST.
Children and Adult Services,Public Health,Third Party Payments,460803,Contract Payments,11-Jan-2016,3071808-3980014638,"756,337.00",CO DURHAM & DARLINGTON NHS FOUNDATION TRUST.
Regeneration & Economic Development,RED Departmental Support Costs,Debtors,930177,Debtor - Chapter Homes,11-Jan-2016,3071859-SIGN/00001705,"33,300.00",GENTOO CONSTRUCTION LTD.
Resources,I.C.T. Services,Debtors,930167,Debtor-Telephone Holding Account,11-Jan-2016,3071776-278000,"29,798.32",AZZURRI COMMUNICATIONS LTD.
Neighbourhood Services,Direct Services,Premises,120037,Energy Costs,11-Jan-2016,3071852-0000005307,"1,125.00",FOREVER FUELS LTD
Neighbourhood Services,Direct Services,Premises,120037,Energy Costs,11-Jan-2016,3071852-0000005756,"1,125.00",FOREVER FUELS LTD
Dedicated Schools Grant,Dedicated Schools Grant,Supplies and Services,304259,Equipment and Materials,11-Jan-2016,3072008-78612,600.00,QUEST 88 LTD.
Neighbourhood Services,Technical Services,Supplies and Services,304221,Equipment and Materials,11-Jan-2016,3071752-22346762,659.11,AGGREGATE INDUSTRIES UK LTD.
Neighbourhood Services,Technical Services,Supplies and Services,304221,Equipment and Materials,11-Jan-2016,3071752-22419437,"2,097.99",AGGREGATE INDUSTRIES UK LTD.
Neighbourhood Services,Technical Services,Supplies and Services,304221,Equipment and Materials,11-Jan-2016,3071752-22481335,971.53,AGGREGATE INDUSTRIES UK LTD.
Neighbourhood Services,Technical Services,Supplies and Services,304221,Equipment and Materials,11-Jan-2016,3071752-22486573,970.60,AGGREGATE INDUSTRIES UK LTD.
Neighbourhood Services,Technical Services,Supplies and Services,304221,Equipment and Materials,11-Jan-2016,3071752-22486574,513.42,AGGREGATE INDUSTRIES UK LTD.
Neighbourhood Services,Technical Services,Supplies and Services,304221,Equipment and Materials,11-Jan-2016,3071752-22513172,"1,010.72",AGGREGATE INDUSTRIES UK LTD.
Neighbourhood Services,Technical Services,Supplies and Services,304358,Equipment and Materials,11-Jan-2016,3071801-1627,"13,385.99",CG SIMPSON & SON.
Neighbourhood Services,Direct Services,Supplies and Services,304259,Equipment and Materials,11-Jan-2016,3071818-3003224,"7,200.00",CRAEMER UK LTD.
Neighbourhood Services,Direct Services,Supplies and Services,304259,Equipment and Materials,11-Jan-2016,3071818-3003225,"4,700.00",CRAEMER UK LTD.
Neighbourhood Services,Direct Services,Supplies and Services,304259,Equipment and Materials,11-Jan-2016,3071818-3003226,"4,500.00",CRAEMER UK LTD.
Neighbourhood Services,Direct Services,Supplies and Services,304259,Equipment and Materials,11-Jan-2016,3071818-3003227,"4,700.00",CRAEMER UK LTD.
Neighbourhood Services,Direct Services,Supplies and Services,304259,Equipment and Materials,11-Jan-2016,3071818-3003228,"4,662.40",CRAEMER UK LTD.
Neighbourhood Services,Direct Services,Supplies and Services,304259,Equipment and Materials,11-Jan-2016,3071818-3003255,"1,800.00",CRAEMER UK LTD.
Neighbourhood Services,Direct Services,Supplies and Services,304221,Equipment and Materials,11-Jan-2016,3071840-059-176939,"6,814.50",EDMUNDSON ELECTRICAL LTD.
Neighbourhood Services,Technical Services,Supplies and Services,304358,Equipment and Materials,11-Jan-2016,3071847-0000050051,660.00,EURO ENVIRONMENTAL GROUP.
Neighbourhood Services,Technical Services,Supplies and Services,304358,Equipment and Materials,11-Jan-2016,3071848-0000050052,690.00,EURO ENVIRONMENTAL GROUP.
Neighbourhood Services,Direct Services,Supplies and Services,304221,Equipment and Materials,11-Jan-2016,3071851-1512/176076,707.50,FLAME HEATING SPARES LTD.
Neighbourhood Services,Direct Services,Supplies and Services,304358,Equipment and Materials,11-Jan-2016,3071861-10287,"1,000.00",GEORGE VARDY HAULAGE.
Neighbourhood Services,Technical Services,Supplies and Services,304358,Equipment and Materials,11-Jan-2016,3071861-10290,730.00,GEORGE VARDY HAULAGE.
Neighbourhood Services,Technical Services,Supplies and Services,304358,Equipment and Materials,11-Jan-2016,3071861-10292,662.08,GEORGE VARDY HAULAGE.
Neighbourhood Services,Technical Services,Supplies and Services,304358,Equipment and Materials,11-Jan-2016,3071861-10293,662.08,GEORGE VARDY HAULAGE.
Neighbourhood Services,Technical Services,Supplies and Services,304358,Equipment and Materials,11-Jan-2016,3071886-C275,"4,153.50",IAN WILSON.
Neighbourhood Services,Technical Services,Supplies and Services,304358,Equipment and Materials,11-Jan-2016,3071886-C280,"2,693.40",IAN WILSON.
Neighbourhood Services,Technical Services,Supplies and Services,304358,Equipment and Materials,11-Jan-2016,3071886-C281,"2,727.80",IAN WILSON.
Neighbourhood Services,Technical Services,Supplies and Services,304221,Equipment and Materials,11-Jan-2016,3071903-BII179886,520.08,JT DOVE LTD.
Neighbourhood Services,Technical Services,Supplies and Services,304221,Equipment and Materials,11-Jan-2016,3071903-CNI23700/D,511.52,JT DOVE LTD.
Neighbourhood Services,Technical Services,Supplies and Services,304358,Equipment and Materials,11-Jan-2016,3071909-1229,"2,080.00",KEVIN SNOWDON GROUNDWORKS LTD.
Neighbourhood Services,Direct Services,Supplies and Services,304221,Equipment and Materials,11-Jan-2016,3071924-102783,"2,535.00",LORD TECHNICAL LTD.
Neighbourhood Services,Technical Services,Supplies and Services,304358,Equipment and Materials,11-Jan-2016,3071932-41A,"3,443.45",M & E & MR WALTON.
Neighbourhood Services,Direct Services,Supplies and Services,304221,Equipment and Materials,11-Jan-2016,3071975-1184314,"1,058.17",NETWORK RAIL.
Neighbourhood Services,Technical Services,Supplies and Services,304047,Equipment and Materials,11-Jan-2016,3071982-DI20230962,"3,336.89",NORTHERN POWERGRID (NORTHEAST) LTD.
Neighbourhood Services,Direct Services,Supplies and Services,304221,Equipment and Materials,11-Jan-2016,3071989-745,620.00,PARAMOUNT CEILINGS & PARTITIONS.
Neighbourhood Services,Direct Services,Supplies and Services,304358,Equipment and Materials,11-Jan-2016,3072000-PJ.6.12.15,"1,221.00",PJ PLANT HIRE LTD.
Neighbourhood Services,Direct Services,Supplies and Services,304358,Equipment and Materials,11-Jan-2016,3072000-PJ.9.12.15,792.00,PJ PLANT HIRE LTD.
Neighbourhood Services,Technical Services,Supplies and Services,304358,Equipment and Materials,11-Jan-2016,3072014-9396,"1,920.00",RD KEARTON & SONS LTD.
Neighbourhood Services,Technical Services,Supplies and Services,304358,Equipment and Materials,11-Jan-2016,3072014-9397,"4,320.00",RD KEARTON & SONS LTD.
Neighbourhood Services,Projects and Business services,Supplies and Services,304358,Equipment and Materials,11-Jan-2016,3072014-9398,732.00,RD KEARTON & SONS LTD.
Neighbourhood Services,Technical Services,Supplies and Services,304358,Equipment and Materials,11-Jan-2016,3072040-2015089,"1,898.30",SHIREHAVEN LTD.
Neighbourhood Services,Technical Services,Supplies and Services,304221,Equipment and Materials,11-Jan-2016,3072055-077460,942.24,STONEGRAVE AGGREGATES LTD.
Neighbourhood Services,Technical Services,Supplies and Services,304221,Equipment and Materials,11-Jan-2016,3072055-077780,"1,266.96",STONEGRAVE AGGREGATES LTD.
Neighbourhood Services,Technical Services,Supplies and Services,304221,Equipment and Materials,11-Jan-2016,3072069-9033554169,850.19,TARMAC TRADING LTD.
Neighbourhood Services,Technical Services,Supplies and Services,304221,Equipment and Materials,11-Jan-2016,3072069-9033559599,848.36,TARMAC TRADING LTD.
Neighbourhood Services,Technical Services,Supplies and Services,304221,Equipment and Materials,11-Jan-2016,3072069-9033566052,639.01,TARMAC TRADING LTD.
Neighbourhood Services,Technical Services,Supplies and Services,304221,Equipment and Materials,11-Jan-2016,3072069-9033590073,"1,384.14",TARMAC TRADING LTD.
Neighbourhood Services,Technical Services,Supplies and Services,304221,Equipment and Materials,11-Jan-2016,3072089-INV034667,"2,192.40",URBIS SCHREDER LTD.
Neighbourhood Services,Technical Services,Supplies and Services,304221,Equipment and Materials,11-Jan-2016,3072096-18861,726.75,WARD TIMBER LTD.
Neighbourhood Services,Technical Services,Supplies and Services,304358,Equipment and Materials,11-Jan-2016,3072108-5236,"1,292.00",YOULL CONSTRUCTION LTD.
Neighbourhood Services,Technical Services,Supplies and Services,304358,Equipment and Materials,11-Jan-2016,3072108-5244,646.00,YOULL CONSTRUCTION LTD.
Neighbourhood Services,Technical Services,Supplies and Services,304358,Equipment and Materials,11-Jan-2016,3072108-5251,984.00,YOULL CONSTRUCTION LTD.
Regeneration & Economic Development,Transport and Contracted Services,Supplies and Services,304259,Equipment and Materials,11-Jan-2016,3072088-3IN/10272762,"1,158.00",TUNSTALL HEALTHCARE (UK) LTD.
Regeneration & Economic Development,Transport and Contracted Services,Supplies and Services,304245,Equipment and Materials,11-Jan-2016,3072088-3IN/10272763,"3,750.00",TUNSTALL HEALTHCARE (UK) LTD.
Resources,I.C.T. Services,Supplies and Services,304245,Equipment and Materials,11-Jan-2016,3071766-5449476,"4,470.00",ANTALIS LTD.
Resources,I.C.T. Services,Supplies and Services,304303,Equipment and Materials,11-Jan-2016,3071888-2696360,904.13,INSIGHT DIRECT (UK) LTD.
Regeneration & Economic Development,Economic Development and Housing,Cap Exp on Grants & Other Financial Assistance (REFCUS),918501,Exp assets not owned by authority,11-Jan-2016,3072028-066,"9,306.00",RONDEN PROPERTIES LTD.
Neighbourhood Services,Culture & Sport,Supplies and Services,308011,Furniture,11-Jan-2016,3071952-151635,"4,481.10",MITCHELL FLOORING.
Children and Adult Services,Public Health,Supplies and Services,364999,Grants to Voluntary Organisations,11-Jan-2016,3071839-3145,"2,500.00",EASTLEA COMMUNITY ASSOCIATION.
Neighbourhood Services,Technical Services,Supplies and Services,389001,Inventory Related,11-Jan-2016,3071771-926245791,"2,422.24",ARCO LTD.
Children and Adult Services,Childrens Services,Supplies and Services,384302,Miscellaneous Expenses,11-Jan-2016,3072010-306,981.50,RAB OUTDOOR EDUCATION LTD.
Children and Adult Services,Education,Supplies and Services,384199,Miscellaneous Expenses,11-Jan-2016,3071802-12134,"3,380.00",CHARANGA LTD.
Children and Adult Services,Education,Supplies and Services,384199,Miscellaneous Expenses,11-Jan-2016,3071945-2350,"2,000.00",MID NITE EXPRESS.
Regeneration & Economic Development,Economic Development and Housing,Supplies and Services,384899,Miscellaneous Expenses,11-Jan-2016,3071783-089,964.97,BOWES MUSEUM.
Regeneration & Economic Development,Economic Development and Housing,Supplies and Services,384871,Miscellaneous Expenses,11-Jan-2016,3071826-CHARHUDSDIP,996.00,DIVERSE TRAINERS LTD.
Regeneration & Economic Development,Economic Development and Housing,Supplies and Services,384199,Miscellaneous Expenses,11-Jan-2016,3071926-288429,740.00,LOW FELL REMOVALS.
Regeneration & Economic Development,Economic Development and Housing,Supplies and Services,384899,Miscellaneous Expenses,11-Jan-2016,3072072-090,"4,625.71",TEESDALE MARKETING LTD.
Neighbourhood Services,Culture & Sport,Supplies and Services,312013,Newspapers Books and Periodicals,11-Jan-2016,3071773-4874571,839.97,ASKEWS & HOLTS LIBRARY SERVICES LTD.
Neighbourhood Services,Culture & Sport,Supplies and Services,312013,Newspapers Books and Periodicals,11-Jan-2016,3071773-4879791,543.58,ASKEWS & HOLTS LIBRARY SERVICES LTD.
Neighbourhood Services,Culture & Sport,Supplies and Services,312013,Newspapers Books and Periodicals,11-Jan-2016,3071773-4881838,507.71,ASKEWS & HOLTS LIBRARY SERVICES LTD.
Neighbourhood Services,Culture & Sport,Supplies and Services,312013,Newspapers Books and Periodicals,11-Jan-2016,3071773-4883590,515.29,ASKEWS & HOLTS LIBRARY SERVICES LTD.
Resources,I.C.T. Services,Supplies and Services,332029,Printing Stationery and Gen Off Exps,11-Jan-2016,3072004-625232,"4,832.00",POTTS PRINTERS LTD.
Neighbourhood Services,Culture & Sport,Supplies and Services,324117,Provisions,11-Jan-2016,3071794-84220676,571.64,CARLSBERG UK LTD.
Children and Adult Services,Commissioning inc Supporting People,Third Party Payments,473111,Purchase of Care,11-Jan-2016,3072049-2724,"40,953.00",ST MARGARETS CENTRE.
Children and Adult Services,Head of Adults,Third Party Payments,478111,Purchase of Care,11-Jan-2016,3071941-2203628,"1,501.20",MENCAP.
Children and Adult Services,Head of Adults,Third Party Payments,478111,Purchase of Care,11-Jan-2016,3071942-2214807,"1,501.20",MENCAP.
Children and Adult Services,Head of Adults,Third Party Payments,478151,Purchase of Care,11-Jan-2016,3071984-23673,"2,364.62",OAKLEA TRUST.
Children and Adult Services,Head of Adults,Third Party Payments,478151,Purchase of Care,11-Jan-2016,3071984-23969,800.30,OAKLEA TRUST.
Neighbourhood Services,Technical Services,Employees,040149,Recruitment Instruction and Training,11-Jan-2016,3072081-00026464,"2,700.00",THOMAS TELFORD LTD.
Neighbourhood Services,Technical Services,Third Party Payments,410037,Rendered by Other Local Authorities,11-Jan-2016,3071755-J1135/1,"2,750.00",AK (LIGHTING & SIGNS) LTD.
Neighbourhood Services,Technical Services,Third Party Payments,430128,Rendered by Private Contractors,11-Jan-2016,3071853-2242,871.20,FORSTER HALL & SONS.
Neighbourhood Services,Direct Services,Third Party Payments,430100,Rendered by Private Contractors,11-Jan-2016,3071863-A25637,675.00,GLASS ASSIST UK.
Neighbourhood Services,Direct Services,Third Party Payments,430100,Rendered by Private Contractors,11-Jan-2016,3071881-61662,"2,921.48",HOGARTH COACHWORKS LTD.
Neighbourhood Services,Direct Services,Third Party Payments,430100,Rendered by Private Contractors,11-Jan-2016,3071881-61765,804.13,HOGARTH COACHWORKS LTD.
Neighbourhood Services,Direct Services,Third Party Payments,430100,Rendered by Private Contractors,11-Jan-2016,3071881-61852,"11,865.86",HOGARTH COACHWORKS LTD.
Neighbourhood Services,Direct Services,Third Party Payments,430100,Rendered by Private Contractors,11-Jan-2016,3071881-61853,601.80,HOGARTH COACHWORKS LTD.
Neighbourhood Services,Direct Services,Third Party Payments,430100,Rendered by Private Contractors,11-Jan-2016,3071881-61906,"3,329.49",HOGARTH COACHWORKS LTD.
Neighbourhood Services,Direct Services,Third Party Payments,430100,Rendered by Private Contractors,11-Jan-2016,3071895-11812,"3,593.00",JC MAINTENANCE SERVICES LTD.
Neighbourhood Services,Direct Services,Third Party Payments,430100,Rendered by Private Contractors,11-Jan-2016,3071931-X8751,"15,379.00",M & D FOUNDATIONS & BUILDING SERVICES LTD T/A PILING & FOUNDATION SERVICES.
Neighbourhood Services,Technical Services,Third Party Payments,430100,Rendered by Private Contractors,11-Jan-2016,3071973-NC8/C423/BW,"7,000.00",NEDCO CONTRACTS (NE) LTD.
Neighbourhood Services,Technical Services,Third Party Payments,430100,Rendered by Private Contractors,11-Jan-2016,3071975-1184244,"1,449.45",NETWORK RAIL.
Neighbourhood Services,Direct Services,Third Party Payments,430100,Rendered by Private Contractors,11-Jan-2016,3071989-744,505.00,PARAMOUNT CEILINGS & PARTITIONS.
Neighbourhood Services,Technical Services,Third Party Payments,430100,Rendered by Private Contractors,11-Jan-2016,3072038-916,"4,560.00",SCHMUCK WHORLTON LTD.
Neighbourhood Services,Direct Services,Third Party Payments,430100,Rendered by Private Contractors,11-Jan-2016,3072071-7436,"4,981.00",TEAMS ROOFING LTD.
Neighbourhood Services,Direct Services,Third Party Payments,430100,Rendered by Private Contractors,11-Jan-2016,3072074-96321011,609.89,TERBERG MATEC (UK) LTD.
Regeneration & Economic Development,Transport and Contracted Services,Third Party Payments,430106,Rendered by Private Contractors,11-Jan-2016,3071880-013608,"4,659.56",HODGSONS COACH OPERATORS LTD.
Regeneration & Economic Development,Transport and Contracted Services,Third Party Payments,430106,Rendered by Private Contractors,11-Jan-2016,3072050-17220,"2,585.42",STANLEY TRAVEL (NORTH EAST) LTD.
Children and Adult Services,Childrens Services,Third Party Payments,425040,Rendered by Voluntary Organisations,11-Jan-2016,3072061-175011,730.03,SWIIS FOSTER CARE LTD.
Children and Adult Services,Childrens Services,Third Party Payments,425040,Rendered by Voluntary Organisations,11-Jan-2016,3072077-000175,"7,902.90",THE FOSTERING COMPANY NE LTD.
Regeneration & Economic Development,Spatial Policy Planning Assets & Environment,Premises,125009,Rents,11-Jan-2016,3071953-0315-118709,"8,331.96",MONTAGU EVANS LLP.
Regeneration & Economic Development,Spatial Policy Planning Assets & Environment,Premises,125009,Rents,11-Jan-2016,3071953-934-2BA/008365,"1,417.00",MONTAGU EVANS LLP.
Regeneration & Economic Development,Spatial Policy Planning Assets & Environment,Premises,125009,Rents,11-Jan-2016,3072036-72577,"10,875.00",SALTIRE CLIENT TRUST A/C.
Neighbourhood Services,Direct Services,Transport,210057,Repair and Maintenance of Vehicles,11-Jan-2016,3071872-126433,968.27,GREENLAY (GRASS MACHINERY) LTD.
Neighbourhood Services,Direct Services,Transport,210057,Repair and Maintenance of Vehicles,11-Jan-2016,3071981-57988,604.50,NORPLAST LTD.
Neighbourhood Services,Direct Services,Transport,210057,Repair and Maintenance of Vehicles,11-Jan-2016,3072035-SC15-1513,912.00,SAFECOTE LTD.
Neighbourhood Services,Direct Services,Transport,215005,Running Costs of Vehicles,11-Jan-2016,3071875-564699,"29,296.46",HARVEST ENERGY LTD.
Children and Adult Services,Education,Transfer Payments,510026,School Children,11-Jan-2016,3072102-CW17/12/15,"2,366.00",WHEATLEY HILL COMMUNITY NURSERY LTD.
Children and Adult Services,Childrens Services,Premises,108251,Service Repairs and Maintenance,11-Jan-2016,3071750-31343644-61,"10,300.00",ADT FIRE & SECURITY PLC.
Children and Adult Services,Childrens Services,Premises,108099,Service Repairs and Maintenance,11-Jan-2016,3072054-7861,780.00,STONE TECHNICAL SERVICES LTD.
Regeneration & Economic Development,Economic Development and Housing,Premises,108099,Service Repairs and Maintenance,11-Jan-2016,3071822-1463,986.00,DAVE BLACK CONSTRUCTION LTD.
Children and Adult Services,Planning & Service Strategy,Supplies and Services,338089,Services,11-Jan-2016,3071936-NCS465,768.60,REDACTED - PAYMENT TO INDIVIDUAL
Neighbourhood Services,Culture & Sport,Supplies and Services,338047,Services,11-Jan-2016,3071764-012,"3,200.00",REDACTED - PAYMENT TO INDIVIDUAL
Neighbourhood Services,Direct Services,Supplies and Services,338078,Services,11-Jan-2016,3072009-5497,"2,742.07",QW SECURITY LTD.
Regeneration & Economic Development,Economic Development and Housing,Supplies and Services,338078,Services,11-Jan-2016,3072009-5506,"4,896.88",QW SECURITY LTD.
Resources,Legal & Democratic Services,Supplies and Services,338025,Services,11-Jan-2016,3072024-0000022113,"1,205.00",ROAR FORENSICS LTD.
Neighbourhood Services,Direct Services,Stock,926004,Stock,11-Jan-2016,3071857-216371154,"2,220.00",FUCHS LUBRICANTS (UK) PLC.
Neighbourhood Services,Technical Services,Stock,926900,Stock in hand-Inventory system,11-Jan-2016,3071827-594715,576.72,DONWOOD (DOUBLE GLAZING) LTD.
Neighbourhood Services,Technical Services,Stock,926900,Stock in hand-Inventory system,11-Jan-2016,3071871-06/584103,"1,669.56",GREENHAM TRADING LTD.
Neighbourhood Services,Technical Services,Stock,926900,Stock in hand-Inventory system,11-Jan-2016,3071889-513567,"2,424.80",INSTARMAC GROUP PLC.
Neighbourhood Services,Technical Services,Stock,926900,Stock in hand-Inventory system,11-Jan-2016,3071903-STI430705,"1,221.56",JT DOVE LTD.
Neighbourhood Services,Technical Services,Stock,926900,Stock in hand-Inventory system,11-Jan-2016,3071903-STI430763,512.40,JT DOVE LTD.
Neighbourhood Services,Technical Services,Stock,926900,Stock in hand-Inventory system,11-Jan-2016,3071990-XL160573,"1,682.22",PARK ELECTRICAL DISTRIBUTORS LTD.
Neighbourhood Services,Technical Services,Stock,926900,Stock in hand-Inventory system,11-Jan-2016,3071990-XL160794,"2,299.05",PARK ELECTRICAL DISTRIBUTORS LTD.
Neighbourhood Services,Technical Services,Stock,926900,Stock in hand-Inventory system,11-Jan-2016,3071990-XL160797,624.40,PARK ELECTRICAL DISTRIBUTORS LTD.
Neighbourhood Services,Technical Services,Stock,926900,Stock in hand-Inventory system,11-Jan-2016,3072044-187974,"3,156.00",SNAPFAST.
Neighbourhood Services,Technical Services,Stock,926900,Stock in hand-Inventory system,11-Jan-2016,3072056-7914597,"1,044.80",SUPPLIES TEAM LTD (NOW KNOWN AS BANNER).
Neighbourhood Services,Technical Services,Stock,926900,Stock in hand-Inventory system,11-Jan-2016,3072080-N/IN162799,"2,275.60",THOMAS OWEN & SONS (NEWCASTLE) LTD.
Neighbourhood Services,Technical Services,Stock,926900,Stock in hand-Inventory system,11-Jan-2016,3072105-28798421,"1,216.64",WOLSELEY UK LTD.
Resources,I.C.T. Services,Stock,926900,Stock in hand-Inventory system,11-Jan-2016,3071824-7402255702,"3,880.96",DELL COMPUTER CORPORATION LTD.
Resources,I.C.T. Services,Stock,926900,Stock in hand-Inventory system,11-Jan-2016,3072107-Z777552,930.00,XMA LTD.
Regeneration & Economic Development,Economic Development and Housing,Supplies and Services,372009,Subscriptions,11-Jan-2016,3071787-7862A,900.00,BUSINESS FUNDING RESEARCH LTD.
Children and Adult Services,Public Health,Supplies and Services,344033,Telephones,11-Jan-2016,3071811-17886,820.65,CONNECTED WORLD COMMUNICATIONS LTD.
Children and Adult Services,Public Health,Supplies and Services,344033,Telephones,11-Jan-2016,3071811-18708,680.89,CONNECTED WORLD COMMUNICATIONS LTD.
Children and Adult Services,Public Health,Supplies and Services,344033,Telephones,11-Jan-2016,3071811-19115,651.99,CONNECTED WORLD COMMUNICATIONS LTD.
Regeneration & Economic Development,Transport and Contracted Services,Supplies and Services,344033,Telephones,11-Jan-2016,3072088-3IN/10272668,"5,400.00",TUNSTALL HEALTHCARE (UK) LTD.
Children and Adult Services,Childrens Services,Employees,080025,Agency Staff,12-Jan-2016,3072816-329319,"63,939.88",DE POEL MANAGED SERVICES LTD.
Regeneration & Economic Development,Economic Development and Housing,Cap Exp on Grants & Other Financial Assistance (REFCUS),918401,Capital grants,12-Jan-2016,3072869-097,"7,501.00",JOHNNY RIDLEY LTD.
Neighbourhood Services,Direct Services,Premises,145023,Cleaning and Domestic Supplies,12-Jan-2016,3072914-4100515434,500.00,NORTH WEST DURHAM METHODIST CIRCUIT.
Children and Adult Services,Education,Construction Work,908105,Construction work,12-Jan-2016,3072821-14119,"1,800.00",DURHAM WILDLIFE TRUST LTD.
Neighbourhood Services,Direct Services,Construction Work,908105,Construction work,12-Jan-2016,3072894-4876/1215/15,"2,070.52",MGL DEMOLITION LTD.
Regeneration & Economic Development,Economic Development and Housing,Construction Work,908105,Construction work,12-Jan-2016,3072873-INV00904973,"1,190.00",LANES GROUP PLC.
Regeneration & Economic Development,Economic Development and Housing,Construction Work,908105,Construction work,12-Jan-2016,3072873-INV00914300,595.00,LANES GROUP PLC.
Dedicated Schools Grant,Dedicated Schools Grant,Transport,230010,Contract Hire,12-Jan-2016,3072861-L100WP-DEC2015,650.00,JAFFAS TAXIS.
Children and Adult Services,Education,Transport,230008,Contract Hire,12-Jan-2016,3072858-1563,560.00,J YOUNG T/A VIP TAXIS.
Children and Adult Services,Education,Transport,230008,Contract Hire,12-Jan-2016,3072858-1566,532.00,J YOUNG T/A VIP TAXIS.
Children and Adult Services,Education,Transport,230008,Contract Hire,12-Jan-2016,3072858-1568,703.64,J YOUNG T/A VIP TAXIS.
Children and Adult Services,Education,Transport,230008,Contract Hire,12-Jan-2016,3072858-1571,624.00,J YOUNG T/A VIP TAXIS.
Children and Adult Services,Education,Transport,230008,Contract Hire,12-Jan-2016,3072858-1572,648.00,J YOUNG T/A VIP TAXIS.
Children and Adult Services,Education,Transport,230007,Contract Hire,12-Jan-2016,3072858-1574,812.00,J YOUNG T/A VIP TAXIS.
Children and Adult Services,Education,Transport,230008,Contract Hire,12-Jan-2016,3072858-1577,"1,092.00",J YOUNG T/A VIP TAXIS.
Children and Adult Services,Education,Transport,230009,Contract Hire,12-Jan-2016,3072864-838,812.00,JDS PRIVATE HIRE DURHAM.
Children and Adult Services,Education,Transport,230008,Contract Hire,12-Jan-2016,3072864-845,"1,550.00",JDS PRIVATE HIRE DURHAM.
Children and Adult Services,Education,Transport,230008,Contract Hire,12-Jan-2016,3072912-0000023387,"5,790.00",NORTH EAST AUTISM SOCIETY.
Children and Adult Services,Education,Transport,230008,Contract Hire,12-Jan-2016,3072938-15125,"1,781.43",RAPID MINIBUSES.
Children and Adult Services,Education,Transport,230008,Contract Hire,12-Jan-2016,3072938-15126,"1,102.79",RAPID MINIBUSES.
Children and Adult Services,Education,Transport,230008,Contract Hire,12-Jan-2016,3072938-15128,"1,040.00",RAPID MINIBUSES.
Children and Adult Services,Education,Transport,230008,Contract Hire,12-Jan-2016,3072944-157,"1,281.37",ROBBIE`S PRIVATE HIRE.
Children and Adult Services,Education,Transport,230007,Contract Hire,12-Jan-2016,3072945-150488,"4,346.72",ROBERTS TOURS.
Children and Adult Services,Education,Transport,230008,Contract Hire,12-Jan-2016,3072956-71922,864.00,SHOTTON PRIVATE HIRE.
Children and Adult Services,Education,Transport,230007,Contract Hire,12-Jan-2016,3072986-5030/DEC,"1,125.74",TED WILFORD COACHES.
Children and Adult Services,Education,Transport,230007,Contract Hire,12-Jan-2016,3072986-5033/DEC,"1,547.14",TED WILFORD COACHES.
Children and Adult Services,Education,Transport,230007,Contract Hire,12-Jan-2016,3072986-5038/DEC,"1,617.56",TED WILFORD COACHES.
Children and Adult Services,Education,Transport,230007,Contract Hire,12-Jan-2016,3072986-6032/DEC,"1,260.00",TED WILFORD COACHES.
Children and Adult Services,Head of Adults,Transport,230005,Contract Hire,12-Jan-2016,3072864-833,962.10,JDS PRIVATE HIRE DURHAM.
Regeneration & Economic Development,Economic Development and Housing,Cap Exp on Grants & Other Financial Assistance (REFCUS),918004,Contributions to other bodies,12-Jan-2016,3072764-095,"7,523.91",ARTWORKS IN TEESDALE.
Regeneration & Economic Development,Economic Development and Housing,Premises,120009,Energy Costs,12-Jan-2016,3072824-000001221396,965.97,EDF ENERGY CUSTOMERS PLC T/A EDF ENERGY.
Children and Adult Services,Childrens Services,Supplies and Services,304221,Equipment and Materials,12-Jan-2016,3072866-0215/0184337,510.54,JEWSON LTD.
Children and Adult Services,Head of Adults,Supplies and Services,304259,Equipment and Materials,12-Jan-2016,3072924-557596,582.50,P & N ASSOCIATES LTD.
Neighbourhood Services,Technical Services,Supplies and Services,304221,Equipment and Materials,12-Jan-2016,3072753-22507488,"1,953.31",AGGREGATE INDUSTRIES UK LTD.
Neighbourhood Services,Technical Services,Supplies and Services,304221,Equipment and Materials,12-Jan-2016,3072753-22513171,"1,897.16",AGGREGATE INDUSTRIES UK LTD.
Neighbourhood Services,Technical Services,Supplies and Services,304221,Equipment and Materials,12-Jan-2016,3072972-077933,"2,622.20",STONEGRAVE AGGREGATES LTD.
Neighbourhood Services,Technical Services,Supplies and Services,304221,Equipment and Materials,12-Jan-2016,3072981-9033602275,"1,156.73",TARMAC TRADING LTD.
Neighbourhood Services,Technical Services,Supplies and Services,304221,Equipment and Materials,12-Jan-2016,3072981-9033698182,598.13,TARMAC TRADING LTD.
Resources,I.C.T. Services,Supplies and Services,304303,Equipment and Materials,12-Jan-2016,3072845-INV0160817,"2,173.98",GV MULTI MEDIA LTD.
Children and Adult Services,Childrens Services,Supplies and Services,364352,Grants to Voluntary Organisations,12-Jan-2016,3072973-228,924.76,STONHAM HOUSING ASSOCIATION LTD.
Children and Adult Services,Childrens Services,Supplies and Services,384302,Miscellaneous Expenses,12-Jan-2016,3072937-CAS-01-2016-025,645.20,RAB OUTDOOR EDUCATION LTD.
Children and Adult Services,Childrens Services,Supplies and Services,384491,Miscellaneous Expenses,12-Jan-2016,3072976-11642,605.00,SUNSHINE DAY NURSERY.
Children and Adult Services,Childrens Services,Supplies and Services,384491,Miscellaneous Expenses,12-Jan-2016,3072976-11643,"1,452.00",SUNSHINE DAY NURSERY.
Children and Adult Services,Education,Supplies and Services,384199,Miscellaneous Expenses,12-Jan-2016,3072796-017B,540.00,CLICT.
Children and Adult Services,Education,Supplies and Services,384199,Miscellaneous Expenses,12-Jan-2016,3072939-SI-26,910.00,REDMAT LTD.
Children and Adult Services,Education,Supplies and Services,384199,Miscellaneous Expenses,12-Jan-2016,3072939-SI-36,780.00,REDMAT LTD.
Neighbourhood Services,Technical Services,Supplies and Services,384194,Miscellaneous Expenses,12-Jan-2016,3072908-52876,"2,375.00",NIRAMAX GROUP LTD.
Neighbourhood Services,Direct Services,Supplies and Services,384159,Miscellaneous Expenses,12-Jan-2016,3072936-5504,"5,275.07",QW SECURITY LTD.
Neighbourhood Services,Culture & Sport,Supplies and Services,384237,Miscellaneous Expenses,12-Jan-2016,3072975-2364,900.00,SUBSTANCE 2005 LTD.
Regeneration & Economic Development,Transport and Contracted Services,Supplies and Services,384899,Miscellaneous Expenses,12-Jan-2016,3072836-092,"2,489.00",FERRYHILL TOWN COUNCIL.
Regeneration & Economic Development,Economic Development and Housing,Supplies and Services,384899,Miscellaneous Expenses,12-Jan-2016,3072844-094,"2,404.02",GROUNDWORK NORTH EAST.
Regeneration & Economic Development,Economic Development and Housing,Supplies and Services,384700,Miscellaneous Expenses,12-Jan-2016,3072882-085,"1,000.00",M & L ASSOCIATES.
Regeneration & Economic Development,Economic Development and Housing,Supplies and Services,384700,Miscellaneous Expenses,12-Jan-2016,3072950-086,"1,000.00",S & AW JOINERY.
Resources,Financial Services,Supplies and Services,384199,Miscellaneous Expenses,12-Jan-2016,3072781-6003215367,"12,053.70",CAPITA BUSINESS SERVICES LTD.
Neighbourhood Services,Culture & Sport,Supplies and Services,312013,Newspapers Books and Periodicals,12-Jan-2016,3073013-I596528,733.67,ULVERSCROFT LARGE PRINT BOOKS LTD.
Neighbourhood Services,Culture & Sport,Supplies and Services,312013,Newspapers Books and Periodicals,12-Jan-2016,3073013-I596588,741.21,ULVERSCROFT LARGE PRINT BOOKS LTD.
Children and Adult Services,Childrens Services,Third Party Payments,440027,Other Third Party Payments,12-Jan-2016,3072165-1075902,536.97,REDACTED - PAYMENT TO INDIVIDUAL
Children and Adult Services,Childrens Services,Third Party Payments,440027,Other Third Party Payments,12-Jan-2016,3072165-1075903,536.97,REDACTED - PAYMENT TO INDIVIDUAL
Children and Adult Services,Childrens Services,Third Party Payments,440031,Other Third Party Payments,12-Jan-2016,3072493-1075958,633.28,REDACTED - PAYMENT TO INDIVIDUAL
Children and Adult Services,Commissioning inc Supporting People,Third Party Payments,472113,Purchase of Care,12-Jan-2016,3072813-AL18,"11,250.00",DALE CARE LTD.
Children and Adult Services,Commissioning inc Supporting People,Third Party Payments,479111,Purchase of Care,12-Jan-2016,3072849-CES009,"3,333.33",HOMECARE SUPPORT LTD T/A THE HUMAN SUPPORT GROUP.
Children and Adult Services,Commissioning inc Supporting People,Third Party Payments,473111,Purchase of Care,12-Jan-2016,3072875-RINVTP/00383420,"4,128.14",LEONARD CHESHIRE DISABILITY.
Children and Adult Services,Commissioning inc Supporting People,Third Party Payments,470111,Purchase of Care,12-Jan-2016,3072875-RINVTP/00383786,"4,128.14",LEONARD CHESHIRE DISABILITY.
Children and Adult Services,Commissioning inc Supporting People,Third Party Payments,479111,Purchase of Care,12-Jan-2016,3072893-555/04022,"15,053.00",MENTAL HEALTH MATTERS.
Children and Adult Services,Head of Adults,Third Party Payments,478151,Purchase of Care,12-Jan-2016,3072919-23925,"1,032.52",OAKLEA TRUST.
Regeneration & Economic Development,Strategy Programmes and Performance,Employees,040149,Recruitment Instruction and Training,12-Jan-2016,3072842-2851,"2,900.00",GREENGAGE CONSULTING LTD.
Neighbourhood Services,Technical Services,Third Party Payments,430100,Rendered by Private Contractors,12-Jan-2016,3072847-SIN7046278,"3,504.50",HCS DRAIN SERVICES LTD.
Neighbourhood Services,Direct Services,Third Party Payments,430100,Rendered by Private Contractors,12-Jan-2016,3072850-3630-01,"1,200.00",HVAC COMMISSIONING SERVICES LTD.
Neighbourhood Services,Technical Services,Third Party Payments,430100,Rendered by Private Contractors,12-Jan-2016,3072915-DI20231122,"1,568.05",NORTHERN POWERGRID (NORTHEAST) LTD.
Neighbourhood Services,Technical Services,Third Party Payments,430100,Rendered by Private Contractors,12-Jan-2016,3072915-DI20231767,"1,823.87",NORTHERN POWERGRID (NORTHEAST) LTD.
Neighbourhood Services,Technical Services,Third Party Payments,430100,Rendered by Private Contractors,12-Jan-2016,3072915-DI20231770,894.88,NORTHERN POWERGRID (NORTHEAST) LTD.
Neighbourhood Services,Technical Services,Third Party Payments,430100,Rendered by Private Contractors,12-Jan-2016,3072915-DI20232108,"1,366.19",NORTHERN POWERGRID (NORTHEAST) LTD.
Neighbourhood Services,Technical Services,Third Party Payments,430100,Rendered by Private Contractors,12-Jan-2016,3072932-137662,"47,126.87",PREMIER TRAFFIC MANAGEMENT LTD.
Neighbourhood Services,Direct Services,Third Party Payments,430100,Rendered by Private Contractors,12-Jan-2016,3072965-5072,"9,566.00",ST ASTIER LTD.
Regeneration & Economic Development,Transport and Contracted Services,Third Party Payments,430100,Rendered by Private Contractors,12-Jan-2016,3072917-035932,"26,370.28",NSL LTD.
Regeneration & Economic Development,Transport and Contracted Services,Third Party Payments,430100,Rendered by Private Contractors,12-Jan-2016,3072917-035933,937.10,NSL LTD.
Regeneration & Economic Development,Transport and Contracted Services,Third Party Payments,430100,Rendered by Private Contractors,12-Jan-2016,3072917-035934,"25,753.89",NSL LTD.
Regeneration & Economic Development,Transport and Contracted Services,Third Party Payments,430100,Rendered by Private Contractors,12-Jan-2016,3072917-035935,"21,694.28",NSL LTD.
Regeneration & Economic Development,Transport and Contracted Services,Third Party Payments,430100,Rendered by Private Contractors,12-Jan-2016,3072917-035936,"2,849.57",NSL LTD.
Regeneration & Economic Development,Transport and Contracted Services,Third Party Payments,430100,Rendered by Private Contractors,12-Jan-2016,3072917-035937,"6,838.75",NSL LTD.
Regeneration & Economic Development,Transport and Contracted Services,Third Party Payments,430100,Rendered by Private Contractors,12-Jan-2016,3072917-035938,"15,944.07",NSL LTD.
Regeneration & Economic Development,Transport and Contracted Services,Third Party Payments,430100,Rendered by Private Contractors,12-Jan-2016,3072917-036007,"3,152.81",NSL LTD.
Children and Adult Services,Head of Adults,Premises,125009,Rents,12-Jan-2016,3073024-371202,"1,172.55",WHITTLE JONES (GROUP) LTD.
Neighbourhood Services,Direct Services,Transport,210057,Repair and Maintenance of Vehicles,12-Jan-2016,3072788-550253559,714.31,CHEMETALL PLC.
Children and Adult Services,Childrens Services,Supplies and Services,338045,Services,12-Jan-2016,3072962-LFR/KB/50833010,"1,831.74",SMITH & GRAHAM SOLICITORS.
Children and Adult Services,Education,Supplies and Services,338035,Services,12-Jan-2016,3072921-22123,600.00,ONE AWARDS.
Children and Adult Services,Planning & Service Strategy,Supplies and Services,338089,Services,12-Jan-2016,3072754-1942,"1,949.20",AIM PROJECT.
Children and Adult Services,Planning & Service Strategy,Supplies and Services,338026,Services,12-Jan-2016,3072789-00017,"1,015.00",CHOICES & VOICES CARE LTD.
Children and Adult Services,Planning & Service Strategy,Supplies and Services,338026,Services,12-Jan-2016,3072979-012,837.25,SWIPHT SOCIAL WORK CONSULTANCY.
Neighbourhood Services,Culture & Sport,Supplies and Services,338099,Services,12-Jan-2016,3072917-035926,754.08,NSL LTD.
Neighbourhood Services,Culture & Sport,Supplies and Services,338099,Services,12-Jan-2016,3072998-0000061451,575.25,TICKETS.COM LTD.
Neighbourhood Services,Culture & Sport,Supplies and Services,338047,Services,12-Jan-2016,3073020-22314032,637.50,WARNER BROS ENTERTAINMENT UK LTD.
Regeneration & Economic Development,Economic Development and Housing,Supplies and Services,338066,Services,12-Jan-2016,3072961-SSL00015,"10,000.00",SMART SPECIALISATION LTD.
Regeneration & Economic Development,Economic Development and Housing,Supplies and Services,338066,Services,12-Jan-2016,3072961-SSL00017,"1,000.00",SMART SPECIALISATION LTD.
Resources,I.C.T. Services,Supplies and Services,338099,Services,12-Jan-2016,3072771-95,"31,580.00",BLUE SKY THINK LLP.
Neighbourhood Services,Technical Services,Stock,926900,Stock in hand-Inventory system,12-Jan-2016,3072843-06/581251,"2,623.50",GREENHAM TRADING LTD.
Neighbourhood Services,Technical Services,Stock,926900,Stock in hand-Inventory system,12-Jan-2016,3072843-06/584093,823.68,GREENHAM TRADING LTD.
Neighbourhood Services,Technical Services,Stock,926900,Stock in hand-Inventory system,12-Jan-2016,3072889-231305,"1,253.66",MARWOOD ELECTRICAL CO LTD.
Neighbourhood Services,Technical Services,Stock,926900,Stock in hand-Inventory system,12-Jan-2016,3072999-001512,"1,464.75",TINTFIT WINDOW FILMS LTD.
Neighbourhood Services,Technical Services,Stock,926900,Stock in hand-Inventory system,12-Jan-2016,3073027-28726196,"2,071.68",WOLSELEY UK LTD.
Resources,Legal & Democratic Services,Supplies and Services,372009,Subscriptions,12-Jan-2016,3072997-9000831619,"5,069.00",THOMSON REUTERS.
Regeneration & Economic Development,Economic Development and Housing,Acquisition Of Land And Buildings,905009,Acquisition of land and buildings,13-Jan-2016,302185-BV016945,"2,500.00",ROOK MATTHEWS SAYER CO LTD.
Regeneration & Economic Development,Economic Development and Housing,Cap Exp on Grants & Other Financial Assistance (REFCUS),918401,Capital grants,13-Jan-2016,302118-093,"5,000.00",REDACTED - PAYMENT TO INDIVIDUAL
Regeneration & Economic Development,Economic Development and Housing,Cap Exp on Grants & Other Financial Assistance (REFCUS),918401,Capital grants,13-Jan-2016,3073304-127,"5,400.00",MC DEVELOPMENTS.
Neighbourhood Services,Direct Services,Premises,106082,Centrally Controlled Rep and Maint,13-Jan-2016,302120-5422,"2,329.00",ASPECT FIRE SOLUTIONS LTD.
Neighbourhood Services,Direct Services,Premises,106082,Centrally Controlled Rep and Maint,13-Jan-2016,302120-5463,"1,330.00",ASPECT FIRE SOLUTIONS LTD.
Neighbourhood Services,Culture & Sport,Premises,145023,Cleaning and Domestic Supplies,13-Jan-2016,3073225-06/585014,763.42,GREENHAM TRADING LTD.
Regeneration & Economic Development,Transport and Contracted Services,Supplies and Services,328041,Clothing Uniforms and Laundry,13-Jan-2016,3073460-442022,604.15,SWIFT INDUSTRIAL SUPPLIES LTD.
Children and Adult Services,Education,Construction Work,908105,Construction work,13-Jan-2016,3073291-28549,750.00,LUCION ENVIRONMENTAL LLP LTD.
Neighbourhood Services,Technical Services,Construction Work,908105,Construction work,13-Jan-2016,302177-17544,964.00,NW SYSTEMS GROUP.
Neighbourhood Services,Technical Services,Construction Work,908105,Construction work,13-Jan-2016,3073422-552,"3,310.00",SHERIFF TECHNOLOGIES LTD.
Regeneration & Economic Development,Economic Development and Housing,Construction Work,908105,Construction work,13-Jan-2016,3073282-INV00916117,"1,190.00",LANES GROUP PLC.
Regeneration & Economic Development,Transport and Contracted Services,Professional fees,901002,Professional fees,13-Jan-2016,3073193-INV-0062,"3,500.00",ETC.
Children and Adult Services,Childrens Services,Transport,230005,Contract Hire,13-Jan-2016,3073050-J24/SF,"1,643.20",AABAT TAXIS.
Children and Adult Services,Childrens Services,Transport,230005,Contract Hire,13-Jan-2016,3073050-K4/SF,"1,037.00",AABAT TAXIS.
Children and Adult Services,Childrens Services,Transport,230005,Contract Hire,13-Jan-2016,3073525-25961,"1,031.45",WRIXON SECURITY SERVICES LTD T/A WRIXON CARE.
Dedicated Schools Grant,Dedicated Schools Grant,Transport,230010,Contract Hire,13-Jan-2016,3073050-K10/SV,"1,040.00",AABAT TAXIS.
Dedicated Schools Grant,Dedicated Schools Grant,Transport,230010,Contract Hire,13-Jan-2016,3073139-0001594,585.00,COLORS TAXIS LTD.
Dedicated Schools Grant,Dedicated Schools Grant,Transport,230010,Contract Hire,13-Jan-2016,3073448-17287,"1,166.20",STANLEY TRAVEL (NORTH EAST) LTD.
Dedicated Schools Grant,Dedicated Schools Grant,Transport,230010,Contract Hire,13-Jan-2016,3073448-17292,580.00,STANLEY TRAVEL (NORTH EAST) LTD.
Dedicated Schools Grant,Dedicated Schools Grant,Transport,230010,Contract Hire,13-Jan-2016,3073482-395-DEC2015,832.00,TONYS TAXIS (A BIRCH).
Dedicated Schools Grant,Dedicated Schools Grant,Transport,230010,Contract Hire,13-Jan-2016,3073484-TS14S-37,"1,274.00",TOP STAR TRAVEL.
Children and Adult Services,Education,Transport,230008,Contract Hire,13-Jan-2016,302124-MO47/26,"1,110.00",C STEWART.
Children and Adult Services,Education,Transport,230008,Contract Hire,13-Jan-2016,302131-AA010,"2,030.00",COUNDON TAXIS.
Children and Adult Services,Education,Transport,230007,Contract Hire,13-Jan-2016,3073066-TX1500,"4,543.25",ALSTON ROAD GARAGE.
Children and Adult Services,Education,Transport,230008,Contract Hire,13-Jan-2016,3073139-0001597,"1,300.00",COLORS TAXIS LTD.
Children and Adult Services,Education,Transport,230007,Contract Hire,13-Jan-2016,3073139-0001599,660.00,COLORS TAXIS LTD.
Children and Adult Services,Education,Transport,230008,Contract Hire,13-Jan-2016,3073160-STCDEC1501,"1,413.30",DALELINK PRIVATE HIRE.
Children and Adult Services,Education,Transport,230008,Contract Hire,13-Jan-2016,3073165-2690,"1,196.02",DAVES MINIBUSES.
Children and Adult Services,Education,Transport,230008,Contract Hire,13-Jan-2016,3073165-2691,"1,069.46",DAVES MINIBUSES.
Children and Adult Services,Education,Transport,230008,Contract Hire,13-Jan-2016,3073165-2692,"1,330.00",DAVES MINIBUSES.
Children and Adult Services,Education,Transport,230008,Contract Hire,13-Jan-2016,3073165-2693,"1,300.00",DAVES MINIBUSES.
Children and Adult Services,Education,Transport,230008,Contract Hire,13-Jan-2016,3073165-2694,640.00,DAVES MINIBUSES.
Children and Adult Services,Education,Transport,230008,Contract Hire,13-Jan-2016,3073170-103-DEC2015,637.00,DEXTERS PRIVATE HIRE.
Children and Adult Services,Education,Transport,230007,Contract Hire,13-Jan-2016,3073170-220,728.00,DEXTERS PRIVATE HIRE.
Children and Adult Services,Education,Transport,230007,Contract Hire,13-Jan-2016,3073210-18070,"28,816.95",GARNETTS LTD (COACHES).
Children and Adult Services,Education,Transport,230006,Contract Hire,13-Jan-2016,3073233-HT203,816.00,HARRY`S TAXI`S.
Children and Adult Services,Education,Transport,230008,Contract Hire,13-Jan-2016,3073233-HT204,500.00,HARRY`S TAXI`S.
Children and Adult Services,Education,Transport,230008,Contract Hire,13-Jan-2016,3073233-HT206,"1,857.38",HARRY`S TAXI`S.
Children and Adult Services,Education,Transport,230008,Contract Hire,13-Jan-2016,3073238-269,784.03,HEPWORTHS LUXURY TRAVEL.
Children and Adult Services,Education,Transport,230008,Contract Hire,13-Jan-2016,3073241-M113-DEC2015,756.00,HIPPY`S TAXI.
Children and Adult Services,Education,Transport,230007,Contract Hire,13-Jan-2016,3073246-013736,706.72,HODGSONS COACH OPERATORS LTD.
Children and Adult Services,Education,Transport,230007,Contract Hire,13-Jan-2016,3073250-0017,538.72,HUNTER BROTHERS (TANTOBIE) LTD.
Children and Adult Services,Education,Transport,230008,Contract Hire,13-Jan-2016,3073253-IR1512001,"1,620.61",I & R EXECUTIVE TRAVEL.
Children and Adult Services,Education,Transport,230008,Contract Hire,13-Jan-2016,3073253-IR1512002,"1,409.33",I & R EXECUTIVE TRAVEL.
Children and Adult Services,Education,Transport,230008,Contract Hire,13-Jan-2016,3073253-ir1512011,540.00,I & R EXECUTIVE TRAVEL.
Children and Adult Services,Education,Transport,230008,Contract Hire,13-Jan-2016,3073260-0253,567.00,JACKSON`S TAXI.
Children and Adult Services,Education,Transport,230008,Contract Hire,13-Jan-2016,3073269-039,"1,040.00",JK TAXIS.
Children and Adult Services,Education,Transport,230006,Contract Hire,13-Jan-2016,3073275-0022,825.00,JOHN WARE T/A J & K TAXIS.
Children and Adult Services,Education,Transport,230008,Contract Hire,13-Jan-2016,3073276-84,"1,709.12",JOHNS TAXIS (CHESTER LE STREET).
Children and Adult Services,Education,Transport,230008,Contract Hire,13-Jan-2016,3073315-0002-W014,"1,513.00",MR A MILLWARD T/A SWISS CABS PRIVATE HIRE.
Children and Adult Services,Education,Transport,230007,Contract Hire,13-Jan-2016,3073315-0014,693.00,MR A MILLWARD T/A SWISS CABS PRIVATE HIRE.
Children and Adult Services,Education,Transport,230008,Contract Hire,13-Jan-2016,3073318-44A,"1,573.79",MR G FREELAND T/A HUNWICK CARS.
Children and Adult Services,Education,Transport,230008,Contract Hire,13-Jan-2016,3073336-3936,714.00,NIGHTINGALE COACHES.
Children and Adult Services,Education,Transport,230008,Contract Hire,13-Jan-2016,3073358-6353,"1,318.64",OVERLANDER LTD.
Children and Adult Services,Education,Transport,230008,Contract Hire,13-Jan-2016,3073365-DCC83-DEC2015,"1,785.00",PB PRIVATE HIRE.
Children and Adult Services,Education,Transport,230007,Contract Hire,13-Jan-2016,3073390-36A,900.62,RAYNERS COACHES.
Children and Adult Services,Education,Transport,230007,Contract Hire,13-Jan-2016,3073390-36B,"1,526.42",RAYNERS COACHES.
Children and Adult Services,Education,Transport,230007,Contract Hire,13-Jan-2016,3073390-36C,"3,618.36",RAYNERS COACHES.
Children and Adult Services,Education,Transport,230008,Contract Hire,13-Jan-2016,3073392-16248,"1,680.00",READYPAY LTD T/A PHOENIX TAXIS.
Children and Adult Services,Education,Transport,230008,Contract Hire,13-Jan-2016,3073400-442-DEC2015,"1,568.00",ROAD RUNNERS (NE) LTD.
Children and Adult Services,Education,Transport,230007,Contract Hire,13-Jan-2016,3073407-3080/18,"1,130.64",S & S TRAVEL LTD.
Children and Adult Services,Education,Transport,230008,Contract Hire,13-Jan-2016,3073407-SO11/37,"1,272.04",S & S TRAVEL LTD.
Children and Adult Services,Education,Transport,230008,Contract Hire,13-Jan-2016,3073407-W075/37,"1,257.20",S & S TRAVEL LTD.
Children and Adult Services,Education,Transport,230008,Contract Hire,13-Jan-2016,3073407-WO85/04,"1,260.00",S & S TRAVEL LTD.
Children and Adult Services,Education,Transport,230008,Contract Hire,13-Jan-2016,3073449-47,598.23,STEELYS TAXIS.
Children and Adult Services,Education,Transport,230008,Contract Hire,13-Jan-2016,3073450-DCC004/A045,"1,344.00",STEPHEN COXON.
Children and Adult Services,Education,Transport,230006,Contract Hire,13-Jan-2016,3073482-392-DEC2015,840.00,TONYS TAXIS (A BIRCH).
Children and Adult Services,Education,Transport,230008,Contract Hire,13-Jan-2016,3073482-396-DEC2015,"1,064.00",TONYS TAXIS (A BIRCH).
Children and Adult Services,Education,Transport,230007,Contract Hire,13-Jan-2016,3073482-400-DEC2015,616.00,TONYS TAXIS (A BIRCH).
Children and Adult Services,Education,Transport,230008,Contract Hire,13-Jan-2016,3073482-401-DEC2015,"1,112.00",TONYS TAXIS (A BIRCH).
Children and Adult Services,Education,Transport,230008,Contract Hire,13-Jan-2016,3073482-402-DEC2015,"1,708.00",TONYS TAXIS (A BIRCH).
Children and Adult Services,Education,Transport,230008,Contract Hire,13-Jan-2016,3073482-407-DEC2015,720.00,TONYS TAXIS (A BIRCH).
Children and Adult Services,Education,Transport,230008,Contract Hire,13-Jan-2016,3073484-TS20-37,"1,413.30",TOP STAR TRAVEL.
Children and Adult Services,Head of Adults,Transport,230005,Contract Hire,13-Jan-2016,3073049-EA220771,"1,760.00",A MURRAY TRAVEL.
Children and Adult Services,Head of Adults,Transport,230005,Contract Hire,13-Jan-2016,3073079-DCC1DECEMBER15,"2,547.50",ATLAS TAXIS BISHOP AUCKLAND.
Children and Adult Services,Head of Adults,Transport,230005,Contract Hire,13-Jan-2016,3073079-DCC3DECEMBER15,"2,286.00",ATLAS TAXIS BISHOP AUCKLAND.
Children and Adult Services,Head of Adults,Transport,230005,Contract Hire,13-Jan-2016,3073106-PSO121,816.00,BURNDALE PRIVATE HIRE.
Children and Adult Services,Head of Adults,Transport,230005,Contract Hire,13-Jan-2016,3073221-WV091/032,"1,116.00",GMC TAXIS NORTH EAST.
Children and Adult Services,Head of Adults,Transport,230005,Contract Hire,13-Jan-2016,3073281-04-DW109,882.00,KD TAXIS.
Children and Adult Services,Head of Adults,Transport,230005,Contract Hire,13-Jan-2016,3073305-MCD4488,"1,024.00",MCDONALD TRAVEL.
Children and Adult Services,Head of Adults,Transport,230005,Contract Hire,13-Jan-2016,3073336-4023-DW090,"1,108.00",NIGHTINGALE COACHES.
Children and Adult Services,Head of Adults,Transport,230005,Contract Hire,13-Jan-2016,3073336-4024,882.00,NIGHTINGALE COACHES.
Children and Adult Services,Head of Adults,Transport,230005,Contract Hire,13-Jan-2016,3073336-4025,756.00,NIGHTINGALE COACHES.
Children and Adult Services,Head of Adults,Transport,230005,Contract Hire,13-Jan-2016,3073336-4026-DW089,"1,239.00",NIGHTINGALE COACHES.
Children and Adult Services,Head of Adults,Transport,230005,Contract Hire,13-Jan-2016,3073336-4027-DW081,"1,151.50",NIGHTINGALE COACHES.
Children and Adult Services,Head of Adults,Transport,230005,Contract Hire,13-Jan-2016,3073448-17373,603.00,STANLEY TRAVEL (NORTH EAST) LTD.
Children and Adult Services,Head of Adults,Transport,230005,Contract Hire,13-Jan-2016,3073486-8915,"1,010.40",TRANSPORT.ADVENTURE.XI.
Children and Adult Services,Head of Adults,Transport,230005,Contract Hire,13-Jan-2016,3073486-9015,"1,317.00",TRANSPORT.ADVENTURE.XI.
Children and Adult Services,Head of Adults,Transport,230005,Contract Hire,13-Jan-2016,3073507-1040,"1,512.00",WAYNE`S TAXIS.
Children and Adult Services,Head of Adults,Transport,230005,Contract Hire,13-Jan-2016,3073507-1041,"1,260.00",WAYNE`S TAXIS.
Children and Adult Services,Head of Adults,Transport,230005,Contract Hire,13-Jan-2016,3073510-5384,"1,459.50",WEARDALE PRIVATE HIRE.
Children and Adult Services,Head of Adults,Transport,230005,Contract Hire,13-Jan-2016,3073510-5385,"3,588.20",WEARDALE PRIVATE HIRE.
Neighbourhood Services,Technical Services,Third Party Payments,460502,Contract Payments,13-Jan-2016,302194-201002977,"2,120.00",VAISALA LTD.
Children and Adult Services,Central/Other,Debtors,930133,Debtor IC+ Out of Hours - Home Care,13-Jan-2016,3073248-DOO21,"8,333.33",HOMECARE SUPPORT LTD T/A THE HUMAN SUPPORT GROUP.
Neighbourhood Services,Direct Services,Premises,120037,Energy Costs,13-Jan-2016,3073201-0000006767,"1,800.00",FOREVER FUELS LTD
Neighbourhood Services,Technical Services,Supplies and Services,304221,Equipment and Materials,13-Jan-2016,3073062-22522167,"1,243.97",AGGREGATE INDUSTRIES UK LTD.
Neighbourhood Services,Technical Services,Supplies and Services,304221,Equipment and Materials,13-Jan-2016,3073062-22522168,846.55,AGGREGATE INDUSTRIES UK LTD.
Neighbourhood Services,Direct Services,Supplies and Services,304259,Equipment and Materials,13-Jan-2016,3073181-5112642,"2,828.96",EAST RIDING HORTICULTURE LTD.
Neighbourhood Services,Direct Services,Supplies and Services,304259,Equipment and Materials,13-Jan-2016,3073186-IN109521,"7,220.00",EGBERT H TAYLOR & CO LTD.
Neighbourhood Services,Direct Services,Supplies and Services,304259,Equipment and Materials,13-Jan-2016,3073191-960532,"13,233.60",ESE WORLD LTD.
Neighbourhood Services,Direct Services,Supplies and Services,304221,Equipment and Materials,13-Jan-2016,3073200-1512-176937,808.55,FLAME HEATING SPARES LTD.
Neighbourhood Services,Direct Services,Supplies and Services,304221,Equipment and Materials,13-Jan-2016,3073232-SI-3168,681.34,HARELAW SAWMILL LTD.
Neighbourhood Services,Technical Services,Supplies and Services,304047,Equipment and Materials,13-Jan-2016,3073345-DI20226504,"19,065.51",NORTHERN POWERGRID (NORTHEAST) LTD.
Neighbourhood Services,Direct Services,Supplies and Services,304221,Equipment and Materials,13-Jan-2016,3073355-17831,510.00,OLIVERS TREE SERVICES LTD.
Neighbourhood Services,Technical Services,Supplies and Services,304221,Equipment and Materials,13-Jan-2016,3073387-36965,"1,500.00",PROTEUS EQUIPMENT LTD.
Neighbourhood Services,Direct Services,Supplies and Services,304221,Equipment and Materials,13-Jan-2016,3073410-2350,826.72,SAFE STRIP UK LTD.
Neighbourhood Services,Technical Services,Supplies and Services,304221,Equipment and Materials,13-Jan-2016,3073452-077825,"1,300.24",STONEGRAVE AGGREGATES LTD.
Regeneration & Economic Development,Economic Development and Housing,Cap Exp on Grants & Other Financial Assistance (REFCUS),918501,Exp assets not owned by authority,13-Jan-2016,3073403-083,"9,306.00",RONDEN PROPERTIES LTD.
Children and Adult Services,Head of Adults,Supplies and Services,308013,Furniture,13-Jan-2016,3073116-38016,"1,670.00",CARPETTIME LTD.
Regeneration & Economic Development,Strategy Programmes and Performance,Supplies and Services,308011,Furniture,13-Jan-2016,3073380-INV0296214,585.51,POSTURITE (UK) LTD.
Children and Adult Services,Childrens Services,Supplies and Services,364352,Grants to Voluntary Organisations,13-Jan-2016,302128-663,889.58,CITY OF SUNDERLAND YMCA LTD.
Children and Adult Services,Childrens Services,Supplies and Services,364352,Grants to Voluntary Organisations,13-Jan-2016,302128-675,889.58,CITY OF SUNDERLAND YMCA LTD.
Children and Adult Services,Childrens Services,Supplies and Services,364352,Grants to Voluntary Organisations,13-Jan-2016,302128-687,889.58,CITY OF SUNDERLAND YMCA LTD.
Children and Adult Services,Childrens Services,Supplies and Services,364353,Grants to Voluntary Organisations,13-Jan-2016,3073453-D1IN/00021022,"1,440.78",STONHAM HOUSING ASSOCIATION LTD.
Children and Adult Services,Childrens Services,Supplies and Services,364352,Grants to Voluntary Organisations,13-Jan-2016,3073454-229,924.76,STONHAM HOUSING ASSOCIATION LTD.
Children and Adult Services,Childrens Services,Supplies and Services,364353,Grants to Voluntary Organisations,13-Jan-2016,3073454-230,924.76,STONHAM HOUSING ASSOCIATION LTD.
Children and Adult Services,Childrens Services,Supplies and Services,384638,Miscellaneous Expenses,13-Jan-2016,3073437-SI-517,"3,000.00",SPORT WORKS LTD.
Children and Adult Services,Education,Supplies and Services,384199,Miscellaneous Expenses,13-Jan-2016,3073393-SI-43,633.00,REDMAT LTD.
Children and Adult Services,Head of Adults,Supplies and Services,384616,Miscellaneous Expenses,13-Jan-2016,3073052-DCC/VOIDS/JUL15,"4,609.50",ACCEPT CARE LTD.
Neighbourhood Services,Technical Services,Supplies and Services,384110,Miscellaneous Expenses,13-Jan-2016,3073283-F00967070,975.00,LEEDS BECKETT UNIVERSITY.
Regeneration & Economic Development,Spatial Policy Planning Assets & Environment,Supplies and Services,384199,Miscellaneous Expenses,13-Jan-2016,302154-10952,"1,161.00",MIKE SMITH PHOTOGRAPHY LTD.
Regeneration & Economic Development,Spatial Policy Planning Assets & Environment,Supplies and Services,384199,Miscellaneous Expenses,13-Jan-2016,302154-10956,540.00,MIKE SMITH PHOTOGRAPHY LTD.
Regeneration & Economic Development,Economic Development and Housing,Supplies and Services,384700,Miscellaneous Expenses,13-Jan-2016,3073223-099,"5,000.00",GREAT ANNUAL SAVINGS.
Neighbourhood Services,Culture & Sport,Supplies and Services,312017,Newspapers Books and Periodicals,13-Jan-2016,302176-NCBF2015/019,"1,280.97",NORTHERN CHILDRENS BOOK FESTIVAL.
Children and Adult Services,Childrens Services,Third Party Payments,440016,Other Third Party Payments,13-Jan-2016,3073327-CAS-01-2016-032,"1,893.12",REDACTED - PAYMENT TO INDIVIDUAL
Dedicated Schools Grant,Dedicated Schools Grant,Third Party Payments,440080,Other Third Party Payments,13-Jan-2016,3073163-SLINV/00000592,"12,790.31",DARLINGTON COLLEGE.
Children and Adult Services,Education,Third Party Payments,440999,Other Third Party Payments,13-Jan-2016,3073055-INV02083,"8,000.00",ACUMEN COMMUNITY ENTERPRISE DEVELOPMENT TRUST LTD.
Children and Adult Services,Education,Third Party Payments,440999,Other Third Party Payments,13-Jan-2016,3073142-CO28115,"3,300.00",CONTINUUM COMMUNITY SUPPORT & COHESION CIC.
Neighbourhood Services,Projects and Business services,Supplies and Services,340001,Postages,13-Jan-2016,3073404-9051244554,"1,964.35",ROYAL MAIL GROUP PLC.
Resources,Legal & Democratic Services,Supplies and Services,332029,Printing Stationery and Gen Off Exps,13-Jan-2016,3073057-IS1266694,"1,380.00",ADARE INSPIRED COMMUNICATIONS.
Children and Adult Services,Commissioning inc Supporting People,Third Party Payments,479101,Purchase of Care,13-Jan-2016,3073295-6222,"11,583.33",MAIN - TAKING AUTISM PERSONALLY.
Children and Adult Services,Head of Adults,Third Party Payments,472101,Purchase of Care,13-Jan-2016,3073166-8240,788.83,DCS & D LTD T/A HERITAGE HEALTHCARE.
Children and Adult Services,Head of Adults,Third Party Payments,472101,Purchase of Care,13-Jan-2016,3073166-8241,788.83,DCS & D LTD T/A HERITAGE HEALTHCARE.
Children and Adult Services,Head of Adults,Third Party Payments,472101,Purchase of Care,13-Jan-2016,3073166-8510,"1,702.50",DCS & D LTD T/A HERITAGE HEALTHCARE.
Children and Adult Services,Head of Adults,Third Party Payments,472101,Purchase of Care,13-Jan-2016,3073166-8511,"1,526.58",DCS & D LTD T/A HERITAGE HEALTHCARE.
Children and Adult Services,Head of Adults,Third Party Payments,472101,Purchase of Care,13-Jan-2016,3073166-8575,"1,702.50",DCS & D LTD T/A HERITAGE HEALTHCARE.
Children and Adult Services,Head of Adults,Third Party Payments,472101,Purchase of Care,13-Jan-2016,3073166-8602,"1,220.13",DCS & D LTD T/A HERITAGE HEALTHCARE.
Children and Adult Services,Head of Adults,Third Party Payments,472101,Purchase of Care,13-Jan-2016,3073166-8686,"1,702.50",DCS & D LTD T/A HERITAGE HEALTHCARE.
Children and Adult Services,Head of Adults,Third Party Payments,472101,Purchase of Care,13-Jan-2016,3073166-8694,"1,293.90",DCS & D LTD T/A HERITAGE HEALTHCARE.
Children and Adult Services,Head of Adults,Third Party Payments,478111,Purchase of Care,13-Jan-2016,3073307-2225179,"1,501.20",MENCAP.
Children and Adult Services,Head of Adults,Third Party Payments,479101,Purchase of Care,13-Jan-2016,3073411-6030014901,"1,105.56",SANCTUARY HOUSING.
Neighbourhood Services,Technical Services,Employees,040149,Recruitment Instruction and Training,13-Jan-2016,3073456-59499,948.00,SUPERJET NORTH EAST.
Neighbourhood Services,Direct Services,Third Party Payments,430100,Rendered by Private Contractors,13-Jan-2016,3073065-06050,997.75,ALL EVENTS SECURITY LTD (AES).
Neighbourhood Services,Projects and Business services,Third Party Payments,430120,Rendered by Private Contractors,13-Jan-2016,3073198-CTIN06465478,"8,841.20",FINNING (UK) LTD.
Neighbourhood Services,Projects and Business services,Third Party Payments,430120,Rendered by Private Contractors,13-Jan-2016,3073198-CTIN06465479,"8,494.00",FINNING (UK) LTD.
Neighbourhood Services,Projects and Business services,Third Party Payments,430120,Rendered by Private Contractors,13-Jan-2016,3073198-CTIN06465480,"6,497.60",FINNING (UK) LTD.
Neighbourhood Services,Direct Services,Third Party Payments,430100,Rendered by Private Contractors,13-Jan-2016,3073214-AP14847,"3,108.00",GEOFFREY ROBINSON LTD.
Neighbourhood Services,Direct Services,Third Party Payments,430101,Rendered by Private Contractors,13-Jan-2016,3073239-5067644199,529.84,HI Q TYRESERVICES.
Neighbourhood Services,Technical Services,Third Party Payments,430100,Rendered by Private Contractors,13-Jan-2016,3073312-5442,"54,508.90",MILES MACADAM LTD.
Neighbourhood Services,Technical Services,Third Party Payments,430100,Rendered by Private Contractors,13-Jan-2016,3073345-DI20228611,"43,327.75",NORTHERN POWERGRID (NORTHEAST) LTD.
Neighbourhood Services,Direct Services,Third Party Payments,430100,Rendered by Private Contractors,13-Jan-2016,3073361-753,"24,552.39",PARAMOUNT CEILINGS & PARTITIONS.
Neighbourhood Services,Technical Services,Third Party Payments,430100,Rendered by Private Contractors,13-Jan-2016,3073382-137681,"13,977.75",PREMIER TRAFFIC MANAGEMENT LTD.
Neighbourhood Services,Technical Services,Third Party Payments,430100,Rendered by Private Contractors,13-Jan-2016,3073386-84008,550.00,PROTECTOR SECURITY GROUP LTD.
Neighbourhood Services,Technical Services,Third Party Payments,430100,Rendered by Private Contractors,13-Jan-2016,3073386-84009,550.00,PROTECTOR SECURITY GROUP LTD.
Neighbourhood Services,Projects and Business services,Third Party Payments,430114,Rendered by Private Contractors,13-Jan-2016,3073455-30075386,"5,936.38",SUEZ.
Neighbourhood Services,Direct Services,Third Party Payments,430100,Rendered by Private Contractors,13-Jan-2016,3073493-695,"1,276.90",TYNE PLASTERING LTD.
Neighbourhood Services,Technical Services,Third Party Payments,430128,Rendered by Private Contractors,13-Jan-2016,3073504-40543,"3,190.50",W MARLEY AGRICULTURAL CONTRACTORS LTD.
Regeneration & Economic Development,Transport and Contracted Services,Third Party Payments,430106,Rendered by Private Contractors,13-Jan-2016,3073139-0001592,750.00,COLORS TAXIS LTD.
Children and Adult Services,Childrens Services,Third Party Payments,425040,Rendered by Voluntary Organisations,13-Jan-2016,3073199-0000057996,"3,277.14",FIVE RIVERS CHILD CARE LTD.
Children and Adult Services,Childrens Services,Third Party Payments,425040,Rendered by Voluntary Organisations,13-Jan-2016,3073202-630174629,"3,631.34",FOSTER CARE ASSOCIATES LTD.
Children and Adult Services,Childrens Services,Third Party Payments,425040,Rendered by Voluntary Organisations,13-Jan-2016,3073202-630177193,"3,631.34",FOSTER CARE ASSOCIATES LTD.
Children and Adult Services,Childrens Services,Third Party Payments,425040,Rendered by Voluntary Organisations,13-Jan-2016,3073202-630177686,"3,365.67",FOSTER CARE ASSOCIATES LTD.
Children and Adult Services,Childrens Services,Third Party Payments,425040,Rendered by Voluntary Organisations,13-Jan-2016,3073202-630177803,"4,340.00",FOSTER CARE ASSOCIATES LTD.
Children and Adult Services,Childrens Services,Third Party Payments,425040,Rendered by Voluntary Organisations,13-Jan-2016,3073203-125271,820.00,FOSTER CARES LTD.
Children and Adult Services,Childrens Services,Third Party Payments,425040,Rendered by Voluntary Organisations,13-Jan-2016,3073203-125272,730.00,FOSTER CARES LTD.
Children and Adult Services,Childrens Services,Third Party Payments,425040,Rendered by Voluntary Organisations,13-Jan-2016,3073203-125293,730.00,FOSTER CARES LTD.
Children and Adult Services,Childrens Services,Third Party Payments,425040,Rendered by Voluntary Organisations,13-Jan-2016,3073203-125294,730.00,FOSTER CARES LTD.
Children and Adult Services,Childrens Services,Third Party Payments,425040,Rendered by Voluntary Organisations,13-Jan-2016,3073203-125300,700.00,FOSTER CARES LTD.
Children and Adult Services,Childrens Services,Third Party Payments,425040,Rendered by Voluntary Organisations,13-Jan-2016,3073204-162031,"4,011.97",FOSTERING SOLUTIONS LTD.
Children and Adult Services,Childrens Services,Third Party Payments,425040,Rendered by Voluntary Organisations,13-Jan-2016,3073204-162897,"2,920.12",FOSTERING SOLUTIONS LTD.
Children and Adult Services,Childrens Services,Third Party Payments,425017,Rendered by Voluntary Organisations,13-Jan-2016,3073370-26673,"3,146.03",PERCY HEDLEY FOUNDATION.
Children and Adult Services,Childrens Services,Third Party Payments,425019,Rendered by Voluntary Organisations,13-Jan-2016,3073378-9012392,"19,194.33",PONTVILLE SCHOOL LTD.
Children and Adult Services,Childrens Services,Third Party Payments,425019,Rendered by Voluntary Organisations,13-Jan-2016,3073378-9012414,"54,723.00",PONTVILLE SCHOOL LTD.
Children and Adult Services,Childrens Services,Third Party Payments,425023,Rendered by Voluntary Organisations,13-Jan-2016,3073409-CHI014539,"21,921.34",S/C 200000 CAMBIAN CHILDCARE LTD.
Children and Adult Services,Childrens Services,Third Party Payments,425017,Rendered by Voluntary Organisations,13-Jan-2016,3073446-4862,"7,656.00",ST OSWALD`S HOSPICE.
